Workbook

Sheet Clock
B2: Time-domain response of parallel RC-terminated point-to-point lossless clock line
L5: SWEEP RANGE: | N5: SOURCE VOLTAGE:
L6: min | M6: max | N6: Low [V] | O6: High [V]
B7: 50 | C7: 1 | D7: 50 | E7: 0 | F7: 10000 | G7: 0 | H7: 0.2 | I7: 0.2 | J7: 100 | K7: 50 | L7: 0.5 | M7: 2 | N7: -0.9 | O7: 0.9
C50: Zoom: | D50: 10 | F50: Tpd [s]: | G50: =BZ86 -> 1e-09 | I50: Tpd delta | J50: =G50-t_pd*0.000000001 -> 0
B81: Att_ | C81: N | D81: Calculated:
B82: =Z_o/(Z_o+R_s) -> 0.5 | C82: 50 | D82: DC | E82: T | F82: f2r | G82: f2f | BY82: Before 0 N: | BZ82: =IF(CA91>0,MATCH(0,CA91:CA191,-1),MATCH(0,CA91:CA191,1))-1 -> 50
B83: Y_0 | D83: [V] | E83: [nsec] | F83: [MHz] | G83: [MHz] | BB83: Phase offset | BY83: Before 0: | BZ83: =IF(BG91>0,INDEX(CA91:CA191,MATCH(0,CA91:CA191,1),0),INDEX(CA91:CA191,MATCH(0,CA91:CA191,1),0)) -> -1.012834352e-16
B84: =1/Z_o -> 0.02 | D84: =Low_+(High_-Low_)*Duty_cycle/100 -> 0 | E84: =1000/fo_ -> 10 | F84: =1000/(tr_*PI()) -> 1591.549431 | G84: =1000/(tf_*PI()) -> 1591.549431 | BB84: Ofs_ | BY84: After 0: | BZ84: =IF(BG91>0,OFFSET(INDEX(CA91:CA191,MATCH(0,CA91:CA191,-1),0),-1,0),OFFSET(INDEX(CA91:CA191,MATCH(0,CA91:CA191,1),0),1,0)) -> 0.1661549534
BB85: =PI()*tr_/T_ -> 0.06283185307 | BY85: Zero cross | BZ85: =BZ82+ABS(BZ83)/(ABS(BZ83)+ABS(BZ84)) -> 50
BY86: Tpd | BZ86: =BZ85/(fo_*1000000)*2/(100*Zoom_) -> 1e-09
E87: ---------------------- Fourier components: Harmonic composition of drive signal ---------------------------
BE88: ----------------------------------Time-series points --------------------------------- | BJ88: Vout/Vs | BY88: ----------------------- Zoomed time-series points -----------------
C89: Harm. | E89: n*PI* | AF89: -------Modulated by Vs ------- | AT89: --------Modulated by Vs-------- | AX89: ------------------Modulated by Vs------------------
C90: series | D90: [MHz] | E90: (2t+tr)/T | F90: n*PI*tr/T | G90: n*PI*tf/T | H90: SIN(nPItr) | I90: SIN(nPItf) | J90: Re{Mag} | K90: Im{Mag} | L90: Magnit. | M90: Phase | N90: Magnit. | Q90: 2PI*f*tpd | R90: 1/R_s | S90: wCs | U90: 1/R_l | V90: wCl | AE90: ----------------------- Vin=Z=1/(Yin+Ys) ------------------- | AN90: Vout/Vin={(1+Gl)*exp(-jFi)}/{1+Gl*exp(-j2Fi)} | AS90: ----------------------- Vout=Vin*Vo_i ------------------- | AX90: ----------------------- Is = (Vs-Vin)/Rs ------------------- | BC90: N_ | BD90: Rad_ | BE90: V_s | BF90: V_i | BG90: V_o | BH90: Pwl_ | BI90: I_s | BJ90: Delta_Fi | BK90: Fi_norm | BL90: Wrap_Points | BM90: Wrap_count | BN90: Unwrapped | BO90: Ph_delay | BP90: Gr_delay | BQ90: D_Ph_delay | BR90: %_Ph_delay | BS90: D_Gr_delay | BT90: %_Gr_delay | BW90: N_ | BX90: Rad_ | BY90: V_s | BZ90: V_i | CA90: V_o
C91: NH_ | D91: Fr_ | E91: Rad_t | F91: Rad_tr | G91: Rad_tf | H91: X_ | I91: Y_ | J91: ReVs | K91: ImVs | L91: |Vs| | M91: Fi_Vs | N91: Vs_dB | Q91: Fi_ | R91: ReYs | S91: ImYs | T91: |Ys| | U91: ReYl | V91: ImYl | W91: |Yl| | X91: ReGl | Y91: ImGl | Z91: ReYin | AA91: ImYin | AB91: |Zin| | AC91: ReVin | AD91: ImVin | AE91: |Vin| | AF91: Fi_Vin | AG91: Vin_dB | AH91: A_ | AI91: B_ | AJ91: C_ | AK91: D_ | AL91: ReVoi | AM91: ImVoi | AN91: |Voi| | AO91: Fi_Voi | AP91: Voi_dB | AQ91: ReVout | AR91: ImVout | AS91: |Vout| | AT91: Fi_Vout | AU91: Vout_dB | AV91: ReIs | AW91: ImIs | AX91: |Is| | AY91: Fi_Is | AZ91: Is_dB | BB91: P_0 | BC91: 0 | BD91: =4*PI()*N_/100 -> 0 | BE91: =SUMPRODUCT(Vs,SIN(Fi_Vs+NH_*BD91+NH_*Ofs_))+DC_ -> -2.231933152e-17 | BF91: =SUMPRODUCT(Vin,SIN(Fi_Vin+NH_*BD91+NH_*Ofs_))+DC_*R_l/(R_l+R_s) -> -0.4455216634 | BG91: =SUMPRODUCT(Vout,SIN(Fi_Vout+NH_*BD91+NH_*Ofs_))+DC_*R_l/(R_l+R_s) -> -0.8955129697 | BI91: =SUMPRODUCT(Is,SIN(Fi_Is+NH_*BD91+NH_*Ofs_))+DC_/(R_s+R_l) -> 0.008910433268 | BJ91: 0 | BK91: 0 | BL91: 0 | BM91: 0 | BN91: 0 | BV91: P_0 | BW91: 0 | BX91: =4*PI()*N_/(100*Zoom_) -> 0 | BY91: =SUMPRODUCT(Vs,SIN(Fi_Vs+NH_*BX91+NH_*Ofs_))+DC_ -> -2.231933152e-17 | BZ91: =SUMPRODUCT(Vin,SIN(Fi_Vin+NH_*BX91+NH_*Ofs_))+DC_*R_l/(R_l+R_s) -> -0.4455216634 | CA91: =SUMPRODUCT(Vout,SIN(Fi_Vout+NH_*BX91+NH_*Ofs_))+DC_*R_l/(R_l+R_s) -> -0.8955129697
C92: 1 | D92: =fo_*NH_ -> 100 | E92: =NH_*PI()*(2*Duty_cycle/100*T_+tr_)/T_ -> 3.204424507 | F92: =NH_*PI()*tr_/T_ -> 0.06283185307 | G92: =NH_*PI()*tf_/T_ -> 0.06283185307 | H92: =SIN(Rad_tr)/Rad_tr -> 0.9993421562 | I92: =SIN(Rad_tf)/Rad_tf -> 0.9993421562 | J92: =-(High_-Low_)/PI()/NH_*(Y_*SIN(Rad_t)-X_*SIN(Rad_tr)) -> 0.07190530166 | K92: =(High_-Low_)/PI()/NH_*(Y_*COS(Rad_t)-X_*COS(Rad_tr)) -> -1.142902042 | L92: =SQRT(ReVs^2+ImVs^2) -> 1.145161757 | M92: =IF(AND(ReVs<>0,ImVs<>0), -ATAN2(ReVs,ImVs)-PI()/2, 0) -> -0.06283185307 | N92: =IF(AND(ReVs<>0, ImVs<>0), 20*LOG(Vs), -1000) -> 1.177336723 | Q92: =2*PI()*Fr_*t_pd*10^-3 -> 0.6283185307 | R92: =1/R_s -> 0.02 | S92: =2*PI()*Fr_*C_s/1000000 -> 0 | T92: =SQRT(ReYs^2+ImYs^2) -> 0.02 | U92: =1/R_l -> 0.0001 | V92: =2*PI()*Fr_*C_l/1000000 -> 0 | W92: =SQRT(ReYl^2+ImYl^2) -> 0.0001 | X92: =(Y_0^2-Yl^2)/(Y_0^2+Yl^2+2*Y_0*ReYl) -> 0.9900497512 | Y92: =-2*Y_0*ImYl/(Y_0^2+Yl^2+2*Y_0*ReYl) -> 0 | Z92: =Y_0*(ReYl*(Y_0-ImYl*TAN(Fi_))+ReYl*TAN(Fi_)*(ImYl+Y_0*TAN(Fi_)))/((Y_0-ImYl*TAN(Fi_))^2+(ReYl*TAN(Fi_))^2) -> 0.0001527843883 | AA92: =Y_0*((ImYl+Y_0*TAN(Fi_))*(Y_0-ImYl*TAN(Fi_))-TAN(Fi_)*ReYl^2)/((Y_0-ImYl*TAN(Fi_))^2+(ReYl*TAN(Fi_))^2) -> 0.01453029554 | AB92: =SQRT(1/(ReYin^2+ImYin^2)) -> 68.8179205 | AC92: =(ReYs+ReYin)/((ReYs+ReYin)^2+(ImYs+ImYin)^2)/R_s -> 0.6529710992 | AD92: =-(ImYs+ImYin)/((ReYs+ReYin)^2+(ImYs+ImYin)^2)/R_s -> -0.4707966337 | AE92: =SQRT(ReVin^2+ImVin^2)*Vs -> 0.9218521747 | AF92: =IF(AND(ReVin<>0, ImVin<>0), ATAN2(ReVin,ImVin)+Fi_Vs, 0) -> -0.6875176871 | AG92: =IF(Vin<>0, 20*LOG(Vin), -1000) -> -0.7067743088 | AH92: =(1+ReGl)*COS(Fi_)+ImGl*SIN(Fi_) -> 1.609984068 | AI92: =COS(Fi_)*ImGl-SIN(Fi_)*(1+ReGl) -> -1.169721895 | AJ92: =1+COS(2*Fi_)*ReGl+SIN(2*Fi_)*ImGl -> 1.305942198 | AK92: =COS(2*Fi_)*ImGl-SIN(2*Fi_)*ReGl -> -0.9415932674 | AL92: =(A_*C_+B_*D_)/(C_^2+D_^2) -> 1.236051666 | AM92: =(B_*C_-A_*D_)/(C_^2+D_^2) -> -0.00449022051 | AN92: =SQRT(ReVoi^2+ImVoi^2) -> 1.236059822 | AO92: =IF(AND(ReVoi<>0, ImVoi<>0), ATAN2(ReVoi,ImVoi), 0) -> -0.00363269666 | AP92: =IF(Voi<>0, 20*LOG(Voi), -1000) -> 1.840789797 | AQ92: =ReVin*ReVoi-ImVin*ImVoi -> 0.8049920342 | AR92: =ImVin*ReVoi+ReVin*ImVoi -> -0.5848609476 | AS92: =SQRT(ReVout^2+ImVout^2)*Vs -> 1.139464435 | AT92: =IF(AND(ReVout<>0, ImVout<>0), ATAN2(ReVout,ImVout)+Fi_Vs, 0) -> -0.6911503838 | AU92: =IF(Vout<>0, 20*LOG(Vout), -1000) -> 1.134015488 | AV92: =(Vs*COS(Fi_Vs)-Vin*COS(Fi_Vin))/R_s -> 0.008609456264 | AW92: =(Vs*SIN(Fi_Vs)-Vin*SIN(Fi_Vin))/R_s -> 0.01026242432 | AX92: =SQRT(ReIs^2+ImIs^2) -> 0.013395525 | AY92: =IF(AND(ReIs<>0, ImIs<>0), ATAN2(ReIs,ImIs), 0) -> 0.872764142 | AZ92: =IF(Is<>0, 20*LOG(Is), -1000) -> -37.46080521 | BB92: P_1 | BC92: 1 | BD92: =4*PI()*N_/100 -> 0.1256637061 | BE92: 0.8983835702 | BF92: 0.003670305173 | BG92: -0.8955039655 | BI92: =SUMPRODUCT(Is,SIN(Fi_Is+NH_*BD92+NH_*Ofs_))+DC_/(R_s+R_l) -> 0.0178942653 | BJ92: =180/PI()*(Fi_Vout-Fi_Vs) -> -36 | BK92: =IF(D_Fi<0,D_Fi,D_Fi-360) -> -36 | BL92: =IF(ABS(BK92-BK91)<180,0,1) -> 0 | BM92: =SUM(BL92:BL$92) -> 0 | BN92: =Fi_Norm-360*BM92 -> -36 | BO92: =-BN92/(360*D92*1000000) -> 1e-09 | BQ92: =BO92-t_pd*0.000000001 -> 0 | BR92: =BQ92/(t_pd*0.000000001)*100 -> 0 | BV92: P_1 | BW92: 1 | BX92: 0.01256637061 | BY92: 0.1669857282 | BZ92: -0.3620196245 | CA92: -0.8953858074
C93: 2 | D93: =fo_*NH_ -> 200 | E93: =NH_*PI()*(2*Duty_cycle/100*T_+tr_)/T_ -> 6.408849013 | F93: 0.1256637061 | G93: 0.1256637061 | H93: 0.9973701828 | I93: 0.9973701828 | J93: =-(High_-Low_)/PI()/NH_*(Y_*SIN(Rad_t)-X_*SIN(Rad_tr)) -> 2.782985346e-16 | K93: =(High_-Low_)/PI()/NH_*(Y_*COS(Rad_t)-X_*COS(Rad_tr)) -> 3.180554681e-17 | L93: =SQRT(ReVs^2+ImVs^2) -> 2.801100983e-16 | M93: =IF(AND(ReVs<>0,ImVs<>0), -ATAN2(ReVs,ImVs)-PI()/2, 0) -> -1.684588334 | N93: =IF(AND(ReVs<>0, ImVs<>0), 20*LOG(Vs), -1000) -> -311.0534247 | Q93: 1.256637061 | R93: 0.02 | S93: 0 | T93: 0.02 | U93: 0.0001 | V93: 0 | W93: 0.0001 | X93: 0.9900497512 | Y93: =-2*Y_0*ImYl/(Y_0^2+Yl^2+2*Y_0*ReYl) -> 0 | Z93: 0.00104696567 | AA93: 0.0615375596 | AB93: 16.24788681 | AC93: 0.09951646298 | AD93: -0.2909683214 | AE93: =SQRT(ReVin^2+ImVin^2)*Vs -> 8.613833709e-17 | AF93: =IF(AND(ReVin<>0, ImVin<>0), ATAN2(ReVin,ImVin)+Fi_Vs, 0) -> -2.925838192 | AG93: =IF(Vin<>0, 20*LOG(Vin), -1000) -> -321.2960703 | AH93: 0.6149591928 | AI93: -1.892649784 | AJ93: 0.199032926 | AK93: -0.5819366428 | AL93: 3.235301847 | AM93: -0.04978617616 | AN93: =SQRT(ReVoi^2+ImVoi^2) -> 3.23568489 | AO93: =IF(AND(ReVoi<>0, ImVoi<>0), ATAN2(ReVoi,ImVoi), 0) -> -0.01538720318 | AP93: =IF(Voi<>0, 20*LOG(Voi), -1000) -> 10.19932442 | AQ93: =ReVin*ReVoi-ImVin*ImVoi -> 0.3074795964 | AR93: =ImVin*ReVoi+ReVin*ImVoi -> -0.9463248918 | AS93: =SQRT(ReVout^2+ImVout^2)*Vs -> 2.787165157e-16 | AT93: =IF(AND(ReVout<>0, ImVout<>0), ATAN2(ReVout,ImVout)+Fi_Vs, 0) -> -2.941225395 | AU93: =IF(Vout<>0, 20*LOG(Vout), -1000) -> -311.0967459 | AV93: =(Vs*COS(Fi_Vs)-Vin*COS(Fi_Vin))/R_s -> 1.046713724e-18 | AW93: =(Vs*SIN(Fi_Vs)-Vin*SIN(Fi_Vin))/R_s -> -5.197153108e-18 | AX93: =SQRT(ReIs^2+ImIs^2) -> 5.301510166e-18 | AY93: =IF(AND(ReIs<>0, ImIs<>0), ATAN2(ReIs,ImIs), 0) -> -1.372053666 | AZ93: =IF(Is<>0, 20*LOG(Is), -1000) -> -345.512008 | BB93: P_2 | BC93: 2 | BD93: 0.2513274123 | BE93: 0.8998426486 | BF93: 0.00440015544 | BG93: -0.8954781053 | BI93: 0.01790884986 | BJ93: -72 | BK93: -72 | BL93: =IF(ABS(BK93-BK92)<180,0,1) -> 0 | BM93: =SUM(BL$92:BL93) -> 0 | BN93: -72 | BO93: =-BN93/(360*D93*1000000) -> 1e-09 | BP93: =-(BN94-BN92)/(D94-D92)/360/1000000 -> 1e-09 | BQ93: 0 | BR93: 0 | BS93: =BP93-t_pd*0.000000001 -> 0 | BT93: =BS93/(t_pd*0.000000001)*100 -> 0 | BV93: P_2 | BW93: 2 | BX93: 0.02513274123 | BY93: 0.3541061831 | BZ93: -0.2684636539 | CA93: -0.8954446974
C94: 3 | D94: 300 | E94: 9.61327352 | F94: 0.1884955592 | G94: 0.1884955592 | H94: 0.9940887486 | I94: 0.9940887486 | J94: 0.07115129569 | K94: -0.3729881541 | L94: 0.3797139317 | M94: -0.1884955592 | N94: -8.410869366 | Q94: 1.884955592 | R94: 0.02 | S94: 0 | T94: 0.02 | U94: 0.0001 | V94: 0 | W94: 0.0001 | X94: 0.9900497512 | Y94: 0 | Z94: 0.00104696567 | AA94: -0.0615375596 | AB94: 16.24788681 | AC94: 0.09951646298 | AD94: 0.2909683214 | AE94: 0.1167681096 | AF94: 1.052754299 | AG94: -18.65351502 | AH94: -0.6149591928 | AI94: -1.892649784 | AJ94: 0.199032926 | AK94: 0.5819366428 | AL94: -3.235301847 | AM94: -0.04978617616 | AN94: 3.23568489 | AO94: -3.12620545 | AP94: 10.19932442 | AQ94: -0.3074795964 | AR94: -0.9463248918 | AS94: 0.3778248077 | AT94: -2.073451151 | AU94: -8.454190601 | AV94: 0.006303338383 | AW94: -0.00345196615 | AX94: 0.007186664391 | AY94: -0.5010302275 | AZ94: -42.86945271 | BB94: P_3 | BC94: 3 | BD94: 0.3769911184 | BE94: 0.8999554958 | BF94: 0.004457115709 | BG94: -0.8953658195 | BI94: 0.0179099676 | BJ94: -108 | BK94: -108 | BL94: 0 | BM94: =SUM(BL$92:BL94) -> 0 | BN94: -108 | BO94: 1e-09 | BP94: =-(BN95-BN93)/(D95-D93)/360/1000000 -> 1e-09 | BQ94: 0 | BR94: 0 | BS94: 0 | BT94: 0 | BV94: P_3 | BW94: 3 | BX94: 0.03769911184 | BY94: 0.5545989223 | BZ94: -0.1682300832 | CA94: -0.8956218974
C95: 4 | D95: 400 | E95: 12.81769803 | F95: 0.2513274123 | G95: 0.2513274123 | H95: 0.989505621 | I95: 0.989505621 | J95: 2.663714546e-16 | K95: 7.951386704e-17 | L95: 2.779859832e-16 | M95: -1.860883259 | N95: -311.119542 | Q95: 2.513274123 | R95: 0.02 | S95: 0 | T95: 0.02 | U95: 0.0001 | V95: 0 | W95: 0.0001 | X95: 0.9900497512 | Y95: 0 | Z95: 0.0001527843883 | AA95: -0.01453029554 | AB95: 68.8179205 | AC95: 0.6529710992 | AD95: 0.4707966337 | AE95: 2.237779786e-16 | AF95: -1.236197425 | AG95: -313.0036531 | AH95: -1.609984068 | AI95: -1.169721895 | AJ95: 1.305942198 | AK95: 0.9415932674 | AL95: -1.236051666 | AM95: -0.00449022051 | AN95: 1.236059822 | AO95: -3.137959957 | AP95: 1.840789797 | AQ95: -0.8049920342 | AR95: -0.5848609476 | AS95: 2.766029684e-16 | AT95: -4.374157382 | AU95: -311.1628633 | AV95: -3.06000788e-18 | AW95: -1.100074643e-18 | AX95: 3.251739911e-18 | AY95: -2.796479254 | AZ95: -349.757684 | BB95: P_4 | BC95: 4 | BD95: 0.5026548246 | BE95: 0.8999814853 | BF95: 0.004471088389 | BG95: -0.8939140002 | BI95: 0.01791020794 | BJ95: -144 | BK95: -144 | BL95: 0 | BM95: =SUM(BL$92:BL95) -> 0 | BN95: -144 | BO95: 1e-09 | BP95: 1e-09 | BQ95: 0 | BR95: 0 | BS95: 0 | BT95: 0 | BV95: P_4 | BW95: 4 | BX95: 0.05026548246 | BY95: 0.7338241353 | BZ95: -0.0786211136 | CA95: -0.8956717966
C96: 5 | D96: 500 | E96: 16.02212253 | F96: 0.3141592654 | G96: 0.3141592654 | H96: 0.9836316431 | I96: 0.9836316431 | J96: 0.06966224707 | K96: -0.214398351 | L96: 0.225431767 | M96: -0.3141592654 | N96: -12.9396977 | Q96: 3.141592654 | R96: 0.02 | S96: 0 | T96: 0.02 | U96: 0.0001 | V96: 0 | W96: 0.0001 | X96: 0.9900497512 | Y96: 0 | Z96: 0.0001 | AA96: -2.450235652e-18 | AB96: 10000 | AC96: 0.9950248756 | AD96: 1.212957923e-16 | AE96: 0.2243102159 | AF96: -0.3141592654 | AG96: -12.98301893 | AH96: -1.990049751 | AI96: -2.438106378e-16 | AJ96: 1.990049751 | AK96: 2.425915846e-16 | AL96: -1 | AM96: -6.125742275e-19 | AN96: 1 | AO96: -3.141592654 | AP96: 0 | AQ96: -0.9950248756 | AR96: -1.219053189e-16 | AS96: 0.2243102159 | AT96: -3.455751919 | AU96: -12.98301893 | AV96: 2.133316925e-05 | AW96: -6.931566872e-06 | AX96: 2.243102159e-05 | AY96: -0.3141592654 | AZ96: -92.98301893 | BB96: P_5 | BC96: 5 | BD96: 0.6283185307 | BE96: 0.8999905346 | BF96: 0.004477564849 | BG96: -1.012834352e-16 | BI96: 0.01791025939 | BJ96: -180 | BK96: -180 | BL96: 0 | BM96: =SUM(BL$92:BL96) -> 0 | BN96: -180 | BO96: 1e-09 | BP96: 1e-09 | BQ96: 0 | BR96: 0 | BS96: 0 | BT96: 0 | BV96: P_5 | BW96: 5 | BX96: 0.06283185307 | BY96: 0.8549453974 | BZ96: -0.01804888521 | CA96: -0.8955094747
C97: 6 | D97: 600 | E97: 19.22654704 | F97: 0.3769911184 | G97: 0.3769911184 | H97: 0.9764807039 | I97: 0.9764807039 | J97: 2.4914345e-16 | K97: 8.481479151e-17 | L97: 2.631843604e-16 | M97: -1.898916222 | N97: -311.5947984 | Q97: 3.769911184 | R97: 0.02 | S97: 0 | T97: 0.02 | U97: 0.0001 | V97: 0 | W97: 0.0001 | X97: 0.9900497512 | Y97: 0 | Z97: 0.0001527843883 | AA97: 0.01453029554 | AB97: 68.8179205 | AC97: 0.6529710992 | AD97: -0.4707966337 | AE97: 2.118627116e-16 | AF97: -2.523602056 | AG97: -313.4789095 | AH97: -1.609984068 | AI97: 1.169721895 | AJ97: 1.305942198 | AK97: -0.9415932674 | AL97: -1.236051666 | AM97: 0.00449022051 | AN97: 1.236059822 | AO97: 3.137959957 | AP97: 1.840789797 | AQ97: -0.8049920342 | AR97: 0.5848609476 | AS97: 2.618749855e-16 | AT97: 0.6143579011 | AU97: -311.6381197 | AV97: 1.757254274e-18 | AW97: -2.527809919e-18 | AX97: 3.078597988e-18 | AY97: -0.9633202267 | AZ97: -350.2329404 | BB97: P_6 | BC97: 6 | BD97: 0.7539822369 | BE97: 0.8999944775 | BF97: 0.004484015903 | BG97: 0.8939140002 | BI97: 0.01791020923 | BJ97: 144 | BK97: -216 | BL97: 0 | BM97: =SUM(BL$92:BL97) -> 0 | BN97: -216 | BO97: 1e-09 | BP97: 1e-09 | BQ97: 0 | BR97: 0 | BS97: 0 | BT97: 0 | BV97: P_6 | BW97: 6 | BX97: 0.07539822369 | BY97: 0.9070188628 | BZ97: 0.007999294371 | CA97: -0.8953495849
C98: 7 | D98: 700 | E98: 22.43097155 | F98: 0.4398229715 | G98: 0.4398229715 | H98: 0.9680696988 | I98: 0.9680696988 | J98: 0.06747544381 | K98: -0.1433926171 | L98: 0.1584751658 | M98: -0.4398229715 | N98: -16.00077571 | Q98: 4.398229715 | R98: 0.02 | S98: 0 | T98: 0.02 | U98: 0.0001 | V98: 0 | W98: 0.0001 | X98: 0.9900497512 | Y98: 0 | Z98: 0.00104696567 | AA98: 0.0615375596 | AB98: 16.24788681 | AC98: 0.09951646298 | AD98: -0.2909683214 | AE98: 0.04873364913 | AF98: -1.68107283 | AG98: -26.24342136 | AH98: -0.6149591928 | AI98: 1.892649784 | AJ98: 0.199032926 | AK98: -0.5819366428 | AL98: -3.235301847 | AM98: 0.04978617616 | AN98: 3.23568489 | AO98: 3.12620545 | AP98: 10.19932442 | AQ98: -0.3074795964 | AR98: 0.9463248918 | AS98: 0.1576867321 | AT98: 1.445132621 | AU98: -16.04409694 | AV98: 0.002975118154 | AW98: -0.0003807563439 | AX98: 0.00299938384 | AY98: -0.1272883032 | AZ98: -50.45935905 | BB98: P_7 | BC98: 7 | BD98: 0.879645943 | BE98: 0.899996453 | BF98: 0.004497869111 | BG98: 0.8953658195 | BI98: 0.01790997168 | BJ98: 108 | BK98: -252 | BL98: 0 | BM98: =SUM(BL$92:BL98) -> 0 | BN98: -252 | BO98: 1e-09 | BP98: 1e-09 | BQ98: 0 | BR98: 0 | BS98: 0 | BT98: 0 | BV98: P_7 | BW98: 7 | BX98: 0.0879645943 | BY98: 0.9106747853 | BZ98: 0.009822044664 | CA98: -0.8954249469
C99: 8 | D99: 800 | E99: 25.63539605 | F99: 0.5026548246 | G99: 0.5026548246 | H99: 0.9584184823 | I99: 0.9584184823 | J99: 2.345659078e-16 | K99: 1.35173574e-16 | L99: 2.707269107e-16 | M99: -2.093585412 | N99: -311.3493714 | Q99: 5.026548246 | R99: 0.02 | S99: 0 | T99: 0.02 | U99: 0.0001 | V99: 0 | W99: 0.0001 | X99: 0.9900497512 | Y99: 0 | Z99: 0.00104696567 | AA99: -0.0615375596 | AB99: 16.24788681 | AC99: 0.09951646298 | AD99: 0.2909683214 | AE99: 8.325285677e-17 | AF99: -0.8523355539 | AG99: -321.5920171 | AH99: 0.6149591928 | AI99: 1.892649784 | AJ99: 0.199032926 | AK99: 0.5819366428 | AL99: 3.235301847 | AM99: 0.04978617616 | AN99: 3.23568489 | AO99: 0.01538720318 | AP99: 10.19932442 | AQ99: 0.3074795964 | AR99: 0.9463248918 | AS99: 2.693800107e-16 | AT99: -0.8369483507 | AU99: -311.3926927 | AV99: -3.799456529e-18 | AW99: -3.437830207e-18 | AX99: 5.123919052e-18 | AY99: -2.40612008 | AZ99: -345.8079548 | BB99: P_8 | BC99: 8 | BD99: 1.005309649 | BE99: 0.8999975371 | BF99: 0.004554273344 | BG99: 0.8954781053 | BI99: 0.01790886527 | BJ99: 72 | BK99: -288 | BL99: 0 | BM99: =SUM(BL$92:BL99) -> 0 | BN99: -288 | BO99: 1e-09 | BP99: 1e-09 | BQ99: 0 | BR99: 0 | BS99: 0 | BT99: 0 | BV99: P_8 | BW99: 8 | BX99: 0.1005309649 | BY99: 0.899152503 | BZ99: 0.004045128767 | CA99: -0.8956503114
C100: 9 | D100: 900 | E100: 28.83982056 | F100: 0.5654866776 | G100: 0.5654866776 | H100: 0.9475498118 | I100: 0.9475498118 | J100: 0.0646452465 | K100: -0.1018646088 | L100: 0.1206457891 | M100: -0.5654866776 | N100: -18.36975663 | Q100: 5.654866776 | R100: 0.02 | S100: 0 | T100: 0.02 | U100: 0.0001 | V100: 0 | W100: 0.0001 | X100: 0.9900497512 | Y100: 0 | Z100: 0.0001527843883 | AA100: -0.01453029554 | AB100: 68.8179205 | AC100: 0.6529710992 | AD100: 0.4707966337 | AE100: 0.09711954 | AF100: 0.05919915641 | AG100: -20.25386767 | AH100: 1.609984068 | AI100: 1.169721895 | AJ100: 1.305942198 | AK100: 0.9415932674 | AL100: 1.236051666 | AM100: 0.00449022051 | AN100: 1.236059822 | AO100: 0.00363269666 | AP100: 1.840789797 | AQ100: 0.8049920342 | AR100: 0.5848609476 | AS100: 0.1200455613 | AT100: 0.06283185307 | AU100: -18.41307787 | AV100: 9.830397592e-05 | AW100: -0.001407825675 | AX100: 0.001411253628 | AY100: -1.501082673 | AZ100: -57.00789857 | BB100: P_9 | BC100: 9 | BD100: 1.130973355 | BE100: 0.8999981655 | BF100: 0.005276867642 | BG100: 0.8955039655 | BI100: 0.01789442596 | BJ100: 36 | BK100: -324 | BL100: 0 | BM100: =SUM(BL$92:BL100) -> 0 | BN100: -324 | BO100: 1e-09 | BP100: 1e-09 | BQ100: 0 | BR100: 0 | BS100: 0 | BT100: 0 | BV100: P_9 | BW100: 9 | BX100: 0.1130973355 | BY100: 0.8943682331 | BZ100: 0.001648477088 | CA100: -0.8957130877
C101: 10 | D101: 1000 | E101: 32.04424507 | F101: 0.6283185307 | G101: 0.6283185307 | H101: 0.9354892838 | I101: 0.9354892838 | J101: 2.035554996e-16 | K101: 1.463055153e-16 | L101: 2.506793674e-16 | M101: -2.193995657 | N101: -312.0176282 | Q101: 6.283185307 | R101: 0.02 | S101: 0 | T101: 0.02 | U101: 0.0001 | V101: 0 | W101: 0.0001 | X101: 0.9900497512 | Y101: 0 | Z101: 0.0001 | AA101: -4.900471305e-18 | AB101: 10000 | AC101: 0.9950248756 | AD101: 2.425915846e-16 | AE101: 2.494322064e-16 | AF101: -2.193995657 | AG101: -312.0609494 | AH101: 1.990049751 | AI101: 4.876212756e-16 | AJ101: 1.990049751 | AK101: 4.851831692e-16 | AL101: 1 | AM101: 1.225148455e-18 | AN101: 1 | AO101: 1.225148455e-18 | AP101: 0 | AQ101: 0.9950248756 | AR101: 2.438106378e-16 | AS101: 2.494322064e-16 | AT101: -2.193995657 | AU101: -312.0609494 | AV101: -1.455776272e-20 | AW101: -2.025427857e-20 | AX101: 2.494322064e-20 | AY101: -2.193995657 | AZ101: -392.0609494 | BB101: P_10 | BC101: 10 | BD101: 1.256637061 | BE101: 0.8999985362 | BF101: 0.4499992681 | BG101: 0.8955129697 | BI101: 0.008999985362 | BJ101: 2.544443745e-14 | BK101: -360 | BL101: 0 | BM101: =SUM(BL$92:BL101) -> 0 | BN101: -360 | BO101: 1e-09 | BP101: 1e-09 | BQ101: 0 | BR101: 0 | BS101: 0 | BT101: 0 | BV101: P_10 | BW101: 10 | BX101: 0.1256637061 | BY101: 0.8983835702 | BZ101: 0.003670305173 | CA101: -0.8955039655
C102: 11 | D102: 1100 | E102: 35.24866957 | F102: 0.6911503838 | G102: 0.6911503838 | H102: 0.9222652619 | I102: 0.9222652619 | J102: 0.06124127136 | K102: -0.07402798035 | L102: 0.09607619473 | M102: -0.6911503838 | N102: -20.34768413 | Q102: 6.911503838 | R102: 0.02 | S102: 0 | T102: 0.02 | U102: 0.0001 | V102: 0 | W102: 0.0001 | X102: 0.9900497512 | Y102: 0 | Z102: 0.0001527843883 | AA102: 0.01453029554 | AB102: 68.8179205 | AC102: 0.6529710992 | AD102: -0.4707966337 | AE102: 0.07734108175 | AF102: -1.315836218 | AG102: -22.23179516 | AH102: 1.609984068 | AI102: -1.169721895 | AJ102: 1.305942198 | AK102: -0.9415932674 | AL102: 1.236051666 | AM102: -0.00449022051 | AN102: 1.236059822 | AO102: -0.00363269666 | AP102: 1.840789797 | AQ102: 0.8049920342 | AR102: -0.5848609476 | AS102: 0.09559820371 | AT102: -1.319468915 | AU102: -20.39100536 | AV102: 0.001090440661 | AW102: 0.0002719926573 | AX102: 0.001123850898 | AY102: 0.2444456113 | AZ102: -58.98582606 | BB102: P_11 | BC102: 11 | BD102: 1.382300768 | BE102: 0.8999987453 | BF102: 0.8947215878 | BG102: 0.895516893 | BI102: 0.0001055431506 | BJ102: -36 | BK102: -36 | BL102: 1 | BM102: =SUM(BL$92:BL102) -> 1 | BN102: -396 | BO102: 1e-09 | BP102: 1e-09 | BQ102: 0 | BR102: 0 | BS102: 0 | BT102: 0 | BV102: P_11 | BW102: 11 | BX102: 0.1382300768 | BY102: 0.9027892249 | BZ102: 0.005887122074 | CA102: -0.8952983208
C103: 12 | D103: 1200 | E103: 38.45309408 | F103: 0.7539822369 | G103: 0.7539822369 | H103: 0.9079087974 | I103: 0.9079087974 | J103: 1.749305075e-16 | K103: 1.643286585e-16 | L103: 2.400095633e-16 | M103: -2.324954657 | N103: -312.3954291 | Q103: 7.539822369 | R103: 0.02 | S103: 0 | T103: 0.02 | U103: 0.0001 | V103: 0 | W103: 0.0001 | X103: 0.9900497512 | Y103: 0 | Z103: 0.00104696567 | AA103: 0.0615375596 | AB103: 16.24788681 | AC103: 0.09951646298 | AD103: -0.2909683214 | AE103: 7.380678094e-17 | AF103: -3.566204515 | AG103: -322.6380747 | AH103: 0.6149591928 | AI103: -1.892649784 | AJ103: 0.199032926 | AK103: -0.5819366428 | AL103: 3.235301847 | AM103: -0.04978617616 | AN103: 3.23568489 | AO103: -0.01538720318 | AP103: 10.19932442 | AQ103: 0.3074795964 | AR103: -0.9463248918 | AS103: 2.388154859e-16 | AT103: -3.581591718 | AU103: -312.4387503 | AV103: -1.941520311e-18 | AW103: -4.106729521e-18 | AX103: 4.542546475e-18 | AY103: -2.012419988 | AZ103: -346.8540124 | BB103: P_12 | BC103: 12 | BD103: 1.507964474 | BE103: 0.89999884 | BF103: 0.8954439152 | BG103: 0.8955188587 | BI103: 9.109849676e-05 | BJ103: -72 | BK103: -72 | BL103: 0 | BM103: =SUM(BL$92:BL103) -> 1 | BN103: -432 | BO103: 1e-09 | BP103: 1e-09 | BQ103: 0 | BR103: 0 | BS103: 0 | BT103: 0 | BV103: P_12 | BW103: 12 | BX103: 0.1507964474 | BY103: 0.902292228 | BZ103: 0.005632328851 | CA103: -0.8953975151
C104: 13 | D104: 1300 | E104: 41.65751859 | F104: 0.8168140899 | G104: 0.8168140899 | H104: 0.8924535416 | I104: 0.8924535416 | J104: 0.05734607933 | K104: -0.05385155295 | L104: 0.07866741746 | M104: -0.8168140899 | N104: -22.08410214 | Q104: 8.168140899 | R104: 0.02 | S104: 0 | T104: 0.02 | U104: 0.0001 | V104: 0 | W104: 0.0001 | X104: 0.9900497512 | Y104: 0 | Z104: 0.00104696567 | AA104: -0.0615375596 | AB104: 16.24788681 | AC104: 0.09951646298 | AD104: 0.2909683214 | AE104: 0.02419148957 | AF104: 0.4244357683 | AG104: -32.32674779 | AH104: -0.6149591928 | AI104: -1.892649784 | AJ104: 0.199032926 | AK104: 0.5819366428 | AL104: -3.235301847 | AM104: -0.04978617616 | AN104: 3.23568489 | AO104: -3.12620545 | AP104: 10.19932442 | AQ104: -0.3074795964 | AR104: -0.9463248918 | AS104: 0.07827603727 | AT104: -2.701769682 | AU104: -22.12742337 | AV104: 0.0006361308887 | AW104: -0.001346165926 | AX104: 0.001488900671 | AY104: -1.129348758 | AZ104: -56.54268549 | BB104: P_13 | BC104: 13 | BD104: 1.63362818 | BE104: 0.89999884 | BF104: 0.8954997774 | BG104: 0.8955199374 | BI104: 8.998125274e-05 | BJ104: -108 | BK104: -108 | BL104: 0 | BM104: =SUM(BL$92:BL104) -> 1 | BN104: -468 | BO104: 1e-09 | BP104: 1e-09 | BQ104: 0 | BR104: 0 | BS104: 0 | BT104: 0 | BV104: P_13 | BW104: 13 | BX104: 0.163362818 | BY104: 0.8991662314 | BZ104: 0.004050194492 | CA104: -0.8956917815
C105: 14 | D105: 1400 | E105: 44.86194309 | F105: 0.879645943 | G105: 0.879645943 | H105: 0.8759356522 | I105: 0.8759356522 | J105: 1.544840845e-16 | K105: 1.817459818e-16 | L105: 2.385307827e-16 | M105: -2.437098589 | N105: -312.4491113 | Q105: 8.79645943 | R105: 0.02 | S105: 0 | T105: 0.02 | U105: 0.0001 | V105: 0 | W105: 0.0001 | X105: 0.9900497512 | Y105: 0 | Z105: 0.0001527843883 | AA105: -0.01453029554 | AB105: 68.8179205 | AC105: 0.6529710992 | AD105: 0.4707966337 | AE105: 1.920166469e-16 | AF105: -1.812412755 | AG105: -314.3332224 | AH105: -1.609984068 | AI105: -1.169721895 | AJ105: 1.305942198 | AK105: 0.9415932674 | AL105: -1.236051666 | AM105: -0.00449022051 | AN105: 1.236059822 | AO105: -3.137959957 | AP105: 1.840789797 | AQ105: -0.8049920342 | AR105: -0.5848609476 | AS105: 2.373440623e-16 | AT105: -4.950372712 | AU105: -312.4924326 | AV105: -2.716033905e-18 | AW105: 6.390990875e-19 | AX105: 2.790212862e-18 | AY105: 2.910490723 | AZ105: -351.0872533 | BB105: P_14 | BC105: 14 | BD105: 1.759291886 | BE105: 0.8999987453 | BF105: 0.8955125955 | BG105: 0.8955205627 | BI105: 8.972299631e-05 | BJ105: -144 | BK105: -144 | BL105: 0 | BM105: =SUM(BL$92:BL105) -> 1 | BN105: -504 | BO105: 1e-09 | BP105: 1e-09 | BQ105: 0 | BR105: 0 | BS105: 0 | BT105: 0 | BV105: P_14 | BW105: 14 | BX105: 0.1759291886 | BY105: 0.8979759704 | BZ105: 0.003449560151 | CA105: -0.8957725409
C106: 15 | D106: 1500 | E106: 48.0663676 | F106: 0.9424777961 | G106: 0.9424777961 | H106: 0.8583936913 | I106: 0.8583936913 | J106: 0.05305246051 | K106: -0.03854486878 | L106: 0.06557644757 | M106: -0.9424777961 | N106: -23.66504228 | Q106: 9.424777961 | R106: 0.02 | S106: 0 | T106: 0.02 | U106: 0.0001 | V106: 0 | W106: 0.0001 | X106: 0.9900497512 | Y106: 0 | Z106: 0.0001 | AA106: -7.350706957e-18 | AB106: 10000 | AC106: 0.9950248756 | AD106: 3.638873769e-16 | AE106: 0.06525019658 | AF106: -0.9424777961 | AG106: -23.70836351 | AH106: -1.990049751 | AI106: -7.314319134e-16 | AJ106: 1.990049751 | AK106: 7.277747538e-16 | AL106: -1 | AM106: -1.837722682e-18 | AN106: 1 | AO106: -3.141592654 | AP106: 0 | AQ106: -0.9950248756 | AR106: -3.657159567e-16 | AS106: 0.06525019658 | AT106: -4.08407045 | AU106: -23.70836351 | AV106: 3.835310326e-06 | AW106: -5.278851792e-06 | AX106: 6.525019658e-06 | AY106: -0.9424777961 | AZ106: -103.7083635 | BB106: P_15 | BC106: 15 | BD106: 1.884955592 | BE106: 0.8999985362 | BF106: 0.8955169705 | BG106: 0.8955209315 | BI106: 8.963131299e-05 | BJ106: -180 | BK106: -180 | BL106: 0 | BM106: =SUM(BL$92:BL106) -> 1 | BN106: -540 | BO106: 1e-09 | BP106: 1e-09 | BQ106: 0 | BR106: 0 | BS106: 0 | BT106: 0 | BV106: P_15 | BW106: 15 | BX106: 0.1884955592 | BY106: 0.8996017789 | BZ106: 0.004279544636 | CA106: -0.8954947535
C107: 16 | D107: 1600 | E107: 51.27079211 | F107: 1.005309649 | G107: 1.005309649 | H107: 0.8398685183 | I107: 0.8398685183 | J107: 1.232464939e-16 | K107: 1.967968209e-16 | L107: 2.322039771e-16 | M107: -2.582085897 | N107: -312.6826069 | Q107: 10.05309649 | R107: 0.02 | S107: 0 | T107: 0.02 | U107: 0.0001 | V107: 0 | W107: 0.0001 | X107: 0.9900497512 | Y107: 0 | Z107: 0.0001527843883 | AA107: 0.01453029554 | AB107: 68.8179205 | AC107: 0.6529710992 | AD107: -0.4707966337 | AE107: 1.869235852e-16 | AF107: -3.206771732 | AG107: -314.566718 | AH107: -1.609984068 | AI107: 1.169721895 | AJ107: 1.305942198 | AK107: -0.9415932674 | AL107: -1.236051666 | AM107: 0.00449022051 | AN107: 1.236059822 | AO107: 3.137959957 | AP107: 1.840789797 | AQ107: -0.8049920342 | AR107: 0.5848609476 | AS107: 2.310487334e-16 | AT107: -0.06881177461 | AU107: -312.7259282 | AV107: -2.054029999e-19 | AW107: -2.708427522e-18 | AX107: 2.71620508e-18 | AY107: -1.646489902 | AZ107: -351.3207489 | BB107: P_16 | BC107: 16 | BD107: 2.010619298 | BE107: 0.8999981655 | BF107: 0.895518737 | BG107: 0.8955211396 | BI107: 8.958856975e-05 | BJ107: 144 | BK107: -216 | BL107: 0 | BM107: =SUM(BL$92:BL107) -> 1 | BN107: -576 | BO107: 1e-09 | BP107: 1e-09 | BQ107: 0 | BR107: 0 | BS107: 0 | BT107: 0 | BV107: P_16 | BW107: 16 | BX107: 0.2010619298 | BY107: 0.9013089006 | BZ107: 0.005149990418 | CA107: -0.8952221998
C108: 17 | D108: 1700 | E108: 54.47521661 | F108: =NH_*PI()*tr_/T_ -> 1.068141502 | G108: =NH_*PI()*tf_/T_ -> 1.068141502 | H108: =SIN(Rad_tr)/Rad_tr -> 0.8204031753 | I108: =SIN(Rad_tf)/Rad_tf -> 0.8204031753 | J108: 0.04846041864 | K108: -0.02664134059 | L108: 0.05530075228 | M108: -1.068141502 | N108: -25.14537921 | Q108: 10.68141502 | R108: 0.02 | S108: 0 | T108: 0.02 | U108: 0.0001 | V108: 0 | W108: 0.0001 | X108: 0.9900497512 | Y108: 0 | Z108: 0.00104696567 | AA108: 0.0615375596 | AB108: 16.24788681 | AC108: 0.09951646298 | AD108: -0.2909683214 | AE108: 0.01700586616 | AF108: -2.30939136 | AG108: -35.38802487 | AH108: -0.6149591928 | AI108: 1.892649784 | AJ108: 0.199032926 | AK108: -0.5819366428 | AL108: -3.235301847 | AM108: 0.04978617616 | AN108: 3.23568489 | AO108: 3.12620545 | AP108: 10.19932442 | AQ108: -0.3074795964 | AR108: 0.9463248918 | AS108: 0.05502562416 | AT108: 0.8168140899 | AU108: -25.18870045 | AV108: 0.0007618107055 | AW108: -0.0007177204606 | AX108: 0.00104665095 | AY108: -0.7556068339 | AZ108: -59.60396256 | BB108: P_17 | BC108: 17 | BD108: =4*PI()*N_/100 -> 2.136283004 | BE108: 0.8999975371 | BF108: 0.8955194007 | BG108: 0.8955212339 | BI108: =SUMPRODUCT(Is,SIN(Fi_Is+NH_*BD108+NH_*Ofs_))+DC_/(R_s+R_l) -> 8.956272652e-05 | BJ108: 108 | BK108: -252 | BL108: 0 | BM108: =SUM(BL$92:BL108) -> 1 | BN108: -612 | BO108: 1e-09 | BP108: 1e-09 | BQ108: 0 | BR108: 0 | BS108: 0 | BT108: 0 | BV108: P_17 | BW108: 17 | BX108: 0.2136283004 | BY108: 0.9009802944 | BZ108: 0.004978140258 | CA108: -0.8953577931
C109: 18 | D109: =fo_*NH_ -> 1800 | E109: =NH_*PI()*(2*Duty_cycle/100*T_+tr_)/T_ -> 57.67964112 | F109: 1.130973355 | G109: 1.130973355 | H109: 0.8000427669 | I109: 0.8000427669 | J109: =-(High_-Low_)/PI()/NH_*(Y_*SIN(Rad_t)-X_*SIN(Rad_tr)) -> 9.541664044e-17 | K109: =(High_-Low_)/PI()/NH_*(Y_*COS(Rad_t)-X_*COS(Rad_tr)) -> 1.99668155e-16 | L109: =SQRT(ReVs^2+ImVs^2) -> 2.212955205e-16 | M109: -2.69580029 | N109: -313.1005475 | Q109: 11.30973355 | R109: 0.02 | S109: 0 | T109: 0.02 | U109: 0.0001 | V109: 0 | W109: 0.0001 | X109: 0.9900497512 | Y109: =-2*Y_0*ImYl/(Y_0^2+Yl^2+2*Y_0*ReYl) -> 0 | Z109: 0.00104696567 | AA109: -0.0615375596 | AB109: 16.24788681 | AC109: 0.09951646298 | AD109: 0.2909683214 | AE109: =SQRT(ReVin^2+ImVin^2)*Vs -> 6.805191336e-17 | AF109: -1.454550431 | AG109: -323.3431932 | AH109: 0.6149591928 | AI109: 1.892649784 | AJ109: 0.199032926 | AK109: 0.5819366428 | AL109: 3.235301847 | AM109: 0.04978617616 | AN109: =SQRT(ReVoi^2+ImVoi^2) -> 3.23568489 | AO109: 0.01538720318 | AP109: 10.19932442 | AQ109: =ReVin*ReVoi-ImVin*ImVoi -> 0.3074795964 | AR109: =ImVin*ReVoi+ReVin*ImVoi -> 0.9463248918 | AS109: =SQRT(ReVout^2+ImVout^2)*Vs -> 2.201945478e-16 | AT109: -1.439163228 | AU109: -313.1438688 | AV109: =(Vs*COS(Fi_Vs)-Vin*COS(Fi_Vin))/R_s -> -4.151222123e-18 | AW109: =(Vs*SIN(Fi_Vs)-Vin*SIN(Fi_Vin))/R_s -> -5.564801195e-19 | AX109: =SQRT(ReIs^2+ImIs^2) -> 4.188354717e-18 | AY109: -3.008334958 | AZ109: -347.5591309 | BB109: P_18 | BC109: 18 | BD109: 2.261946711 | BE109: 0.899996453 | BF109: 0.8955193953 | BG109: 0.8955212339 | BI109: 8.954115308e-05 | BJ109: 72 | BK109: -288 | BL109: 0 | BM109: =SUM(BL$92:BL109) -> 1 | BN109: -648 | BO109: 1e-09 | BP109: 1e-09 | BQ109: 0 | BR109: 0 | BS109: 0 | BT109: 0 | BV109: P_18 | BW109: 18 | BX109: 0.2261946711 | BY109: 0.8994985278 | BZ109: 0.004214258216 | CA109: -0.895755837
C110: 19 | D110: 1900 | E110: 60.88406563 | F110: 1.193805208 | G110: 1.193805208 | H110: 0.7788343353 | I110: 0.7788343353 | J110: 0.04367397037 | K110: -0.01729174812 | L110: 0.04697254774 | M110: -1.193805208 | N110: -26.56311767 | Q110: 11.93805208 | R110: 0.02 | S110: 0 | T110: 0.02 | U110: 0.0001 | V110: 0 | W110: 0.0001 | X110: 0.9900497512 | Y110: 0 | Z110: 0.0001527843883 | AA110: -0.01453029554 | AB110: 68.8179205 | AC110: 0.6529710992 | AD110: 0.4707966337 | AE110: 0.03781277625 | AF110: -0.5691193743 | AG110: -28.4472287 | AH110: 1.609984068 | AI110: 1.169721895 | AJ110: 1.305942198 | AK110: 0.9415932674 | AL110: 1.236051666 | AM110: 0.00449022051 | AN110: 1.236059822 | AO110: 0.00363269666 | AP110: 1.840789797 | AQ110: 0.8049920342 | AR110: 0.5848609476 | AS110: 0.04673885347 | AT110: -0.5654866776 | AU110: -26.60643891 | AV110: -0.0002912164377 | AW110: -0.0004659405348 | AX110: 0.0005494611865 | AY110: -2.129401203 | AZ110: -65.20125961 | BB110: P_19 | BC110: 19 | BD110: 2.387610417 | BE110: 0.8999944775 | BF110: 0.8955187187 | BG110: 0.8955211396 | BI110: 8.951517581e-05 | BJ110: 36 | BK110: -324 | BL110: 0 | BM110: =SUM(BL$92:BL110) -> 1 | BN110: -684 | BO110: 1e-09 | BP110: 1e-09 | BQ110: 0 | BR110: 0 | BS110: 0 | BT110: 0 | BV110: P_19 | BW110: 19 | BX110: 0.2387610417 | BY110: 0.8989607898 | BZ110: 0.003938758889 | CA110: -0.8958627942
C111: 20 | D111: 2000 | E111: 64.08849013 | F111: 1.256637061 | G111: 1.256637061 | H111: 0.7568267286 | I111: 0.7568267286 | J111: 6.361109363e-17 | K111: 1.971943903e-16 | L111: 2.072003832e-16 | M111: -2.829550532 | N111: -313.6721889 | Q111: 12.56637061 | R111: 0.02 | S111: 0 | T111: 0.02 | U111: 0.0001 | V111: 0 | W111: 0.0001 | X111: 0.9900497512 | Y111: 0 | Z111: 0.0001 | AA111: -9.80094261e-18 | AB111: 10000 | AC111: 0.9950248756 | AD111: 4.851831692e-16 | AE111: 2.061695355e-16 | AF111: -2.829550532 | AG111: -313.7155102 | AH111: 1.990049751 | AI111: 9.752425512e-16 | AJ111: 1.990049751 | AK111: 9.703663384e-16 | AL111: 1 | AM111: 2.45029691e-18 | AN111: 1 | AO111: 2.45029691e-18 | AP111: 0 | AQ111: 0.9950248756 | AR111: 4.876212756e-16 | AS111: 2.061695355e-16 | AT111: -2.829550532 | AU111: -313.7155102 | AV111: -1.962133236e-20 | AW111: -6.329462053e-21 | AX111: 2.061695355e-20 | AY111: -2.829550532 | AZ111: -393.7155102 | BB111: P_20 | BC111: 20 | BD111: 2.513274123 | BE111: 0.8999905346 | BF111: 0.8955169307 | BG111: 0.8955209315 | BI111: 8.947207713e-05 | BJ111: 2.544443745e-14 | BK111: -360 | BL111: 0 | BM111: =SUM(BL$92:BL111) -> 1 | BN111: -720 | BO111: 1e-09 | BP111: 1e-09 | BQ111: 0 | BR111: 0 | BS111: 0 | BT111: 0 | BV111: P_20 | BW111: 20 | BX111: 0.2513274123 | BY111: 0.8998426486 | BZ111: 0.00440015544 | CA111: -0.8954781053
C112: 21 | D112: 2100 | E112: 67.29291464 | F112: 1.319468915 | G112: 1.319468915 | H112: 0.7340704661 | I112: 0.7340704661 | J112: 0.03879788035 | K112: -0.009961602548 | L112: 0.0400563234 | M112: -1.319468915 | N112: -27.9465783 | Q112: 13.19468915 | R112: 0.02 | S112: 0 | T112: 0.02 | U112: 0.0001 | V112: 0 | W112: 0.0001 | X112: 0.9900497512 | Y112: 0 | Z112: 0.0001527843883 | AA112: 0.01453029554 | AB112: 68.8179205 | AC112: 0.6529710992 | AD112: -0.4707966337 | AE112: 0.03224523402 | AF112: -1.944154749 | AG112: -29.83068934 | AH112: 1.609984068 | AI112: -1.169721895 | AJ112: 1.305942198 | AK112: -0.9415932674 | AL112: 1.236051666 | AM112: -0.00449022051 | AN112: 1.236059822 | AO112: -0.00363269666 | AP112: 1.840789797 | AQ112: 0.8049920342 | AR112: -0.5848609476 | AS112: 0.03985703821 | AT112: -1.947787445 | AU112: -27.98989954 | AV112: 0.0004344575089 | AW112: -0.0001754819365 | AX112: 0.0004685586805 | AY112: -0.3838729194 | AZ112: -66.58472024 | BB112: P_21 | BC112: 21 | BD112: 2.638937829 | BE112: 0.8999814853 | BF112: 0.8955125096 | BG112: 0.8955205627 | BI112: 8.937951419e-05 | BJ112: -36 | BK112: -36 | BL112: 1 | BM112: =SUM(BL$92:BL112) -> 2 | BN112: -756 | BO112: 1e-09 | BP112: 1e-09 | BQ112: 0 | BR112: 0 | BS112: 0 | BT112: 0 | BV112: P_21 | BW112: 21 | BX112: 0.2638937829 | BY112: 0.9007552738 | BZ112: 0.004876706896 | CA112: -0.895101847
C113: 22 | D113: 2200 | E113: 70.49733915 | F113: 1.382300768 | G113: 1.382300768 | H113: 0.7106175977 | I113: 0.7106175977 | J113: 8.385098706e-17 | K113: 4.481690688e-16 | L113: 4.559457229e-16 | M113: -2.956634263 | N113: -306.8217371 | Q113: 13.82300768 | R113: 0.02 | S113: 0 | T113: 0.02 | U113: 0.0001 | V113: 0 | W113: 0.0001 | X113: 0.9900497512 | Y113: 0 | Z113: 0.00104696567 | AA113: 0.0615375596 | AB113: 16.24788681 | AC113: 0.09951646298 | AD113: -0.2909683214 | AE113: 1.402106051e-16 | AF113: -4.197884122 | AG113: -317.0643827 | AH113: 0.6149591928 | AI113: -1.892649784 | AJ113: 0.199032926 | AK113: -0.5819366428 | AL113: 3.235301847 | AM113: -0.04978617616 | AN113: 3.23568489 | AO113: -0.01538720318 | AP113: 10.19932442 | AQ113: 0.3074795964 | AR113: -0.9463248918 | AS113: 4.536773362e-16 | AT113: -4.213271325 | AU113: -306.8650583 | AV113: -7.583417745e-18 | AW113: -4.118188701e-18 | AX113: 8.629467126e-18 | AY113: -2.644099595 | AZ113: -341.2803204 | BB113: P_22 | BC113: 22 | BD113: 2.764601535 | BE113: 0.8999554958 | BF113: 0.8954995618 | BG113: 0.8955199374 | BI113: 8.911868118e-05 | BJ113: -72 | BK113: -72 | BL113: 0 | BM113: =SUM(BL$92:BL113) -> 2 | BN113: -792 | BO113: 1e-09 | BP113: 1e-09 | BQ113: 0 | BR113: 0 | BS113: 0 | BT113: 0 | BV113: P_22 | BW113: 22 | BX113: 0.2764601535 | BY113: 0.9005413347 | BZ113: 0.004760718336 | CA113: -0.8952971948
C114: 23 | D114: 2300 | E114: 73.70176365 | F114: 1.445132621 | G114: 1.445132621 | H114: 0.6865215601 | I114: 0.6865215601 | J114: 0.03393445338 | K114: -0.004286918404 | L114: 0.03420416343 | M114: -1.445132621 | N114: -29.31842054 | Q114: 14.45132621 | R114: 0.02 | S114: 0 | T114: 0.02 | U114: 0.0001 | V114: 0 | W114: 0.0001 | X114: 0.9900497512 | Y114: 0 | Z114: 0.00104696567 | AA114: -0.0615375596 | AB114: 16.24788681 | AC114: 0.09951646298 | AD114: 0.2909683214 | AE114: 0.01051832753 | AF114: -0.2038827624 | AG114: -39.56106619 | AH114: -0.6149591928 | AI114: -1.892649784 | AJ114: 0.199032926 | AK114: 0.5819366428 | AL114: -3.235301847 | AM114: -0.04978617616 | AN114: 3.23568489 | AO114: -3.12620545 | AP114: 10.19932442 | AQ114: -0.3074795964 | AR114: -0.9463248918 | AS114: 0.03403399346 | AT114: -3.330088213 | AU114: -29.36174178 | AV114: -0.0001202710298 | AW114: -0.0006360954812 | AX114: 0.0006473658794 | AY114: -1.757667289 | AZ114: -63.77700389 | BB114: P_23 | BC114: 23 | BD114: 2.890265241 | BE114: 0.8998426486 | BF114: 0.8954431381 | BG114: 0.8955188587 | BI114: 8.799020858e-05 | BJ114: -108 | BK114: -108 | BL114: 0 | BM114: =SUM(BL$92:BL114) -> 2 | BN114: -828 | BO114: 1e-09 | BP114: 1e-09 | BQ114: 0 | BR114: 0 | BS114: 0 | BT114: 0 | BV114: P_23 | BW114: 23 | BX114: 0.2890265241 | BY114: 0.8996743868 | BZ114: 0.004299729793 | CA114: -0.8958626106
C115: 24 | D115: 2400 | E115: 76.90618816 | F115: 1.507964474 | G115: 1.507964474 | H115: 0.6618370299 | I115: 0.6618370299 | J115: 1.060184894e-17 | K115: 1.794031625e-16 | L115: 1.797161482e-16 | M115: -3.082566195 | N115: -314.908258 | Q115: 15.07964474 | R115: 0.02 | S115: 0 | T115: 0.02 | U115: 0.0001 | V115: 0 | W115: 0.0001 | X115: 0.9900497512 | Y115: 0 | Z115: 0.0001527843883 | AA115: -0.01453029554 | AB115: 68.8179205 | AC115: 0.6529710992 | AD115: 0.4707966337 | AE115: 1.446710223e-16 | AF115: -2.457880361 | AG115: -316.792369 | AH115: -1.609984068 | AI115: -1.169721895 | AJ115: 1.305942198 | AK115: 0.9415932674 | AL115: -1.236051666 | AM115: -0.00449022051 | AN115: 1.236059822 | AO115: -3.137959957 | AP115: 1.840789797 | AQ115: -0.8049920342 | AR115: -0.5848609476 | AS115: 1.78822038e-16 | AT115: -5.595840318 | AU115: -314.9515792 | AV115: -1.344987941e-18 | AW115: 1.61566514e-18 | AX115: 2.102228914e-18 | AY115: 2.265023117 | AZ115: -353.5463999 | BB115: P_24 | BC115: 24 | BD115: 3.015928947 | BE115: 0.8983835702 | BF115: 0.8947135521 | BG115: 0.895516893 | BI115: 7.340036335e-05 | BJ115: -144 | BK115: -144 | BL115: 0 | BM115: =SUM(BL$92:BL115) -> 2 | BN115: -864 | BO115: 1e-09 | BP115: 1e-09 | BQ115: 0 | BR115: 0 | BS115: 0 | BT115: 0 | BV115: P_24 | BW115: 24 | BX115: 0.3015928947 | BY115: 0.8993688828 | BZ115: 0.004139039846 | CA115: -0.8960097725
C116: 25 | D116: 2500 | E116: 80.11061267 | F116: 1.570796327 | G116: 1.570796327 | H116: 0.6366197724 | I116: 0.6366197724 | J116: 0.02918050089 | K116: -6.915338402e-17 | L116: 0.02918050089 | M116: -1.570796327 | N116: -30.69814515 | Q116: 15.70796327 | R116: 0.02 | S116: 0 | T116: 0.02 | U116: 0.0001 | V116: 0 | W116: 0.0001 | X116: 0.9900497512 | Y116: 0 | Z116: 0.0001 | AA116: -1.225117826e-17 | AB116: 10000 | AC116: 0.9950248756 | AD116: 6.064789615e-16 | AE116: 0.02903532427 | AF116: -1.570796327 | AG116: -30.74146639 | AH116: -1.990049751 | AI116: -1.219053189e-15 | AJ116: 1.990049751 | AK116: 1.212957923e-15 | AL116: -1 | AM116: -3.062871137e-18 | AN116: 1 | AO116: -3.141592654 | AP116: 0 | AQ116: -0.9950248756 | AR116: -6.095265945e-16 | AS116: 0.02903532427 | AT116: -4.71238898 | AU116: -30.74146639 | AV116: -3.795585126e-19 | AW116: -2.903532427e-06 | AX116: 2.903532427e-06 | AY116: -1.570796327 | AZ116: -110.7414664 | BB116: P_25 | BC116: 25 | BD116: 3.141592654 | BE116: -5.588640971e-15 | BF116: 0.4455216634 | BG116: 0.8955129697 | BI116: -0.008910433268 | BJ116: -180 | BK116: -180 | BL116: 0 | BM116: =SUM(BL$92:BL116) -> 2 | BN116: -900 | BO116: 1e-09 | BP116: 1e-09 | BQ116: 0 | BR116: 0 | BS116: 0 | BT116: 0 | BV116: P_25 | BW116: 25 | BX116: 0.3141592654 | BY116: 0.8999218453 | BZ116: 0.004439984503 | CA116: -0.8954446222
C117: 26 | D117: 2600 | E117: 83.31503717 | F117: 1.63362818 | G117: 1.63362818 | H117: 0.6109264891 | I117: 0.6109264891 | J117: 2.446580524e-18 | K117: -1.972555548e-17 | L117: 1.987670232e-17 | M117: -0.1234007964 | N117: -334.0331133 | Q117: 16.3362818 | R117: 0.02 | S117: 0 | T117: 0.02 | U117: 0.0001 | V117: 0 | W117: 0.0001 | X117: 0.9900497512 | Y117: 0 | Z117: 0.0001527843883 | AA117: 0.01453029554 | AB117: 68.8179205 | AC117: 0.6529710992 | AD117: -0.4707966337 | AE117: 1.600069261e-17 | AF117: -0.7480866304 | AG117: -335.9172244 | AH117: -1.609984068 | AI117: 1.169721895 | AJ117: 1.305942198 | AK117: -0.9415932674 | AL117: -1.236051666 | AM117: 0.00449022051 | AN117: 1.236059822 | AO117: 3.137959957 | AP117: 1.840789797 | AQ117: -0.8049920342 | AR117: 0.5848609476 | AS117: 1.977781325e-17 | AT117: 2.389873327 | AU117: -334.0764346 | AV117: 1.599435942e-19 | AW117: 1.687538193e-19 | AX117: 2.325076447e-19 | AY117: 0.8121951988 | AZ117: -372.6712553 | BB117: P_26 | BC117: 26 | BD117: 3.26725636 | BE117: -0.8983835702 | BF117: -0.003670305173 | BG117: 0.8955039655 | BI117: -0.0178942653 | BJ117: 144 | BK117: -216 | BL117: 0 | BM117: =SUM(BL$92:BL117) -> 2 | BN117: -936 | BO117: 1e-09 | BP117: 1e-09 | BQ117: 0 | BR117: 0 | BS117: 3.30872245e-24 | BT117: 3.30872245e-13 | BV117: P_26 | BW117: 26 | BX117: 0.326725636 | BY117: 0.9004898213 | BZ117: 0.004748164317 | CA117: -0.8948944107
C118: 27 | D118: 2700 | E118: 86.51946168 | F118: 1.696460033 | G118: 1.696460033 | H118: 0.5848146623 | I118: 0.5848146623 | J118: 0.02462458963 | K118: 0.003110809102 | L118: 0.02482030515 | M118: -1.696460033 | N118: -32.10385767 | Q118: 16.96460033 | R118: 0.02 | S118: 0 | T118: 0.02 | U118: 0.0001 | V118: 0 | W118: 0.0001 | X118: 0.9900497512 | Y118: 0 | Z118: 0.00104696567 | AA118: 0.0615375596 | AB118: 16.24788681 | AC118: 0.09951646298 | AD118: -0.2909683214 | AE118: 0.007632640966 | AF118: -2.937709891 | AG118: -42.34650332 | AH118: -0.6149591928 | AI118: 1.892649784 | AJ118: 0.199032926 | AK118: -0.5819366428 | AL118: -3.235301847 | AM118: 0.04978617616 | AN118: 3.23568489 | AO118: 3.12620545 | AP118: 10.19932442 | AQ118: -0.3074795964 | AR118: 0.9463248918 | AS118: 0.02469682104 | AT118: 0.1884955592 | AU118: -32.1471789 | AV118: 8.727486252e-05 | AW118: -0.0004615836894 | AX118: 0.0004697620716 | AY118: -1.383925365 | AZ118: -66.56244102 | BB118: P_27 | BC118: 27 | BD118: 3.392920066 | BE118: -0.8998426486 | BF118: -0.00440015544 | BG118: 0.8954781053 | BI118: -0.01790884986 | BJ118: 108 | BK118: -252 | BL118: 0 | BM118: =SUM(BL$92:BL118) -> 2 | BN118: -972 | BO118: 1e-09 | BP118: 1e-09 | BQ118: 0 | BR118: 0 | BS118: 0 | BT118: 0 | BV118: P_27 | BW118: 27 | BX118: 0.3392920066 | BY118: 0.9003419236 | BZ118: 0.004663435665 | CA118: -0.8951983948
C119: 28 | D119: 2800 | E119: 89.72388619 | F119: 1.759291886 | G119: 1.759291886 | H119: 0.5583423982 | I119: 0.5583423982 | J119: -2.953372204e-17 | K119: 1.505083912e-16 | L119: 1.533786705e-16 | M119: -3.335357147 | N119: -316.2847006 | Q119: 17.59291886 | R119: 0.02 | S119: 0 | T119: 0.02 | U119: 0.0001 | V119: 0 | W119: 0.0001 | X119: 0.9900497512 | Y119: 0 | Z119: 0.00104696567 | AA119: -0.0615375596 | AB119: 16.24788681 | AC119: 0.09951646298 | AD119: 0.2909683214 | AE119: 4.716639528e-17 | AF119: -2.094107289 | AG119: -326.5273463 | AH119: 0.6149591928 | AI119: 1.892649784 | AJ119: 0.199032926 | AK119: 0.5819366428 | AL119: 3.235301847 | AM119: 0.04978617616 | AN119: 3.23568489 | AO119: 0.01538720318 | AP119: 10.19932442 | AQ119: 0.3074795964 | AR119: 0.9463248918 | AS119: 1.526155925e-16 | AT119: -2.078720086 | AU119: -316.3280219 | AV119: -2.538739018e-18 | AW119: 1.407756088e-18 | AX119: 2.902924906e-18 | AY119: 2.635293492 | AZ119: -350.743284 | BB119: P_28 | BC119: 28 | BD119: 3.518583772 | BE119: -0.8999554958 | BF119: -0.004457115709 | BG119: 0.8953658195 | BI119: -0.0179099676 | BJ119: 72 | BK119: -288 | BL119: 0 | BM119: =SUM(BL$92:BL119) -> 2 | BN119: -1008 | BO119: 1e-09 | BP119: 1e-09 | BQ119: 0 | BR119: 0 | BS119: -3.101927297e-24 | BT119: -3.101927297e-13 | BV119: P_28 | BW119: 28 | BX119: 0.3518583772 | BY119: 0.8997736807 | BZ119: 0.004346426863 | CA119: -0.8960610295
C120: 29 | D120: 2900 | E120: 92.92831069 | F120: 1.822123739 | G120: 1.822123739 | H120: 0.5315682686 | I120: 0.5315682686 | J120: 0.02034466734 | K120: 0.005223622739 | L120: 0.02100456435 | M120: -1.822123739 | N120: -33.55372643 | Q120: 18.22123739 | R120: 0.02 | S120: 0 | T120: 0.02 | U120: 0.0001 | V120: 0 | W120: 0.0001 | X120: 0.9900497512 | Y120: 0 | Z120: 0.0001527843883 | AA120: -0.01453029554 | AB120: 68.8179205 | AC120: 0.6529710992 | AD120: 0.4707966337 | AE120: 0.01690861855 | AF120: -1.197437905 | AG120: -35.43783746 | AH120: 1.609984068 | AI120: 1.169721895 | AJ120: 1.305942198 | AK120: 0.9415932674 | AL120: 1.236051666 | AM120: 0.00449022051 | AN120: 1.236059822 | AO120: 0.00363269666 | AP120: 1.840789797 | AQ120: 0.8049920342 | AR120: 0.5848609476 | AS120: 0.02090006403 | AT120: -1.193805208 | AU120: -33.59704767 | AV120: -0.0002278189791 | AW120: -9.201847086e-05 | AX120: 0.0002457008063 | AY120: -2.757719734 | AZ120: -72.19186837 | BB120: P_29 | BC120: 29 | BD120: 3.644247478 | BE120: -0.8999814853 | BF120: -0.004471088389 | BG120: 0.8939140002 | BI120: -0.01791020794 | BJ120: 36 | BK120: -324 | BL120: 0 | BM120: =SUM(BL$92:BL120) -> 2 | BN120: -1044 | BO120: 1e-09 | BP120: 1e-09 | BQ120: 0 | BR120: 0 | BS120: 0 | BT120: 0 | BV120: P_29 | BW120: 29 | BX120: 0.3644247478 | BY120: 0.8995773562 | BZ120: 0.004238782509 | CA120: -0.8962739043
C121: 30 | D121: 3000 | E121: 96.1327352 | F121: 1.884955592 | G121: 1.884955592 | H121: 0.5045511524 | I121: 0.5045511524 | J121: -8.481479151e-17 | K121: 2.613355763e-16 | L121: 2.747541307e-16 | M121: -3.455411709 | N121: -311.2211154 | Q121: 18.84955592 | R121: 0.02 | S121: 0 | T121: 0.02 | U121: 0.0001 | V121: 0 | W121: 0.0001 | X121: 0.9900497512 | Y121: 0 | Z121: 0.0001 | AA121: -1.470141391e-17 | AB121: 10000 | AC121: 0.9950248756 | AD121: 7.277747538e-16 | AE121: 2.733871947e-16 | AF121: -3.455411709 | AG121: -311.2644366 | AH121: 1.990049751 | AI121: 1.462863827e-15 | AJ121: 1.990049751 | AK121: 1.455549508e-15 | AL121: 1 | AM121: 3.675445365e-18 | AN121: 1 | AO121: 3.675445365e-18 | AP121: 0 | AQ121: 0.9950248756 | AR121: 7.314319134e-16 | AS121: 2.733871947e-16 | AT121: -3.455411709 | AU121: -311.2644366 | AV121: -2.600353993e-20 | AW121: 8.439282737e-21 | AX121: 2.733871947e-20 | AY121: 2.827773599 | AZ121: -391.2644366 | BB121: P_30 | BC121: 30 | BD121: 3.769911184 | BE121: -0.8999905346 | BF121: -0.004477564849 | BG121: 1.417085064e-15 | BI121: -0.01791025939 | BJ121: 5.08888749e-14 | BK121: -360 | BL121: 0 | BM121: =SUM(BL$92:BL121) -> 2 | BN121: -1080 | BO121: 1e-09 | BP121: 1e-09 | BQ121: 0 | BR121: 0 | BS121: 0 | BT121: 0 | BV121: P_30 | BW121: 30 | BX121: 0.3769911184 | BY121: 0.8999554958 | BZ121: 0.004457115709 | CA121: -0.8953658195
C122: 31 | D122: 3100 | E122: 99.33715971 | F122: 1.947787445 | G122: 1.947787445 | H122: 0.4773500765 | I122: 0.4773500765 | J122: 0.01640614288 | K122: 0.006495651481 | L122: 0.01764525467 | M122: -1.947787445 | N122: -35.06744139 | Q122: 19.47787445 | R122: 0.02 | S122: 0 | T122: 0.02 | U122: 0.0001 | V122: 0 | W122: 0.0001 | X122: 0.9900497512 | Y122: 0 | Z122: 0.0001527843883 | AA122: 0.01453029554 | AB122: 68.8179205 | AC122: 0.6529710992 | AD122: -0.4707966337 | AE122: 0.01420438317 | AF122: -2.572473279 | AG122: -36.95155242 | AH122: 1.609984068 | AI122: -1.169721895 | AJ122: 1.305942198 | AK122: -0.9415932674 | AL122: 1.236051666 | AM122: -0.00449022051 | AN122: 1.236059822 | AO122: -0.00363269666 | AP122: 1.840789797 | AQ122: 0.8049920342 | AR122: -0.5848609476 | AS122: 0.01755746733 | AT122: -2.576105976 | AU122: -35.11076262 | AV122: 0.0001093955609 | AW122: -0.0001750307316 | AX122: 0.0002064052948 | AY122: -1.01219145 | AZ122: -73.70558332 | BB122: P_31 | BC122: 31 | BD122: 3.89557489 | BE122: -0.8999944775 | BF122: -0.004484015903 | BG122: -0.8939140002 | BI122: -0.01791020923 | BJ122: -36 | BK122: -36 | BL122: 1 | BM122: =SUM(BL$92:BL122) -> 3 | BN122: -1116 | BO122: 1e-09 | BP122: 1e-09 | BQ122: 0 | BR122: 0 | BS122: 0 | BT122: 0 | BV122: P_31 | BW122: 31 | BX122: 0.389557489 | BY122: 0.9003421082 | BZ122: 0.004679356195 | CA122: -0.8944883481
C123: 32 | D123: 3200 | E123: 102.5415842 | F123: 2.010619298 | G123: 2.010619298 | H123: 0.4500240564 | I123: 0.4500240564 | J123: -5.267793691e-17 | K123: 1.128102989e-16 | L123: 1.245035283e-16 | M123: -3.578460952 | N123: -318.0963668 | Q123: 20.10619298 | R123: 0.02 | S123: 0 | T123: 0.02 | U123: 0.0001 | V123: 0 | W123: 0.0001 | X123: 0.9900497512 | Y123: 0 | Z123: 0.00104696567 | AA123: 0.0615375596 | AB123: 16.24788681 | AC123: 0.09951646298 | AD123: -0.2909683214 | AE123: 3.828682706e-17 | AF123: -4.81971081 | AG123: -328.3390125 | AH123: 0.6149591928 | AI123: -1.892649784 | AJ123: 0.199032926 | AK123: -0.5819366428 | AL123: 3.235301847 | AM123: -0.04978617616 | AN123: 3.23568489 | AO123: -0.01538720318 | AP123: 10.19932442 | AQ123: 0.3074795964 | AR123: -0.9463248918 | AS123: 1.238841078e-16 | AT123: -4.835098013 | AU123: -318.1396881 | AV123: -2.338228556e-18 | AW123: 2.922278331e-19 | AX123: 2.356418869e-18 | AY123: 3.017259024 | AZ123: -352.5549502 | BB123: P_32 | BC123: 32 | BD123: 4.021238597 | BE123: =SUMPRODUCT(Vs,SIN(Fi_Vs+NH_*BD123+NH_*Ofs_))+DC_ -> -0.899996453 | BF123: =SUMPRODUCT(Vin,SIN(Fi_Vin+NH_*BD123+NH_*Ofs_))+DC_*R_l/(R_l+R_s) -> -0.004497869111 | BG123: =SUMPRODUCT(Vout,SIN(Fi_Vout+NH_*BD123+NH_*Ofs_))+DC_*R_l/(R_l+R_s) -> -0.8953658195 | BI123: -0.01790997168 | BJ123: -72 | BK123: -72 | BL123: 0 | BM123: =SUM(BL$92:BL123) -> 3 | BN123: -1152 | BO123: 1e-09 | BP123: 1e-09 | BQ123: 0 | BR123: 0 | BS123: 3.30872245e-24 | BT123: 3.30872245e-13 | BV123: P_32 | BW123: 32 | BX123: =4*PI()*N_/(100*Zoom_) -> 0.4021238597 | BY123: 0.9002346161 | BZ123: 0.004612684903 | CA123: -0.8950234107
C124: 33 | D124: 3300 | E124: 105.7460087 | F124: =NH_*PI()*tr_/T_ -> 2.073451151 | G124: =NH_*PI()*tf_/T_ -> 2.073451151 | H124: =SIN(Rad_tr)/Rad_tr -> 0.4226319388 | I124: =SIN(Rad_tf)/Rad_tf -> 0.4226319388 | J124: 0.01286047841 | K124: 0.007070107834 | L124: 0.01467577356 | M124: -2.073451151 | N124: -36.66797995 | Q124: =2*PI()*Fr_*t_pd*10^-3 -> 20.73451151 | R124: =1/R_s -> 0.02 | S124: =2*PI()*Fr_*C_s/1000000 -> 0 | T124: =SQRT(ReYs^2+ImYs^2) -> 0.02 | U124: =1/R_l -> 0.0001 | V124: =2*PI()*Fr_*C_l/1000000 -> 0 | W124: =SQRT(ReYl^2+ImYl^2) -> 0.0001 | X124: =(Y_0^2-Yl^2)/(Y_0^2+Yl^2+2*Y_0*ReYl) -> 0.9900497512 | Y124: 0 | Z124: =Y_0*(ReYl*(Y_0-ImYl*TAN(Fi_))+ReYl*TAN(Fi_)*(ImYl+Y_0*TAN(Fi_)))/((Y_0-ImYl*TAN(Fi_))^2+(ReYl*TAN(Fi_))^2) -> 0.00104696567 | AA124: =Y_0*((ImYl+Y_0*TAN(Fi_))*(Y_0-ImYl*TAN(Fi_))-TAN(Fi_)*ReYl^2)/((Y_0-ImYl*TAN(Fi_))^2+(ReYl*TAN(Fi_))^2) -> -0.0615375596 | AB124: =SQRT(1/(ReYin^2+ImYin^2)) -> 16.24788681 | AC124: =(ReYs+ReYin)/((ReYs+ReYin)^2+(ImYs+ImYin)^2)/R_s -> 0.09951646298 | AD124: =-(ImYs+ImYin)/((ReYs+ReYin)^2+(ImYs+ImYin)^2)/R_s -> 0.2909683214 | AE124: 0.004513035188 | AF124: -0.8322012931 | AG124: -46.91062561 | AH124: =(1+ReGl)*COS(Fi_)+ImGl*SIN(Fi_) -> -0.6149591928 | AI124: =COS(Fi_)*ImGl-SIN(Fi_)*(1+ReGl) -> -1.892649784 | AJ124: =1+COS(2*Fi_)*ReGl+SIN(2*Fi_)*ImGl -> 0.199032926 | AK124: =COS(2*Fi_)*ImGl-SIN(2*Fi_)*ReGl -> 0.5819366428 | AL124: =(A_*C_+B_*D_)/(C_^2+D_^2) -> -3.235301847 | AM124: =(B_*C_-A_*D_)/(C_^2+D_^2) -> -0.04978617616 | AN124: 3.23568489 | AO124: -3.12620545 | AP124: 10.19932442 | AQ124: -0.3074795964 | AR124: -0.9463248918 | AS124: 0.01460275976 | AT124: -3.958406744 | AU124: -36.71130119 | AV124: -0.0002021701505 | AW124: -0.0001904694335 | AX124: 0.0002777613631 | AY124: -2.38598582 | AZ124: -71.1265633 | BB124: P_33 | BC124: 33 | BD124: =4*PI()*N_/100 -> 4.146902303 | BE124: -0.8999975371 | BF124: -0.004554273344 | BG124: -0.8954781053 | BI124: =SUMPRODUCT(Is,SIN(Fi_Is+NH_*BD124+NH_*Ofs_))+DC_/(R_s+R_l) -> -0.01790886527 | BJ124: =180/PI()*(Fi_Vout-Fi_Vs) -> -108 | BK124: =IF(D_Fi<0,D_Fi,D_Fi-360) -> -108 | BL124: 0 | BM124: =SUM(BL$92:BL124) -> 3 | BN124: =Fi_Norm-360*BM124 -> -1188 | BO124: 1e-09 | BP124: 1e-09 | BQ124: =BO124-t_pd*0.000000001 -> 0 | BR124: =BQ124/(t_pd*0.000000001)*100 -> 0 | BS124: 0 | BT124: 0 | BV124: P_33 | BW124: 33 | BX124: 0.4146902303 | BY124: 0.899834582 | BZ124: 0.004373270518 | CA124: -0.8964978054
C125: 34 | D125: =fo_*NH_ -> 3400 | E125: =NH_*PI()*(2*Duty_cycle/100*T_+tr_)/T_ -> 108.9504332 | F125: 2.136283004 | G125: 2.136283004 | H125: 0.3952322439 | I125: 0.3952322439 | J125: =-(High_-Low_)/PI()/NH_*(Y_*SIN(Rad_t)-X_*SIN(Rad_tr)) -> -8.419115333e-18 | K125: =(High_-Low_)/PI()/NH_*(Y_*COS(Rad_t)-X_*COS(Rad_tr)) -> 1.309640163e-17 | L125: =SQRT(ReVs^2+ImVs^2) -> 1.556911168e-17 | M125: -3.712930133 | N125: -336.1547233 | Q125: 21.36283004 | R125: 0.02 | S125: 0 | T125: 0.02 | U125: 0.0001 | V125: 0 | W125: 0.0001 | X125: 0.9900497512 | Y125: =-2*Y_0*ImYl/(Y_0^2+Yl^2+2*Y_0*ReYl) -> 0 | Z125: 0.0001527843883 | AA125: -0.01453029554 | AB125: 68.8179205 | AC125: 0.6529710992 | AD125: 0.4707966337 | AE125: =SQRT(ReVin^2+ImVin^2)*Vs -> 1.253309358e-17 | AF125: -3.088244299 | AG125: -338.0388344 | AH125: -1.609984068 | AI125: -1.169721895 | AJ125: 1.305942198 | AK125: 0.9415932674 | AL125: -1.236051666 | AM125: -0.00449022051 | AN125: =SQRT(ReVoi^2+ImVoi^2) -> 1.236059822 | AO125: -3.137959957 | AP125: 1.840789797 | AQ125: =ReVin*ReVoi-ImVin*ImVoi -> -0.8049920342 | AR125: =ImVin*ReVoi+ReVin*ImVoi -> -0.5848609476 | AS125: =SQRT(ReVout^2+ImVout^2)*Vs -> 1.549165342e-17 | AT125: -6.226204256 | AU125: -336.1980446 | AV125: =(Vs*COS(Fi_Vs)-Vin*COS(Fi_Vin))/R_s -> -1.162277409e-20 | AW125: =(Vs*SIN(Fi_Vs)-Vin*SIN(Fi_Vin))/R_s -> 1.817483628e-19 | AX125: =SQRT(ReIs^2+ImIs^2) -> 1.821196207e-19 | AY125: 1.634659179 | AZ125: -374.7928653 | BB125: P_34 | BC125: 34 | BD125: 4.272566009 | BE125: -0.8999981655 | BF125: -0.005276867642 | BG125: -0.8955039655 | BI125: -0.01789442596 | BJ125: -144 | BK125: -144 | BL125: 0 | BM125: =SUM(BL$92:BL125) -> 3 | BN125: -1224 | BO125: 1e-09 | BP125: 1e-09 | BQ125: 0 | BR125: 0 | BS125: =BP125-t_pd*0.000000001 -> -3.101927297e-24 | BT125: =BS125/(t_pd*0.000000001)*100 -> -3.101927297e-13 | BV125: P_34 | BW125: 34 | BX125: 0.4272566009 | BY125: 0.8996983108 | BZ125: 0.004293796963 | CA125: -0.8968247767
C126: 35 | D126: 3500 | E126: 112.1548577 | F126: 2.199114858 | G126: 2.199114858 | H126: 0.3678830106 | I126: 0.3678830106 | J126: 0.009744329482 | K126: 0.007079669775 | L126: 0.01204465363 | M126: -2.199114858 | N126: -38.38411369 | Q126: 21.99114858 | R126: 0.02 | S126: 0 | T126: 0.02 | U126: 0.0001 | V126: 0 | W126: 0.0001 | X126: 0.9900497512 | Y126: 0 | Z126: 0.0001 | AA126: -1.715164957e-17 | AB126: 10000 | AC126: 0.9950248756 | AD126: 8.490705461e-16 | AE126: 0.01198472998 | AF126: -2.199114858 | AG126: -38.42743492 | AH126: -1.990049751 | AI126: -1.706674465e-15 | AJ126: 1.990049751 | AK126: 1.698141092e-15 | AL126: -1 | AM126: -4.288019592e-18 | AN126: 1 | AO126: -3.141592654 | AP126: 0 | AQ126: -0.9950248756 | AR126: -8.533372323e-16 | AS126: 0.01198472998 | AT126: -5.340707511 | AU126: -38.42743492 | AV126: -7.044447538e-07 | AW126: -9.69585023e-07 | AX126: 1.198472998e-06 | AY126: -2.199114858 | AZ126: -118.4274349 | BB126: P_35 | BC126: 35 | BD126: 4.398229715 | BE126: -0.8999985362 | BF126: -0.4499992681 | BG126: -0.8955129697 | BI126: -0.008999985362 | BJ126: -180 | BK126: -180 | BL126: 0 | BM126: =SUM(BL$92:BL126) -> 3 | BN126: -1260 | BO126: 1e-09 | BP126: 1e-09 | BQ126: 0 | BR126: 0 | BS126: 0 | BT126: 0 | BV126: P_35 | BW126: 35 | BX126: 0.4398229715 | BY126: 0.8999722272 | BZ126: 0.004465893432 | CA126: -0.8951261481
C127: 36 | D127: 3600 | E127: 115.3592822 | F127: 2.261946711 | G127: 2.261946711 | H127: 0.3406416425 | I127: 0.3406416425 | J127: -5.919365657e-17 | K127: 7.244596774e-17 | L127: 9.355376647e-17 | M127: -3.826657713 | N127: -320.5787745 | Q127: 22.61946711 | R127: 0.02 | S127: 0 | T127: 0.02 | U127: 0.0001 | V127: 0 | W127: 0.0001 | X127: 0.9900497512 | Y127: 0 | Z127: 0.0001527843883 | AA127: 0.01453029554 | AB127: 68.8179205 | AC127: 0.6529710992 | AD127: -0.4707966337 | AE127: 7.531053369e-17 | AF127: -4.451343547 | AG127: -322.4628855 | AH127: -1.609984068 | AI127: 1.169721895 | AJ127: 1.305942198 | AK127: -0.9415932674 | AL127: -1.236051666 | AM127: 0.00449022051 | AN127: 1.236059822 | AO127: 3.137959957 | AP127: 1.840789797 | AQ127: -0.8049920342 | AR127: 0.5848609476 | AS127: 9.308832485e-17 | AT127: -1.31338359 | AU127: -320.6220957 | AV127: -1.060180376e-18 | AW127: -2.713081633e-19 | AX127: 1.094344804e-18 | AY127: -2.891061718 | AZ127: -359.2169164 | BB127: P_36 | BC127: 36 | BD127: 4.523893421 | BE127: -0.8999987453 | BF127: -0.8947215878 | BG127: -0.895516893 | BI127: -0.0001055431506 | BJ127: 144 | BK127: -216 | BL127: 0 | BM127: =SUM(BL$92:BL127) -> 3 | BN127: -1296 | BO127: 1e-09 | BP127: 1e-09 | BQ127: 0 | BR127: 0 | BS127: 0 | BT127: 0 | BV127: P_36 | BW127: 36 | BX127: 0.4523893421 | BY127: 0.9002514036 | BZ127: 0.004640213305 | CA127: -0.8935084282
C128: 37 | D128: 3700 | E128: 118.5637067 | F128: 2.324778564 | G128: 2.324778564 | H128: 0.3135647579 | I128: 0.3135647579 | J128: 0.007079245731 | K128: 0.006647854236 | L128: 0.009711317422 | M128: -2.324778564 | N128: -40.25443701 | Q128: 23.24778564 | R128: 0.02 | S128: 0 | T128: 0.02 | U128: 0.0001 | V128: 0 | W128: 0.0001 | X128: 0.9900497512 | Y128: 0 | Z128: 0.00104696567 | AA128: 0.0615375596 | AB128: 16.24788681 | AC128: 0.09951646298 | AD128: -0.2909683214 | AE128: 0.002986385492 | AF128: -3.566028422 | AG128: -50.49708266 | AH128: -0.6149591928 | AI128: 1.892649784 | AJ128: 0.199032926 | AK128: -0.5819366428 | AL128: -3.235301847 | AM128: 0.04978617616 | AN128: 3.23568489 | AO128: 3.12620545 | AP128: 10.19932442 | AQ128: -0.3074795964 | AR128: 0.9463248918 | AS128: 0.00966300241 | AT128: -0.4398229715 | AU128: -40.29775824 | AV128: -7.852894097e-05 | AW128: -0.0001661811845 | AX128: 0.0001838014707 | AY128: -2.012243895 | AZ128: -74.71302036 | BB128: P_37 | BC128: 37 | BD128: 4.649557127 | BE128: -0.89999884 | BF128: -0.8954439152 | BG128: -0.8955188587 | BI128: -9.109849676e-05 | BJ128: 108 | BK128: -252 | BL128: 0 | BM128: =SUM(BL$92:BL128) -> 3 | BN128: -1332 | BO128: 1e-09 | BP128: 1e-09 | BQ128: 0 | BR128: 0 | BS128: 0 | BT128: 0 | BV128: P_37 | BW128: 37 | BX128: 0.4649557127 | BY128: 0.9001702404 | BZ128: 0.004584040034 | CA128: -0.8946927675
C129: 38 | D129: 3800 | E129: 121.7681313 | F129: 2.387610417 | G129: 2.387610417 | H129: 0.2867080413 | I129: 0.2867080413 | J129: -1.02112545e-16 | K129: 9.499814641e-17 | L129: 1.394690635e-16 | M129: -3.963068574 | N129: -317.1104423 | Q129: 23.87610417 | R129: 0.02 | S129: 0 | T129: 0.02 | U129: 0.0001 | V129: 0 | W129: 0.0001 | X129: 0.9900497512 | Y129: 0 | Z129: 0.00104696567 | AA129: -0.0615375596 | AB129: 16.24788681 | AC129: 0.09951646298 | AD129: 0.2909683214 | AE129: 4.288896858e-17 | AF129: -2.721818716 | AG129: -327.353088 | AH129: 0.6149591928 | AI129: 1.892649784 | AJ129: 0.199032926 | AK129: 0.5819366428 | AL129: 3.235301847 | AM129: 0.04978617616 | AN129: 3.23568489 | AO129: 0.01538720318 | AP129: 10.19932442 | AQ129: 0.3074795964 | AR129: 0.9463248918 | AS129: 1.387751876e-16 | AT129: -2.706431513 | AU129: -317.1537635 | AV129: -1.116655021e-18 | AW129: 2.391842339e-18 | AX129: 2.639664412e-18 | AY129: 2.007582065 | AZ129: -351.5690257 | BB129: P_38 | BC129: 38 | BD129: 4.775220833 | BE129: -0.89999884 | BF129: -0.8954997774 | BG129: -0.8955199374 | BI129: -8.998125274e-05 | BJ129: 72 | BK129: -288 | BL129: 0 | BM129: =SUM(BL$92:BL129) -> 3 | BN129: -1368 | BO129: 1e-09 | BP129: 1e-09 | BQ129: 0 | BR129: 0 | BS129: 3.30872245e-24 | BT129: 3.30872245e-13 | BV129: P_38 | BW129: 38 | BX129: 0.4775220833 | BY129: 0.8998745027 | BZ129: 0.004388730898 | CA129: -0.8978032119
C130: 39 | D130: 3900 | E130: 124.9725558 | F130: 2.45044227 | G130: 2.45044227 | H130: 0.2601260995 | I130: 0.2601260995 | J130: 0.004871922311 | K130: 0.005889142421 | L130: 0.007643142381 | M130: -2.45044227 | N130: -42.334561 | Q130: 24.5044227 | R130: 0.02 | S130: 0 | T130: 0.02 | U130: 0.0001 | V130: 0 | W130: 0.0001 | X130: 0.9900497512 | Y130: 0 | Z130: 0.0001527843883 | AA130: -0.01453029554 | AB130: 68.8179205 | AC130: 0.6529710992 | AD130: 0.4707966337 | AE130: 0.00615270933 | AF130: -1.825756436 | AG130: -44.21867203 | AH130: 1.609984068 | AI130: 1.169721895 | AJ130: 1.305942198 | AK130: 0.9415932674 | AL130: 1.236051666 | AM130: 0.00449022051 | AN130: 1.236059822 | AO130: 0.00363269666 | AP130: 1.840789797 | AQ130: 0.8049920342 | AR130: 0.5848609476 | AS130: 0.007605116797 | AT130: -1.822123739 | AU130: -42.37788224 | AV130: -8.674774489e-05 | AW130: 2.163781166e-05 | AX130: 8.940562699e-05 | AY130: 2.897147042 | AZ130: -80.97270294 | BB130: P_39 | BC130: 39 | BD130: 4.90088454 | BE130: -0.8999987453 | BF130: -0.8955125955 | BG130: -0.8955205627 | BI130: -8.972299631e-05 | BJ130: 36 | BK130: -324 | BL130: 0 | BM130: =SUM(BL$92:BL130) -> 3 | BN130: -1404 | BO130: 1e-09 | BP130: 1e-09 | BQ130: 0 | BR130: 0 | BS130: 0 | BT130: 0 | BV130: P_39 | BW130: 39 | BX130: 0.490088454 | BY130: 0.8997748124 | BZ130: 0.004325275471 | CA130: -0.8982977362
C131: 40 | D131: 4000 | E131: 128.1769803 | F131: 2.513274123 | G131: 2.513274123 | H131: 0.2338723209 | I131: 0.2338723209 | J131: -5.168401357e-17 | K131: 3.776908684e-17 | L131: 6.401360152e-17 | M131: -4.081309593 | N131: -323.8745548 | Q131: 25.13274123 | R131: 0.02 | S131: 0 | T131: 0.02 | U131: 0.0001 | V131: 0 | W131: 0.0001 | X131: 0.9900497512 | Y131: 0 | Z131: 0.0001 | AA131: -1.960188522e-17 | AB131: 10000 | AC131: 0.9950248756 | AD131: 9.703663384e-16 | AE131: 6.369512589e-17 | AF131: -4.081309593 | AG131: -323.917876 | AH131: 1.990049751 | AI131: 1.950485102e-15 | AJ131: 1.990049751 | AK131: 1.940732677e-15 | AL131: 1 | AM131: 4.90059382e-18 | AN131: 1 | AO131: 4.90059382e-18 | AP131: 0 | AQ131: 0.9950248756 | AR131: 9.752425512e-16 | AS131: 6.369512589e-17 | AT131: -4.081309593 | AU131: -323.917876 | AV131: -3.758118094e-21 | AW131: 5.142687918e-21 | AX131: 6.369512589e-21 | AY131: 2.201875714 | AZ131: -403.917876 | BB131: P_40 | BC131: 40 | BD131: 5.026548246 | BE131: -0.8999985362 | BF131: -0.8955169705 | BG131: -0.8955209315 | BI131: -8.963131299e-05 | BJ131: 5.08888749e-14 | BK131: -360 | BL131: 0 | BM131: =SUM(BL$92:BL131) -> 3 | BN131: -1440 | BO131: 1e-09 | BP131: 1e-09 | BQ131: 0 | BR131: 0 | BS131: -3.101927297e-24 | BT131: -3.101927297e-13 | BV131: P_40 | BW131: 40 | BX131: 0.5026548246 | BY131: 0.8999814853 | BZ131: 0.004471088389 | CA131: -0.8939140002
C132: 41 | D132: 4100 | E132: 131.3814048 | F132: 2.576105976 | G132: 2.576105976 | H132: 0.2079987392 | I132: 0.2079987392 | J132: 0.003114970236 | K132: 0.004908407683 | L132: 0.005813390195 | M132: -2.576105976 | N132: -44.71141052 | Q132: 25.76105976 | R132: 0.02 | S132: 0 | T132: 0.02 | U132: 0.0001 | V132: 0 | W132: 0.0001 | X132: 0.9900497512 | Y132: 0 | Z132: 0.0001527843883 | AA132: 0.01453029554 | AB132: 68.8179205 | AC132: 0.6529710992 | AD132: -0.4707966337 | AE132: 0.004679763677 | AF132: -3.20079181 | AG132: -46.59552156 | AH132: 1.609984068 | AI132: -1.169721895 | AJ132: 1.305942198 | AK132: -0.9415932674 | AL132: 1.236051666 | AM132: -0.00449022051 | AN132: 1.236059822 | AO132: -0.00363269666 | AP132: 1.840789797 | AQ132: 0.8049920342 | AR132: -0.5848609476 | AS132: 0.005784467855 | AT132: -3.204424507 | AU132: -44.75473176 | AV132: -4.736836436e-06 | AW132: -6.783693022e-05 | AX132: 6.800210821e-05 | AY132: -1.640509981 | AZ132: -83.34955246 | BB132: P_41 | BC132: 41 | BD132: 5.152211952 | BE132: -0.8999981655 | BF132: -0.895518737 | BG132: -0.8955211396 | BI132: -8.958856975e-05 | BJ132: -36 | BK132: -36 | BL132: 1 | BM132: =SUM(BL$92:BL132) -> 4 | BN132: -1476 | BO132: 1e-09 | BP132: 1e-09 | BQ132: 0 | BR132: 0 | BS132: 0 | BT132: 0 | BV132: P_41 | BW132: 41 | BX132: 0.5152211952 | BY132: 0.9001916531 | BZ132: 0.004618135746 | CA132: -0.8899186399
C133: 42 | D133: 4200 | E133: 134.5858293 | F133: 2.638937829 | G133: 2.638937829 | H133: 0.1825559014 | I133: 0.1825559014 | J133: -1.325231117e-17 | K133: 7.19411178e-18 | L133: 1.507909134e-17 | M133: -4.215046264 | N133: -336.4324966 | Q133: 26.38937829 | R133: 0.02 | S133: 0 | T133: 0.02 | U133: 0.0001 | V133: 0 | W133: 0.0001 | X133: 0.9900497512 | Y133: 0 | Z133: 0.00104696567 | AA133: 0.0615375596 | AB133: 16.24788681 | AC133: 0.09951646298 | AD133: -0.2909683214 | AE133: 4.637061858e-18 | AF133: -5.456296122 | AG133: -346.6751422 | AH133: 0.6149591928 | AI133: -1.892649784 | AJ133: 0.199032926 | AK133: -0.5819366428 | AL133: 3.235301847 | AM133: -0.04978617616 | AN133: 3.23568489 | AO133: -0.01538720318 | AP133: 10.19932442 | AQ133: 0.3074795964 | AR133: -0.9463248918 | AS133: 1.500407099e-17 | AT133: -5.471683325 | AU133: -336.4758178 | AV133: -2.066836392e-19 | AW133: 1.968045882e-19 | AX133: 2.853947663e-19 | AY133: 2.380673711 | AZ133: -370.8910799 | BB133: P_42 | BC133: 42 | BD133: 5.277875658 | BE133: -0.8999975371 | BF133: -0.8955194007 | BG133: -0.8955212339 | BI133: -8.956272652e-05 | BJ133: -72 | BK133: -72 | BL133: 0 | BM133: =SUM(BL$92:BL133) -> 4 | BN133: -1512 | BO133: 1e-09 | BP133: 1e-09 | BQ133: 0 | BR133: 0 | BS133: 0 | BT133: 0 | BV133: P_42 | BW133: 42 | BX133: 0.5277875658 | BY133: 0.900128563 | BZ133: 0.004567612002 | CA133: -0.8946791075
C134: 43 | D134: 4300 | E134: 137.7902538 | F134: 2.701769682 | G134: 2.701769682 | H134: 0.1575927417 | I134: 0.1575927417 | J134: 0.001788154 | K134: 0.003800020681 | L134: 0.004199720456 | M134: -2.701769682 | N134: -47.53559233 | Q134: 27.01769682 | R134: 0.02 | S134: 0 | T134: 0.02 | U134: 0.0001 | V134: 0 | W134: 0.0001 | X134: 0.9900497512 | Y134: 0 | Z134: 0.00104696567 | AA134: -0.0615375596 | AB134: 16.24788681 | AC134: 0.09951646298 | AD134: 0.2909683214 | AE134: 0.001291481237 | AF134: -1.460519824 | AG134: -57.77823798 | AH134: -0.6149591928 | AI134: -1.892649784 | AJ134: 0.199032926 | AK134: 0.5819366428 | AL134: -3.235301847 | AM134: -0.04978617616 | AN134: 3.23568489 | AO134: -3.12620545 | AP134: 10.19932442 | AQ134: -0.3074795964 | AR134: -0.9463248918 | AS134: 0.004178826324 | AT134: -4.586725274 | AU134: -47.57891356 | AV134: -7.884304463e-05 | AW134: -1.0090352e-05 | AX134: 7.948610501e-05 | AY134: -3.01430435 | AZ134: -81.99417568 | BB134: P_43 | BC134: 43 | BD134: 5.403539364 | BE134: -0.899996453 | BF134: -0.8955193953 | BG134: -0.8955212339 | BI134: -8.954115308e-05 | BJ134: -108 | BK134: -108 | BL134: 0 | BM134: =SUM(BL$92:BL134) -> 4 | BN134: -1548 | BO134: 1e-09 | BP134: 1e-09 | BQ134: 0 | BR134: 0 | BS134: 0 | BT134: 0 | BV134: P_43 | BW134: 43 | BX134: 0.5403539364 | BY134: 0.8999020716 | BZ134: 0.004396774937 | CA134: -0.906144065
C135: 44 | D135: 4400 | E135: 140.9946783 | F135: 2.764601535 | G135: 2.764601535 | H135: 0.1331564596 | I135: 0.1331564596 | J135: -7.96042237e-17 | K135: 3.162483348e-17 | L135: 8.565607115e-17 | M135: -4.334233236 | N135: -321.344837 | Q135: 27.64601535 | R135: 0.02 | S135: 0 | T135: 0.02 | U135: 0.0001 | V135: 0 | W135: 0.0001 | X135: 0.9900497512 | Y135: 0 | Z135: 0.0001527843883 | AA135: -0.01453029554 | AB135: 68.8179205 | AC135: 0.6529710992 | AD135: 0.4707966337 | AE135: 6.895290992e-17 | AF135: -3.709547402 | AG135: -323.228948 | AH135: -1.609984068 | AI135: -1.169721895 | AJ135: 1.305942198 | AK135: 0.9415932674 | AL135: -1.236051666 | AM135: -0.00449022051 | AN135: 1.236059822 | AO135: -3.137959957 | AP135: 1.840789797 | AQ135: -0.8049920342 | AR135: -0.5848609476 | AS135: 8.522992154e-17 | AT135: -6.847507358 | AU135: -321.3881582 | AV135: 5.300533869e-19 | AW135: 8.502766279e-19 | AX135: 1.001961545e-18 | AY135: 1.013356076 | AZ135: -359.9829789 | BB135: P_44 | BC135: 44 | BD135: 5.52920307 | BE135: -0.8999944775 | BF135: -0.8955187187 | BG135: -0.8955211396 | BI135: -8.951517581e-05 | BJ135: -144 | BK135: -144 | BL135: 0 | BM135: =SUM(BL$92:BL135) -> 4 | BN135: -1584 | BO135: 1e-09 | BP135: 1e-09 | BQ135: 0 | BR135: 0 | BS135: 3.30872245e-24 | BT135: 3.30872245e-13 | BV135: P_44 | BW135: 44 | BX135: 0.552920307 | BY135: 0.8998263328 | BZ135: 0.004342456444 | CA135: -0.9025063312
C136: 45 | D136: 4500 | E136: 144.1991028 | F136: 2.827433388 | G136: 2.827433388 | H136: 0.1092924048 | I136: 0.1092924048 | J136: 0.0008600277416 | K136: 0.002646893222 | L136: 0.002783108234 | M136: -2.827433388 | N136: -51.10939807 | Q136: 28.27433388 | R136: 0.02 | S136: 0 | T136: 0.02 | U136: 0.0001 | V136: 0 | W136: 0.0001 | X136: 0.9900497512 | Y136: 0 | Z136: 0.0001 | AA136: 4.900037635e-17 | AB136: 10000 | AC136: 0.9950248756 | AD136: -2.425701163e-15 | AE136: 0.002769261925 | AF136: -2.827433388 | AG136: -51.15271931 | AH136: -1.990049751 | AI136: 4.875781233e-15 | AJ136: 1.990049751 | AK136: -4.851402326e-15 | AL136: -1 | AM136: 1.225040035e-17 | AN136: 1 | AO136: 3.141592654 | AP136: 0 | AQ136: -0.9950248756 | AR136: 2.437890616e-15 | AS136: 0.002769261925 | AT136: 0.3141592654 | AU136: -51.15271931 | AV136: -2.633724599e-07 | AW136: -8.557489966e-08 | AX136: 2.769261925e-07 | AY136: -2.827433388 | AZ136: -131.1527193 | BB136: P_45 | BC136: 45 | BD136: 5.654866776 | BE136: -0.8999905346 | BF136: -0.8955169307 | BG136: -0.8955209315 | BI136: -8.947207713e-05 | BJ136: 180 | BK136: -180 | BL136: 0 | BM136: =SUM(BL$92:BL136) -> 4 | BN136: -1620 | BO136: 1e-09 | BP136: 1e-09 | BQ136: 0 | BR136: 0 | BS136: 0 | BT136: 0 | BV136: P_45 | BW136: 45 | BX136: 0.5654866776 | BY136: 0.899987022 | BZ136: 0.004474653301 | CA136: -0.8506919377
C137: 46 | D137: 4600 | E137: 147.4035273 | F137: 2.890265241 | G137: 2.890265241 | H137: 0.08604396704 | I137: 0.08604396704 | J137: -8.167456995e-18 | K137: 2.074274792e-18 | L137: 8.426741344e-18 | M137: -4.463678991 | N137: -341.4868067 | Q137: 28.90265241 | R137: 0.02 | S137: 0 | T137: 0.02 | U137: 0.0001 | V137: 0 | W137: 0.0001 | X137: 0.9900497512 | Y137: 0 | Z137: 0.0001527843883 | AA137: 0.01453029554 | AB137: 68.8179205 | AC137: 0.6529710992 | AD137: -0.4707966337 | AE137: 6.783504415e-18 | AF137: -5.088364825 | AG137: -343.3709178 | AH137: -1.609984068 | AI137: 1.169721895 | AJ137: 1.305942198 | AK137: -0.9415932674 | AL137: -1.236051666 | AM137: 0.00449022051 | AN137: 1.236059822 | AO137: 3.137959957 | AP137: 1.840789797 | AQ137: -0.8049920342 | AR137: 0.5848609476 | AS137: 8.384817257e-18 | AT137: -1.950404868 | AU137: -341.530128 | AV137: -9.13008912e-20 | AW137: 3.715564067e-20 | AX137: 9.857177267e-20 | AY137: 2.755102311 | AZ137: -380.1249487 | BB137: P_46 | BC137: 46 | BD137: 5.780530483 | BE137: -0.8999814853 | BF137: -0.8955125096 | BG137: -0.8955205627 | BI137: -8.937951419e-05 | BJ137: 144 | BK137: -216 | BL137: 0 | BM137: =SUM(BL$92:BL137) -> 4 | BN137: -1656 | BO137: 1e-09 | BP137: 1e-09 | BQ137: 0 | BR137: 0 | BS137: -3.101927297e-24 | BT137: -3.101927297e-13 | BV137: P_46 | BW137: 46 | BX137: 0.5780530483 | BY137: 0.9001501556 | BZ137: 0.004607409225 | CA137: -0.7301732689
C138: 47 | D138: 4700 | E138: 150.6079518 | F138: 2.953097094 | G138: 2.953097094 | H138: 0.06345247332 | I138: 0.06345247332 | J138: 0.0002898875787 | K138: 0.001519643905 | L138: 0.001547046349 | M138: -2.953097094 | N138: -56.20993349 | Q138: 29.53097094 | R138: 0.02 | S138: 0 | T138: 0.02 | U138: 0.0001 | V138: 0 | W138: 0.0001 | X138: 0.9900497512 | Y138: 0 | Z138: 0.00104696567 | AA138: 0.0615375596 | AB138: 16.24788681 | AC138: 0.09951646298 | AD138: -0.2909683214 | AE138: 0.0004757415057 | AF138: -4.194346953 | AG138: -66.45257915 | AH138: -0.6149591928 | AI138: 1.892649784 | AJ138: 0.199032926 | AK138: -0.5819366428 | AL138: -3.235301847 | AM138: 0.04978617616 | AN138: 3.23568489 | AO138: 3.12620545 | AP138: 10.19932442 | AQ138: -0.3074795964 | AR138: 0.9463248918 | AS138: 0.001539349601 | AT138: -1.068141502 | AU138: -56.25325473 | AV138: -2.568132433e-05 | AW138: -1.406414457e-05 | AX138: 2.928020802e-05 | AY138: -2.640562426 | AZ138: -90.66851684 | BB138: P_47 | BC138: 47 | BD138: 5.906194189 | BE138: -0.8999554958 | BF138: -0.8954995618 | BG138: -0.8955199374 | BI138: -8.911868118e-05 | BJ138: 108 | BK138: -252 | BL138: 0 | BM138: =SUM(BL$92:BL138) -> 4 | BN138: -1692 | BO138: 1e-09 | BP138: 1e-09 | BQ138: 0 | BR138: 0 | BS138: 0 | BT138: 0 | BV138: P_47 | BW138: 47 | BX138: 0.5906194189 | BY138: 0.9001000069 | BZ138: 0.004558946273 | CA138: -0.5518397237
C139: 48 | D139: 4800 | E139: 153.8123763 | F139: 3.015928947 | G139: 3.015928947 | H139: 0.04155709095 | I139: 0.04155709095 | J139: -1.119199092e-17 | K139: 1.325231117e-18 | L139: 1.127017738e-17 | M139: -4.594528881 | N139: -338.961385 | Q139: 30.15928947 | R139: 0.02 | S139: 0 | T139: 0.02 | U139: 0.0001 | V139: 0 | W139: 0.0001 | X139: 0.9900497512 | Y139: 0 | Z139: 0.00104696567 | AA139: -0.0615375596 | AB139: 16.24788681 | AC139: 0.09951646298 | AD139: 0.2909683214 | AE139: 3.465759872e-18 | AF139: -3.353279023 | AG139: -349.2040306 | AH139: 0.6149591928 | AI139: 1.892649784 | AJ139: 0.199032926 | AK139: 0.5819366428 | AL139: 3.235301847 | AM139: 0.04978617616 | AN139: 3.23568489 | AO139: 0.01538720318 | AP139: 10.19932442 | AQ139: 0.3074795964 | AR139: 0.9463248918 | AS139: 1.121410685e-17 | AT139: -3.337891819 | AU139: -339.0047062 | AV139: 4.126332015e-20 | AW139: 2.092760769e-19 | AX139: 2.133052694e-19 | AY139: 1.376121758 | AZ139: -373.4199683 | BB139: P_48 | BC139: 48 | BD139: 6.031857895 | BE139: -0.8998426486 | BF139: -0.8954431381 | BG139: -0.8955188587 | BI139: -8.799020858e-05 | BJ139: 72 | BK139: -288 | BL139: 0 | BM139: =SUM(BL$92:BL139) -> 4 | BN139: -1728 | BO139: 1e-09 | BP139: 1e-09 | BQ139: 0 | BR139: 0 | BS139: 0 | BT139: 0 | BV139: P_48 | BW139: 48 | BX139: 0.6031857895 | BY139: 0.8999219209 | BZ139: 0.004399188785 | CA139: -0.3523444608
C140: 49 | D140: 4900 | E140: 157.0168008 | F140: =NH_*PI()*tr_/T_ -> 3.078760801 | G140: =NH_*PI()*tf_/T_ -> 3.078760801 | H140: =SIN(Rad_tr)/Rad_tr -> 0.02039473788 | I140: =SIN(Rad_tf)/Rad_tf -> 0.02039473788 | J140: 2.9948064e-05 | K140: 0.0004760108462 | L140: 0.000476952002 | M140: -3.078760801 | N140: -66.43050648 | Q140: 30.78760801 | R140: 0.02 | S140: 0 | T140: 0.02 | U140: 0.0001 | V140: 0 | W140: 0.0001 | X140: 0.9900497512 | Y140: 0 | Z140: 0.0001527843883 | AA140: -0.01453029554 | AB140: 68.8179205 | AC140: 0.6529710992 | AD140: 0.4707966337 | AE140: 0.0003839450957 | AF140: -2.454074966 | AG140: -68.31461751 | AH140: 1.609984068 | AI140: 1.169721895 | AJ140: 1.305942198 | AK140: 0.9415932674 | AL140: =(A_*C_+B_*D_)/(C_^2+D_^2) -> 1.236051666 | AM140: =(B_*C_-A_*D_)/(C_^2+D_^2) -> 0.00449022051 | AN140: 1.236059822 | AO140: 0.00363269666 | AP140: 1.840789797 | AQ140: 0.8049920342 | AR140: 0.5848609476 | AS140: 0.0004745791065 | AT140: -2.45044227 | AU140: -66.47382771 | AV140: -3.585779369e-06 | AW140: 4.274229205e-06 | AX140: 5.579144108e-06 | AY140: 2.268828512 | AZ140: -105.0686484 | BB140: P_49 | BC140: 49 | BD140: =4*PI()*N_/100 -> 6.157521601 | BE140: -0.8983835702 | BF140: -0.8947135521 | BG140: -0.895516893 | BI140: =SUMPRODUCT(Is,SIN(Fi_Is+NH_*BD140+NH_*Ofs_))+DC_/(R_s+R_l) -> -7.340036335e-05 | BJ140: 36 | BK140: -324 | BL140: 0 | BM140: =SUM(BL$92:BL140) -> 4 | BN140: -1764 | BO140: 1e-09 | BP140: 1e-09 | BQ140: 0 | BR140: 0 | BS140: 0 | BT140: 0 | BV140: P_49 | BW140: 49 | BX140: 0.6157521601 | BY140: 0.8998627365 | BZ140: 0.004349521459 | CA140: -0.1661549534
C141: 50 | D141: =fo_*NH_ -> 5000 | E141: =NH_*PI()*(2*Duty_cycle/100*T_+tr_)/T_ -> 160.2212253 | F141: 3.141592654 | G141: 3.141592654 | H141: -1.023602993e-16 | I141: -1.023602993e-16 | J141: =-(High_-Low_)/PI()/NH_*(Y_*SIN(Rad_t)-X_*SIN(Rad_tr)) -> 1.187336718e-32 | K141: =(High_-Low_)/PI()/NH_*(Y_*COS(Rad_t)-X_*COS(Rad_tr)) -> 0 | L141: =SQRT(ReVs^2+ImVs^2) -> 1.187336718e-32 | M141: 0 | N141: -1000 | Q141: 31.41592654 | R141: 0.02 | S141: 0 | T141: 0.02 | U141: 0.0001 | V141: 0 | W141: 0.0001 | X141: 0.9900497512 | Y141: =-2*Y_0*ImYl/(Y_0^2+Yl^2+2*Y_0*ReYl) -> 0 | Z141: 0.0001 | AA141: -2.450235652e-17 | AB141: 10000 | AC141: 0.9950248756 | AD141: 1.212957923e-15 | AE141: =SQRT(ReVin^2+ImVin^2)*Vs -> 1.18142957e-32 | AF141: 1.219022713e-15 | AG141: -638.5518433 | AH141: 1.990049751 | AI141: 2.438106378e-15 | AJ141: 1.990049751 | AK141: 2.425915846e-15 | AL141: 1 | AM141: 6.125742275e-18 | AN141: =SQRT(ReVoi^2+ImVoi^2) -> 1 | AO141: 6.125742275e-18 | AP141: 0 | AQ141: =ReVin*ReVoi-ImVin*ImVoi -> 0.9950248756 | AR141: =ImVin*ReVoi+ReVin*ImVoi -> 1.219053189e-15 | AS141: =SQRT(ReVout^2+ImVout^2)*Vs -> 1.18142957e-32 | AT141: 1.225148455e-15 | AU141: -638.5518433 | AV141: =(Vs*COS(Fi_Vs)-Vin*COS(Fi_Vin))/R_s -> 1.18142957e-36 | AW141: =(Vs*SIN(Fi_Vs)-Vin*SIN(Fi_Vin))/R_s -> -2.880378958e-49 | AX141: =SQRT(ReIs^2+ImIs^2) -> 1.18142957e-36 | AY141: -2.438045425e-13 | AZ141: -718.5518433 | BB141: P_50 | BC141: 50 | BD141: 6.283185307 | BE141: -3.55808876e-15 | BF141: -0.4455216634 | BG141: -0.8955129697 | BI141: 0.008910433268 | BJ141: 7.019583574e-14 | BK141: -360 | BL141: 0 | BM141: =SUM(BL$92:BL141) -> 4 | BN141: -1800 | BO141: 1e-09 | BP141: 1e-09 | BQ141: 0 | BR141: 0 | BS141: 3.30872245e-24 | BT141: 3.30872245e-13 | BV141: P_50 | BW141: 50 | BX141: 0.6283185307 | BY141: 0.8999905346 | BZ141: 0.004477564849 | CA141: -1.012834352e-16
C142: 51 | D142: 5100 | E142: 163.4256498 | F142: 3.204424507 | G142: 3.204424507 | H142: -0.01959494424 | I142: -0.01959494424 | J142: 2.764525246e-05 | K142: -0.000439408705 | L142: 0.0004402774921 | M142: -0.06283185307 | N142: -67.12547032 | Q142: 32.04424507 | R142: 0.02 | S142: 0 | T142: 0.02 | U142: 0.0001 | V142: 0 | W142: 0.0001 | X142: 0.9900497512 | Y142: 0 | Z142: 0.0001527843883 | AA142: 0.01453029554 | AB142: 68.8179205 | AC142: 0.6529710992 | AD142: -0.4707966337 | AE142: 0.0003544222125 | AF142: -0.6875176871 | AG142: -69.00958135 | AH142: 1.609984068 | AI142: -1.169721895 | AJ142: 1.305942198 | AK142: -0.9415932674 | AL142: 1.236051666 | AM142: -0.00449022051 | AN142: 1.236059822 | AO142: -0.00363269666 | AP142: 1.840789797 | AQ142: 0.8049920342 | AR142: -0.5848609476 | AS142: 0.0004380870568 | AT142: -0.6911503838 | AU142: -67.16879156 | AV142: 3.310056234e-06 | AW142: 3.945568751e-06 | AX142: 5.150144177e-06 | AY142: 0.872764142 | AZ142: -105.7636123 | BB142: P_51 | BC142: 51 | BD142: 6.408849013 | BE142: 0.8983835702 | BF142: 0.003670305173 | BG142: -0.8955039655 | BI142: 0.0178942653 | BJ142: -36 | BK142: -36 | BL142: 1 | BM142: =SUM(BL$92:BL142) -> 5 | BN142: -1836 | BO142: 1e-09 | BP142: 1e-09 | BQ142: 0 | BR142: 0 | BS142: 0 | BT142: 0 | BV142: P_51 | BW142: 51 | BX142: 0.6408849013 | BY142: 0.9001201126 | BZ142: 0.004605617094 | CA142: 0.1661549534
C143: 52 | D143: 5200 | E143: 166.6300743 | F143: 3.26725636 | G143: 3.26725636 | H143: -0.03836039165 | I143: -0.03836039165 | J143: -1.251961128e-18 | K143: -7.645564138e-20 | L143: 1.254293478e-18 | M143: 1.509803371 | N143: -358.0320167 | Q143: 32.6725636 | R143: 0.02 | S143: 0 | T143: 0.02 | U143: 0.0001 | V143: 0 | W143: 0.0001 | X143: 0.9900497512 | Y143: 0 | Z143: 0.00104696567 | AA143: 0.0615375596 | AB143: 16.24788681 | AC143: 0.09951646298 | AD143: -0.2909683214 | AE143: 3.857153138e-19 | AF143: 0.2685535131 | AG143: -368.2746624 | AH143: 0.6149591928 | AI143: -1.892649784 | AJ143: 0.199032926 | AK143: -0.5819366428 | AL143: 3.235301847 | AM143: -0.04978617616 | AN143: 3.23568489 | AO143: -0.01538720318 | AP143: 10.19932442 | AQ143: 0.3074795964 | AR143: -0.9463248918 | AS143: 1.248053212e-18 | AT143: 0.2531663099 | AU143: -358.075338 | AV143: -5.908679628e-21 | AW143: 2.299233108e-20 | AX143: 2.373941414e-20 | AY143: 1.82233804 | AZ143: -392.4906001 | BB143: P_52 | BC143: 52 | BD143: 6.534512719 | BE143: 0.8998426486 | BF143: 0.00440015544 | BG143: -0.8954781053 | BI143: 0.01790884986 | BJ143: -72 | BK143: -72 | BL143: 0 | BM143: =SUM(BL$92:BL143) -> 5 | BN143: -1872 | BO143: 1e-09 | BP143: 1e-09 | BQ143: 0 | BR143: 0 | BS143: -3.101927297e-24 | BT143: -3.101927297e-13 | BV143: P_52 | BW143: 52 | BX143: 0.6534512719 | BY143: 0.9000795588 | BZ143: 0.004556042457 | CA143: 0.3523444608
C144: 53 | D144: 5300 | E144: 169.8344989 | F144: 3.330088213 | G144: 3.330088213 | H144: -0.05626917445 | I144: -0.05626917445 | J144: 0.0002279678395 | K144: -0.001195049265 | L144: 0.001216598571 | M144: -0.1884955592 | N144: -58.29705396 | Q144: 33.30088213 | R144: 0.02 | S144: 0 | T144: 0.02 | U144: 0.0001 | V144: 0 | W144: 0.0001 | X144: 0.9900497512 | Y144: 0 | Z144: 0.00104696567 | AA144: -0.0615375596 | AB144: 16.24788681 | AC144: 0.09951646298 | AD144: 0.2909683214 | AE144: 0.0003741235265 | AF144: 1.052754299 | AG144: -68.53969961 | AH144: -0.6149591928 | AI144: -1.892649784 | AJ144: 0.199032926 | AK144: 0.5819366428 | AL144: -3.235301847 | AM144: -0.04978617616 | AN144: 3.23568489 | AO144: -3.12620545 | AP144: 10.19932442 | AQ144: -0.3074795964 | AR144: -0.9463248918 | AS144: 0.001210545842 | AT144: -2.073451151 | AU144: -58.3403752 | AV144: 2.01958154e-05 | AW144: -1.10600553e-05 | AX144: 2.302598061e-05 | AY144: -0.5010302275 | AZ144: -92.75563731 | BB144: P_53 | BC144: 53 | BD144: 6.660176426 | BE144: 0.8999554958 | BF144: 0.004457115709 | BG144: -0.8953658195 | BI144: 0.0179099676 | BJ144: -108 | BK144: -108 | BL144: 0 | BM144: =SUM(BL$92:BL144) -> 5 | BN144: -1908 | BO144: 1e-09 | BP144: 1e-09 | BQ144: 0 | BR144: 0 | BS144: 6.203854594e-24 | BT144: 6.203854594e-13 | BV144: P_53 | BW144: 53 | BX144: 0.6660176426 | BY144: 0.8999367085 | BZ144: 0.004396460271 | CA144: 0.5518397237
C145: 54 | D145: 5400 | E145: 173.0389234 | F145: 3.392920066 | G145: 3.392920066 | H145: -0.07329671267 | I145: -0.07329671267 | J145: 3.007538397e-17 | K145: 7.6568909e-18 | L145: 3.103476597e-17 | M145: -1.820090268 | N145: -330.1630305 | Q145: 33.92920066 | R145: 0.02 | S145: 0 | T145: 0.02 | U145: 0.0001 | V145: 0 | W145: 0.0001 | X145: 0.9900497512 | Y145: 0 | Z145: 0.0001527843883 | AA145: -0.01453029554 | AB145: 68.8179205 | AC145: 0.6529710992 | AD145: 0.4707966337 | AE145: 2.498290423e-17 | AF145: -1.195404434 | AG145: -332.0471415 | AH145: -1.609984068 | AI145: -1.169721895 | AJ145: 1.305942198 | AK145: 0.9415932674 | AL145: -1.236051666 | AM145: -0.00449022051 | AN145: 1.236059822 | AO145: -3.137959957 | AP145: 1.840789797 | AQ145: -0.8049920342 | AR145: -0.5848609476 | AS145: 3.088036415e-17 | AT145: -4.333364391 | AU145: -330.2063517 | AV145: -3.363310392e-19 | AW145: -1.366437796e-19 | AX145: 3.63029049e-19 | AY145: -2.755686263 | AZ145: -368.8011724 | BB145: P_54 | BC145: 54 | BD145: 6.785840132 | BE145: 0.8999814853 | BF145: 0.004471088389 | BG145: -0.8939140002 | BI145: 0.01791020794 | BJ145: -144 | BK145: -144 | BL145: 0 | BM145: =SUM(BL$92:BL145) -> 5 | BN145: -1944 | BO145: 1e-09 | BP145: 1e-09 | BQ145: 0 | BR145: 0 | BS145: -3.101927297e-24 | BT145: -3.101927297e-13 | BV145: P_54 | BW145: 54 | BX145: 0.6785840132 | BY145: 0.8998894611 | BZ145: 0.004348011754 | CA145: 0.7301732689
C146: 55 | D146: 5500 | E146: 176.2433479 | F146: 3.455751919 | G146: 3.455751919 | H146: -0.08942105846 | I146: -0.08942105846 | J146: 0.0005757210501 | K146: -0.001771887198 | L146: 0.001863072454 | M146: -0.3141592654 | N146: -54.5954051 | Q146: 34.55751919 | R146: 0.02 | S146: 0 | T146: 0.02 | U146: 0.0001 | V146: 0 | W146: 0.0001 | X146: 0.9900497512 | Y146: 0 | Z146: 0.0001 | AA146: -9.80050894e-17 | AB146: 10000 | AC146: 0.9950248756 | AD146: 4.851617009e-15 | AE146: 0.001853803437 | AF146: -0.3141592654 | AG146: -54.63872634 | AH146: -1.990049751 | AI146: -9.751993988e-15 | AJ146: 1.990049751 | AK146: 9.703234019e-15 | AL146: -1 | AM146: -2.45018849e-17 | AN146: 1 | AO146: -3.141592654 | AP146: 0 | AQ146: -0.9950248756 | AR146: -4.875996994e-15 | AS146: 0.001853803437 | AT146: -3.455751919 | AU146: -54.63872634 | AV146: 1.763071839e-07 | AW146: -5.728567663e-08 | AX146: 1.853803437e-07 | AY146: -0.3141592654 | AZ146: -134.6387263 | BB146: P_55 | BC146: 55 | BD146: 6.911503838 | BE146: 0.8999905346 | BF146: 0.004477564849 | BG146: -2.996207492e-15 | BI146: 0.01791025939 | BJ146: -180 | BK146: -180 | BL146: 0 | BM146: =SUM(BL$92:BL146) -> 5 | BN146: -1980 | BO146: 1e-09 | BP146: 1e-09 | BQ146: 0 | BR146: 0 | BS146: -6.410649747e-24 | BT146: -6.410649747e-13 | BV146: P_55 | BW146: 55 | BX146: 0.6911503838 | BY146: 0.8999928684 | BZ146: 0.004480470532 | CA146: 0.8506919377
C147: 56 | D147: 5600 | E147: 179.4477724 | F147: 3.518583772 | G147: 3.518583772 | H147: -0.1046229326 | I147: -0.1046229326 | J147: 2.669394108e-17 | K147: 1.064917862e-17 | L147: 2.873971982e-17 | M147: -1.950385273 | N147: -330.8303494 | Q147: 35.18583772 | R147: 0.02 | S147: 0 | T147: 0.02 | U147: 0.0001 | V147: 0 | W147: 0.0001 | X147: 0.9900497512 | Y147: 0 | Z147: 0.0001527843883 | AA147: 0.01453029554 | AB147: 68.8179205 | AC147: 0.6529710992 | AD147: -0.4707966337 | AE147: 2.313539818e-17 | AF147: -2.575071107 | AG147: -332.7144604 | AH147: -1.609984068 | AI147: 1.169721895 | AJ147: 1.305942198 | AK147: -0.9415932674 | AL147: -1.236051666 | AM147: 0.00449022051 | AN147: 1.236059822 | AO147: 3.137959957 | AP147: 1.840789797 | AQ147: -0.8049920342 | AR147: 0.5848609476 | AS147: 2.859673614e-17 | AT147: 0.5628888499 | AU147: -330.8736706 | AV147: 1.77436897e-19 | AW147: -2.855433295e-19 | AX147: 3.36182756e-19 | AY147: -1.014789278 | AZ147: -369.4684913 | BB147: P_56 | BC147: 56 | BD147: 7.037167544 | BE147: 0.8999944775 | BF147: 0.004484015903 | BG147: 0.8939140002 | BI147: 0.01791020923 | BJ147: 144 | BK147: -216 | BL147: 0 | BM147: =SUM(BL$92:BL147) -> 5 | BN147: -2016 | BO147: 1e-09 | BP147: 1e-09 | BQ147: 0 | BR147: 0 | BS147: -3.101927297e-24 | BT147: -3.101927297e-13 | BV147: P_56 | BW147: 56 | BX147: 0.7037167544 | BY147: 0.9000976151 | BZ147: 0.004612389069 | CA147: 0.9025063312
C148: 57 | D148: 5700 | E148: 182.6521969 | F148: 3.581415625 | G148: 3.581415625 | H148: -0.1188857525 | I148: -0.1188857525 | J148: 0.001017635194 | K148: -0.002162584869 | L148: 0.002390053285 | M148: -0.4398229715 | N148: -52.43184833 | Q148: 35.81415625 | R148: 0.02 | S148: 0 | T148: 0.02 | U148: 0.0001 | V148: 0 | W148: 0.0001 | X148: 0.9900497512 | Y148: 0 | Z148: 0.00104696567 | AA148: 0.0615375596 | AB148: 16.24788681 | AC148: 0.09951646298 | AD148: -0.2909683214 | AE148: 0.0007349796268 | AF148: -1.68107283 | AG148: -62.67449398 | AH148: -0.6149591928 | AI148: 1.892649784 | AJ148: 0.199032926 | AK148: -0.5819366428 | AL148: -3.235301847 | AM148: 0.04978617616 | AN148: 3.23568489 | AO148: 3.12620545 | AP148: 10.19932442 | AQ148: -0.3074795964 | AR148: 0.9463248918 | AS148: 0.002378162473 | AT148: 1.445132621 | AU148: -52.47516957 | AV148: 4.486943352e-05 | AW148: -5.742401001e-06 | AX148: 4.523539802e-05 | AY148: -0.1272883032 | AZ148: -86.89043168 | BB148: P_57 | BC148: 57 | BD148: 7.16283125 | BE148: 0.899996453 | BF148: 0.004497869111 | BG148: 0.8953658195 | BI148: 0.01790997168 | BJ148: 108 | BK148: -252 | BL148: 0 | BM148: =SUM(BL$92:BL148) -> 5 | BN148: -2052 | BO148: 1e-09 | BP148: 1e-09 | BQ148: 0 | BR148: 0 | BS148: 0 | BT148: 0 | BV148: P_57 | BW148: 57 | BX148: 0.716283125 | BY148: 0.9000643863 | BZ148: 0.004558282068 | CA148: 0.906144065
C149: 58 | D149: 5800 | E149: 185.8566214 | F149: 3.644247478 | G149: 3.644247478 | H149: -0.1321956527 | I149: -0.1321956527 | J149: 1.521730904e-17 | K149: 8.362665326e-18 | L149: 1.736377452e-17 | M149: -2.073293637 | N149: -335.2071172 | Q149: 36.44247478 | R149: 0.02 | S149: 0 | T149: 0.02 | U149: 0.0001 | V149: 0 | W149: 0.0001 | X149: 0.9900497512 | Y149: 0 | Z149: 0.00104696567 | AA149: -0.0615375596 | AB149: 16.24788681 | AC149: 0.09951646298 | AD149: 0.2909683214 | AE149: 5.339638492e-18 | AF149: -0.8320437784 | AG149: -345.4497629 | AH149: 0.6149591928 | AI149: 1.892649784 | AJ149: 0.199032926 | AK149: 0.5819366428 | AL149: 3.235301847 | AM149: 0.04978617616 | AN149: 3.23568489 | AO149: 0.01538720318 | AP149: 10.19932442 | AQ149: 0.3074795964 | AR149: 0.9463248918 | AS149: 1.727738758e-17 | AT149: -0.8166565752 | AU149: -335.2504385 | AV149: -2.391639464e-19 | AW149: -2.253933114e-19 | AX149: 3.286358746e-19 | AY149: -2.385828305 | AZ149: -369.6657006 | BB149: P_58 | BC149: 58 | BD149: 7.288494956 | BE149: 0.8999975371 | BF149: 0.004554273344 | BG149: 0.8954781053 | BI149: 0.01790886527 | BJ149: 72 | BK149: -288 | BL149: 0 | BM149: =SUM(BL$92:BL149) -> 5 | BN149: -2088 | BO149: 1e-09 | BP149: 1e-09 | BQ149: 0 | BR149: 0 | BS149: 0 | BT149: 0 | BV149: P_58 | BW149: 58 | BX149: 0.7288494956 | BY149: 0.8999480459 | BZ149: 0.004387993018 | CA149: 0.8946791075
C150: 59 | D150: 5900 | E150: 189.0610459 | F150: 3.707079331 | G150: 3.707079331 | H150: -0.1445414967 | I150: -0.1445414967 | J150: 0.001504241588 | K150: -0.002370305463 | L150: 0.002807328043 | M150: -0.5654866776 | N150: -51.03413672 | Q150: 37.07079331 | R150: 0.02 | S150: 0 | T150: 0.02 | U150: 0.0001 | V150: 0 | W150: 0.0001 | X150: 0.9900497512 | Y150: 0 | Z150: 0.0001527843883 | AA150: -0.01453029554 | AB150: 68.8179205 | AC150: 0.6529710992 | AD150: 0.4707966337 | AE150: 0.002259891623 | AF150: 0.05919915641 | AG150: -52.91824775 | AH150: 1.609984068 | AI150: 1.169721895 | AJ150: 1.305942198 | AK150: 0.9415932674 | AL150: 1.236051666 | AM150: 0.00449022051 | AN150: 1.236059822 | AO150: 0.00363269666 | AP150: 1.840789797 | AQ150: 0.8049920342 | AR150: 0.5848609476 | AS150: 0.002793361237 | AT150: 0.06283185307 | AU150: -51.07745796 | AV150: 2.28745247e-06 | AW150: -3.275894275e-05 | AX150: 3.283870839e-05 | AY150: -1.501082673 | AZ150: -89.67227866 | BB150: P_59 | BC150: 59 | BD150: 7.414158662 | BE150: 0.8999981655 | BF150: 0.005276867642 | BG150: 0.8955039655 | BI150: 0.01789442596 | BJ150: 36 | BK150: -324 | BL150: 0 | BM150: =SUM(BL$92:BL150) -> 5 | BN150: -2124 | BO150: 1e-09 | BP150: 1e-09 | BQ150: 0 | BR150: 0 | BS150: 0 | BT150: 0 | BV150: P_59 | BW150: 59 | BX150: 0.7414158662 | BY150: 0.8999097071 | BZ150: 0.004337592414 | CA150: 0.8899186399
C151: 60 | D151: 6000 | E151: 192.2654704 | F151: 3.769911184 | G151: 3.769911184 | H151: -0.1559148806 | I151: -0.1559148806 | J151: 6.877949499e-17 | K151: 4.982869001e-17 | L151: 8.493242772e-17 | M151: -2.197757121 | N151: -321.4185292 | Q151: 37.69911184 | R151: 0.02 | S151: 0 | T151: 0.02 | U151: 0.0001 | V151: 0 | W151: 0.0001 | X151: 0.9900497512 | Y151: 0 | Z151: 0.0001 | AA151: -2.940282783e-17 | AB151: 10000 | AC151: 0.9950248756 | AD151: 1.455549508e-15 | AE151: 8.450987833e-17 | AF151: -2.197757121 | AG151: -321.4618505 | AH151: 1.990049751 | AI151: 2.925727654e-15 | AJ151: 1.990049751 | AK151: 2.911099015e-15 | AL151: 1 | AM151: 7.350890729e-18 | AN151: 1 | AO151: 7.350890729e-18 | AP151: 0 | AQ151: 0.9950248756 | AR151: 1.462863827e-15 | AS151: 8.450987833e-17 | AT151: -2.197757121 | AU151: -321.4618505 | AV151: -4.958078608e-21 | AW151: -6.843730844e-21 | AX151: 8.450987833e-21 | AY151: -2.197757121 | AZ151: -401.4618505 | BB151: P_60 | BC151: 60 | BD151: 7.539822369 | BE151: 0.8999985362 | BF151: 0.4499992681 | BG151: 0.8955129697 | BI151: 0.008999985362 | BJ151: 7.633331236e-14 | BK151: -360 | BL151: 0 | BM151: =SUM(BL$92:BL151) -> 5 | BN151: -2160 | BO151: 1e-09 | BP151: 1e-09 | BQ151: 0 | BR151: 0 | BS151: 6.203854594e-24 | BT151: 6.203854594e-13 | BV151: P_60 | BW151: 60 | BX151: 0.7539822369 | BY151: 0.8999944775 | BZ151: 0.004484015903 | CA151: 0.8939140002
C152: 61 | D152: 6100 | E152: 195.4698949 | F152: 3.832743037 | G152: 3.832743037 | H152: -0.1663101292 | I152: -0.1663101292 | J152: 0.001991452253 | K152: -0.00240725225 | L152: 0.003124219178 | M152: -0.6911503838 | N152: -50.10517012 | Q152: 38.32743037 | R152: 0.02 | S152: 0 | T152: 0.02 | U152: 0.0001 | V152: 0 | W152: 0.0001 | X152: 0.9900497512 | Y152: 0 | Z152: 0.0001527843883 | AA152: 0.01453029554 | AB152: 68.8179205 | AC152: 0.6529710992 | AD152: -0.4707966337 | AE152: 0.002514988146 | AF152: -1.315836218 | AG152: -51.98928115 | AH152: 1.609984068 | AI152: -1.169721895 | AJ152: 1.305942198 | AK152: -0.9415932674 | AL152: 1.236051666 | AM152: -0.00449022051 | AN152: 1.236059822 | AO152: -0.00363269666 | AP152: 1.840789797 | AQ152: 0.8049920342 | AR152: -0.5848609476 | AS152: 0.003108675799 | AT152: -1.319468915 | AU152: -50.14849135 | AV152: 3.545910239e-05 | AW152: 8.844695386e-06 | AX152: 3.654554116e-05 | AY152: 0.2444456113 | AZ152: -88.74331206 | BB152: P_61 | BC152: 61 | BD152: 7.665486075 | BE152: 0.8999987453 | BF152: 0.8947215878 | BG152: 0.895516893 | BI152: 0.0001055431506 | BJ152: -36 | BK152: -36 | BL152: 1 | BM152: =SUM(BL$92:BL152) -> 6 | BN152: -2196 | BO152: 1e-09 | BP152: 1e-09 | BQ152: 0 | BR152: 0 | BS152: 0 | BT152: 0 | BV152: P_61 | BW152: 61 | BX152: 0.7665486075 | BY152: 0.9000802842 | BZ152: 0.004629227498 | CA152: 0.8982977362
C153: 62 | D153: 6200 | E153: 198.6743194 | F153: 3.89557489 | G153: 3.89557489 | H153: -0.1757242834 | I153: -0.1757242834 | J153: 1.846773686e-17 | K153: 1.744175148e-17 | L153: 2.540220462e-17 | M153: -2.327630832 | N153: -331.9025718 | Q153: 38.9557489 | R153: 0.02 | S153: 0 | T153: 0.02 | U153: 0.0001 | V153: 0 | W153: 0.0001 | X153: 0.9900497512 | Y153: 0 | Z153: 0.00104696567 | AA153: 0.0615375596 | AB153: 16.24788681 | AC153: 0.09951646298 | AD153: -0.2909683214 | AE153: 7.811584364e-18 | AF153: -3.568880691 | AG153: -342.1452175 | AH153: 0.6149591928 | AI153: -1.892649784 | AJ153: 0.199032926 | AK153: -0.5819366428 | AL153: 3.235301847 | AM153: -0.04978617616 | AN153: 3.23568489 | AO153: -0.01538720318 | AP153: 10.19932442 | AQ153: 0.3074795964 | AR153: -0.9463248918 | AS153: 2.527582549e-17 | AT153: -3.584267894 | AU153: -331.945893 | AV153: -2.066496734e-19 | AW153: -4.340978032e-19 | AX153: 4.807754052e-19 | AY153: -2.015096164 | AZ153: -366.3611551 | BB153: P_62 | BC153: 62 | BD153: 7.791149781 | BE153: 0.89999884 | BF153: 0.8954439152 | BG153: 0.8955188587 | BI153: 9.109849676e-05 | BJ153: -72 | BK153: -72 | BL153: 0 | BM153: =SUM(BL$92:BL153) -> 6 | BN153: -2232 | BO153: 1e-09 | BP153: 1e-09 | BQ153: 0 | BR153: 0 | BS153: 0 | BT153: 0 | BV153: P_62 | BW153: 62 | BX153: 0.7791149781 | BY153: 0.90005279 | BZ153: 0.004566131255 | CA153: 0.8978032119
C154: 63 | D154: 6300 | E154: 201.8787439 | F154: 3.958406744 | G154: 3.958406744 | H154: -0.18415708 | I154: -0.18415708 | J154: 0.002441795769 | K154: -0.002292998853 | L154: 0.003349658239 | M154: -0.8168140899 | N154: -49.49999002 | Q154: 39.58406744 | R154: 0.02 | S154: 0 | T154: 0.02 | U154: 0.0001 | V154: 0 | W154: 0.0001 | X154: 0.9900497512 | Y154: 0 | Z154: 0.00104696567 | AA154: -0.0615375596 | AB154: 16.24788681 | AC154: 0.09951646298 | AD154: 0.2909683214 | AE154: 0.001030073504 | AF154: 0.4244357683 | AG154: -59.74263567 | AH154: -0.6149591928 | AI154: -1.892649784 | AJ154: 0.199032926 | AK154: 0.5819366428 | AL154: -3.235301847 | AM154: -0.04978617616 | AN154: 3.23568489 | AO154: -3.12620545 | AP154: 10.19932442 | AQ154: -0.3074795964 | AR154: -0.9463248918 | AS154: 0.003332993273 | AT154: -2.701769682 | AU154: -49.54331126 | AV154: 2.708645003e-05 | AW154: -5.731973836e-05 | AX154: 6.339738308e-05 | AY154: -1.129348758 | AZ154: -83.95857337 | BB154: P_63 | BC154: 63 | BD154: 7.916813487 | BE154: 0.89999884 | BF154: 0.8954997774 | BG154: 0.8955199374 | BI154: 8.998125274e-05 | BJ154: -108 | BK154: -108 | BL154: 0 | BM154: =SUM(BL$92:BL154) -> 6 | BN154: -2268 | BO154: 1e-09 | BP154: 1e-09 | BQ154: 0 | BR154: 0 | BS154: 0 | BT154: 0 | BV154: P_63 | BW154: 63 | BX154: 0.7916813487 | BY154: 0.899956956 | BZ154: 0.004371816664 | CA154: 0.8946927675
C155: 64 | D155: 6400 | E155: 205.0831684 | F155: 4.021238597 | G155: 4.021238597 | H155: -0.1916109239 | I155: -0.1916109239 | J155: 3.379339349e-17 | K155: 4.099933769e-17 | L155: 5.313133854e-17 | M155: -2.452243547 | N155: -325.4929849 | Q155: 40.21238597 | R155: 0.02 | S155: 0 | T155: 0.02 | U155: 0.0001 | V155: 0 | W155: 0.0001 | X155: 0.9900497512 | Y155: 0 | Z155: 0.0001527843883 | AA155: -0.01453029554 | AB155: 68.8179205 | AC155: 0.6529710992 | AD155: 0.4707966337 | AE155: 4.27705865e-17 | AF155: -1.827557713 | AG155: -327.3770959 | AH155: -1.609984068 | AI155: -1.169721895 | AJ155: 1.305942198 | AK155: 0.9415932674 | AL155: -1.236051666 | AM155: -0.00449022051 | AN155: 1.236059822 | AO155: -3.137959957 | AP155: 1.840789797 | AQ155: -0.8049920342 | AR155: -0.5848609476 | AS155: 5.286700352e-17 | AT155: -4.96551767 | AU155: -325.5363061 | AV155: -6.027554198e-19 | AW155: 1.515013194e-19 | AX155: 6.215036169e-19 | AY155: 2.895345765 | AZ155: -364.1311268 | BB155: P_64 | BC155: 64 | BD155: 8.042477193 | BE155: =SUMPRODUCT(Vs,SIN(Fi_Vs+NH_*BD155+NH_*Ofs_))+DC_ -> 0.8999987453 | BF155: =SUMPRODUCT(Vin,SIN(Fi_Vin+NH_*BD155+NH_*Ofs_))+DC_*R_l/(R_l+R_s) -> 0.8955125955 | BG155: =SUMPRODUCT(Vout,SIN(Fi_Vout+NH_*BD155+NH_*Ofs_))+DC_*R_l/(R_l+R_s) -> 0.8955205627 | BI155: 8.972299631e-05 | BJ155: -144 | BK155: -144 | BL155: 0 | BM155: =SUM(BL$92:BL155) -> 6 | BN155: -2304 | BO155: 1e-09 | BP155: 1e-09 | BQ155: 0 | BR155: 0 | BS155: 0 | BT155: 0 | BV155: P_64 | BW155: 64 | BX155: =4*PI()*N_/(100*Zoom_) -> 0.8042477193 | BY155: =SUMPRODUCT(Vs,SIN(Fi_Vs+NH_*BX155+NH_*Ofs_))+DC_ -> 0.8999254592 | BZ155: =SUMPRODUCT(Vin,SIN(Fi_Vin+NH_*BX155+NH_*Ofs_))+DC_*R_l/(R_l+R_s) -> 0.00431589049 | CA155: =SUMPRODUCT(Vout,SIN(Fi_Vout+NH_*BX155+NH_*Ofs_))+DC_*R_l/(R_l+R_s) -> 0.8935084282
C156: 65 | D156: 6500 | E156: 208.2875929 | F156: =NH_*PI()*tr_/T_ -> 4.08407045 | G156: =NH_*PI()*tf_/T_ -> 4.08407045 | H156: =SIN(Rad_tr)/Rad_tr -> -0.1980908518 | I156: =SIN(Rad_tf)/Rad_tf -> -0.1980908518 | J156: 0.002825278962 | K156: -0.002052685319 | L156: 0.003492236853 | M156: -0.9424777961 | N156: -49.13792618 | Q156: =2*PI()*Fr_*t_pd*10^-3 -> 40.8407045 | R156: =1/R_s -> 0.02 | S156: =2*PI()*Fr_*C_s/1000000 -> 0 | T156: =SQRT(ReYs^2+ImYs^2) -> 0.02 | U156: =1/R_l -> 0.0001 | V156: =2*PI()*Fr_*C_l/1000000 -> 0 | W156: =SQRT(ReYl^2+ImYl^2) -> 0.0001 | X156: =(Y_0^2-Yl^2)/(Y_0^2+Yl^2+2*Y_0*ReYl) -> 0.9900497512 | Y156: 0 | Z156: =Y_0*(ReYl*(Y_0-ImYl*TAN(Fi_))+ReYl*TAN(Fi_)*(ImYl+Y_0*TAN(Fi_)))/((Y_0-ImYl*TAN(Fi_))^2+(ReYl*TAN(Fi_))^2) -> 0.0001 | AA156: =Y_0*((ImYl+Y_0*TAN(Fi_))*(Y_0-ImYl*TAN(Fi_))-TAN(Fi_)*ReYl^2)/((Y_0-ImYl*TAN(Fi_))^2+(ReYl*TAN(Fi_))^2) -> 3.919943374e-17 | AB156: =SQRT(1/(ReYin^2+ImYin^2)) -> 10000 | AC156: =(ReYs+ReYin)/((ReYs+ReYin)^2+(ImYs+ImYin)^2)/R_s -> 0.9950248756 | AD156: =-(ImYs+ImYin)/((ReYs+ReYin)^2+(ImYs+ImYin)^2)/R_s -> -1.940517994e-15 | AE156: 0.00347486254 | AF156: -0.9424777961 | AG156: -49.18124741 | AH156: =(1+ReGl)*COS(Fi_)+ImGl*SIN(Fi_) -> -1.990049751 | AI156: =COS(Fi_)*ImGl-SIN(Fi_)*(1+ReGl) -> 3.900538681e-15 | AJ156: =1+COS(2*Fi_)*ReGl+SIN(2*Fi_)*ImGl -> 1.990049751 | AK156: =COS(2*Fi_)*ImGl-SIN(2*Fi_)*ReGl -> -3.881035988e-15 | AL156: =(A_*C_+B_*D_)/(C_^2+D_^2) -> -1 | AM156: =(B_*C_-A_*D_)/(C_^2+D_^2) -> 9.800103437e-18 | AN156: 1 | AO156: 3.141592654 | AP156: 0 | AQ156: -0.9950248756 | AR156: 1.950269341e-15 | AS156: 0.00347486254 | AT156: 2.199114858 | AU156: -49.18124741 | AV156: 2.042472955e-07 | AW156: -2.811222848e-07 | AX156: 3.47486254e-07 | AY156: -0.9424777961 | AZ156: -129.1812474 | BB156: P_65 | BC156: 65 | BD156: =4*PI()*N_/100 -> 8.168140899 | BE156: 0.8999985362 | BF156: 0.8955169705 | BG156: 0.8955209315 | BI156: =SUMPRODUCT(Is,SIN(Fi_Is+NH_*BD156+NH_*Ofs_))+DC_/(R_s+R_l) -> 8.963131299e-05 | BJ156: =180/PI()*(Fi_Vout-Fi_Vs) -> 180 | BK156: =IF(D_Fi<0,D_Fi,D_Fi-360) -> -180 | BL156: 0 | BM156: =SUM(BL$92:BL156) -> 6 | BN156: =Fi_Norm-360*BM156 -> -2340 | BO156: 1e-09 | BP156: 1e-09 | BQ156: =BO156-t_pd*0.000000001 -> 0 | BR156: =BQ156/(t_pd*0.000000001)*100 -> 0 | BS156: 6.203854594e-24 | BT156: 6.203854594e-13 | BV156: P_65 | BW156: 65 | BX156: 0.8168140899 | BY156: 0.8999956207 | BZ156: 0.004489170488 | CA156: 0.8951261481
C157: 66 | D157: =fo_*NH_ -> 6600 | E157: =NH_*PI()*(2*Duty_cycle/100*T_+tr_)/T_ -> 211.4920174 | F157: 4.146902303 | G157: 4.146902303 | H157: -0.2036044893 | I157: -0.2036044893 | J157: =-(High_-Low_)/PI()/NH_*(Y_*SIN(Rad_t)-X_*SIN(Rad_tr)) -> 1.686657786e-17 | K157: =(High_-Low_)/PI()/NH_*(Y_*COS(Rad_t)-X_*COS(Rad_tr)) -> 2.674557346e-17 | L157: =SQRT(ReVs^2+ImVs^2) -> 3.16197272e-17 | M157: =IF(AND(ReVs<>0,ImVs<>0), -ATAN2(ReVs,ImVs)-PI()/2, 0) -> -2.578954588 | N157: =IF(AND(ReVs<>0, ImVs<>0), 20*LOG(Vs), -1000) -> -330.0008376 | Q157: 41.46902303 | R157: 0.02 | S157: 0 | T157: 0.02 | U157: 0.0001 | V157: 0 | W157: 0.0001 | X157: 0.9900497512 | Y157: =-2*Y_0*ImYl/(Y_0^2+Yl^2+2*Y_0*ReYl) -> 0 | Z157: 0.0001527843883 | AA157: 0.01453029554 | AB157: 68.8179205 | AC157: 0.6529710992 | AD157: -0.4707966337 | AE157: =SQRT(ReVin^2+ImVin^2)*Vs -> 2.545379647e-17 | AF157: =IF(AND(ReVin<>0, ImVin<>0), ATAN2(ReVin,ImVin)+Fi_Vs, 0) -> -3.203640422 | AG157: =IF(Vin<>0, 20*LOG(Vin), -1000) -> -331.8849487 | AH157: -1.609984068 | AI157: 1.169721895 | AJ157: 1.305942198 | AK157: -0.9415932674 | AL157: -1.236051666 | AM157: 0.00449022051 | AN157: =SQRT(ReVoi^2+ImVoi^2) -> 1.236059822 | AO157: =IF(AND(ReVoi<>0, ImVoi<>0), ATAN2(ReVoi,ImVoi), 0) -> 3.137959957 | AP157: =IF(Voi<>0, 20*LOG(Voi), -1000) -> 1.840789797 | AQ157: =ReVin*ReVoi-ImVin*ImVoi -> -0.8049920342 | AR157: =ImVin*ReVoi+ReVin*ImVoi -> 0.5848609476 | AS157: =SQRT(ReVout^2+ImVout^2)*Vs -> 3.146241512e-17 | AT157: =IF(AND(ReVout<>0, ImVout<>0), ATAN2(ReVout,ImVout)+Fi_Vs, 0) -> -0.06568046512 | AU157: =IF(Vout<>0, 20*LOG(Vout), -1000) -> -330.0441589 | AV157: =(Vs*COS(Fi_Vs)-Vin*COS(Fi_Vin))/R_s -> -2.681517763e-20 | AW157: =(Vs*SIN(Fi_Vs)-Vin*SIN(Fi_Vin))/R_s -> -3.688983185e-19 | AX157: =SQRT(ReIs^2+ImIs^2) -> 3.698716306e-19 | AY157: =IF(AND(ReIs<>0, ImIs<>0), ATAN2(ReIs,ImIs), 0) -> -1.643358593 | AZ157: =IF(Is<>0, 20*LOG(Is), -1000) -> -368.6389796 | BB157: P_66 | BC157: 66 | BD157: 8.293804605 | BE157: 0.8999981655 | BF157: 0.895518737 | BG157: 0.8955211396 | BI157: 8.958856975e-05 | BJ157: 144 | BK157: -216 | BL157: =IF(ABS(BK157-BK156)<180,0,1) -> 0 | BM157: =SUM(BL$92:BL157) -> 6 | BN157: -2376 | BO157: =-BN157/(360*D157*1000000) -> 1e-09 | BP157: 1e-09 | BQ157: 0 | BR157: 0 | BS157: =BP157-t_pd*0.000000001 -> 0 | BT157: =BS157/(t_pd*0.000000001)*100 -> 0 | BV157: P_66 | BW157: 66 | BX157: 0.8293804605 | BY157: 0.9000666034 | BZ157: 0.004660257336 | CA157: 0.8968247767
C158: 67 | D158: 6700 | E158: 214.6964419 | F158: 4.209734156 | G158: 4.209734156 | H158: -0.2081619997 | I158: -0.2081619997 | J158: 0.003119862104 | K158: -0.001715158706 | L158: 0.003560240011 | M158: -1.068141502 | N158: -48.97041447 | Q158: 42.09734156 | R158: 0.02 | S158: 0 | T158: 0.02 | U158: 0.0001 | V158: 0 | W158: 0.0001 | X158: 0.9900497512 | Y158: 0 | Z158: 0.00104696567 | AA158: 0.0615375596 | AB158: 16.24788681 | AC158: 0.09951646298 | AD158: -0.2909683214 | AE158: 0.001094830768 | AF158: -2.30939136 | AG158: -59.21306012 | AH158: -0.6149591928 | AI158: 1.892649784 | AJ158: 0.199032926 | AK158: -0.5819366428 | AL158: -3.235301847 | AM158: 0.04978617616 | AN158: 3.23568489 | AO158: 3.12620545 | AP158: 10.19932442 | AQ158: -0.3074795964 | AR158: 0.9463248918 | AS158: 0.003542527374 | AT158: 0.8168140899 | AU158: -49.0137357 | AV158: 4.904506435e-05 | AW158: -4.620655226e-05 | AX158: 6.738296379e-05 | AY158: -0.7556068339 | AZ158: -83.42899782 | BB158: P_67 | BC158: 67 | BD158: 8.419468312 | BE158: 0.8999975371 | BF158: 0.8955194007 | BG158: 0.8955212339 | BI158: 8.956272652e-05 | BJ158: 108 | BK158: -252 | BL158: 0 | BM158: =SUM(BL$92:BL158) -> 6 | BN158: -2412 | BO158: 1e-09 | BP158: =-(BN159-BN157)/(D159-D157)/360/1000000 -> 1e-09 | BQ158: 0 | BR158: 0 | BS158: -6.410649747e-24 | BT158: -6.410649747e-13 | BV158: P_67 | BW158: 67 | BX158: 0.8419468312 | BY158: 0.9000436997 | BZ158: 0.004581347799 | CA158: 0.8964978054
C159: 68 | D159: 6800 | E159: 217.9008665 | F159: 4.272566009 | G159: 4.272566009 | H159: -0.2117760265 | I159: -0.2117760265 | J159: 3.741829037e-18 | K159: 7.717522389e-18 | L159: 8.576796393e-18 | M159: -2.690139562 | N159: -341.333498 | Q159: 42.72566009 | R159: 0.02 | S159: 0 | T159: 0.02 | U159: 0.0001 | V159: 0 | W159: 0.0001 | X159: 0.9900497512 | Y159: 0 | Z159: 0.00104696567 | AA159: -0.0615375596 | AB159: 16.24788681 | AC159: 0.09951646298 | AD159: 0.2909683214 | AE159: 2.637502123e-18 | AF159: -1.448889704 | AG159: -351.5761436 | AH159: 0.6149591928 | AI159: 1.892649784 | AJ159: 0.199032926 | AK159: 0.5819366428 | AL159: 3.235301847 | AM159: 0.04978617616 | AN159: 3.23568489 | AO159: 0.01538720318 | AP159: 10.19932442 | AQ159: 0.3074795964 | AR159: 0.9463248918 | AS159: 8.534125764e-18 | AT159: -1.433502501 | AU159: -341.3768192 | AV159: -1.607651114e-19 | AW159: -2.247801822e-20 | AX159: 1.623289326e-19 | AY159: -3.00267423 | AZ159: -375.7920813 | BB159: P_68 | BC159: 68 | BD159: 8.545132018 | BE159: 0.899996453 | BF159: 0.8955193953 | BG159: 0.8955212339 | BI159: 8.954115308e-05 | BJ159: 72 | BK159: -288 | BL159: 0 | BM159: =SUM(BL$92:BL159) -> 6 | BN159: -2448 | BO159: 1e-09 | BP159: 1e-09 | BQ159: 0 | BR159: 0 | BS159: -6.410649747e-24 | BT159: -6.410649747e-13 | BV159: P_68 | BW159: 68 | BX159: 0.8545132018 | BY159: 0.8999641131 | BZ159: 0.00434352768 | CA159: 0.8950234107
C160: 69 | D160: 6900 | E160: 221.105291 | F160: 4.335397862 | G160: 4.335397862 | H160: -0.2144616286 | I160: -0.2144616286 | J160: 0.003311552889 | K160: -0.001311136541 | L160: 0.00356166556 | M160: -1.193805208 | N160: -48.96693726 | Q160: 43.35397862 | R160: 0.02 | S160: 0 | T160: 0.02 | U160: 0.0001 | V160: 0 | W160: 0.0001 | X160: 0.9900497512 | Y160: 0 | Z160: 0.0001527843883 | AA160: -0.01453029554 | AB160: 68.8179205 | AC160: 0.6529710992 | AD160: 0.4707966337 | AE160: 0.002867131323 | AF160: -0.5691193743 | AG160: -50.85104829 | AH160: 1.609984068 | AI160: 1.169721895 | AJ160: 1.305942198 | AK160: 0.9415932674 | AL160: 1.236051666 | AM160: 0.00449022051 | AN160: 1.236059822 | AO160: 0.00363269666 | AP160: 1.840789797 | AQ160: 0.8049920342 | AR160: 0.5848609476 | AS160: 0.003543945831 | AT160: -0.5654866776 | AU160: -49.0102585 | AV160: -2.208131359e-05 | AW160: -3.532966458e-05 | AX160: 4.166256844e-05 | AY160: -2.129401203 | AZ160: -87.6050792 | BB160: P_69 | BC160: 69 | BD160: 8.670795724 | BE160: 0.8999944775 | BF160: 0.8955187187 | BG160: 0.8955211396 | BI160: 8.951517581e-05 | BJ160: 36 | BK160: -324 | BL160: 0 | BM160: =SUM(BL$92:BL160) -> 6 | BN160: -2484 | BO160: 1e-09 | BP160: 1e-09 | BQ160: 0 | BR160: 0 | BS160: 0 | BT160: 0 | BV160: P_69 | BW160: 69 | BX160: 0.8670795724 | BY160: 0.8999380028 | BZ160: 0.004277261273 | CA160: 0.8944883481
C161: 70 | D161: 7000 | E161: 224.3097155 | F161: 4.398229715 | G161: 4.398229715 | H161: -0.2162362082 | I161: -0.2162362082 | J161: 1.045039395e-17 | K161: 3.237350301e-17 | L161: 3.401844251e-17 | M161: -2.829345509 | N161: -329.3657115 | Q161: 43.98229715 | R161: 0.02 | S161: 0 | T161: 0.02 | U161: 0.0001 | V161: 0 | W161: 0.0001 | X161: 0.9900497512 | Y161: 0 | Z161: 0.0001 | AA161: -3.430329913e-17 | AB161: 10000 | AC161: 0.9950248756 | AD161: 1.698141092e-15 | AE161: 3.384919653e-17 | AF161: -2.829345509 | AG161: -329.4090327 | AH161: 1.990049751 | AI161: 3.413348929e-15 | AJ161: 1.990049751 | AK161: 3.396282184e-15 | AL161: 1 | AM161: 8.576039184e-18 | AN161: 1 | AO161: 8.576039184e-18 | AP161: 0 | AQ161: 0.9950248756 | AR161: 1.706674465e-15 | AS161: 3.384919653e-17 | AT161: -2.829345509 | AU161: -329.4090327 | AV161: -3.22124408e-21 | AW161: -1.039840194e-21 | AX161: 3.384919653e-21 | AY161: -2.829345509 | AZ161: -409.4090327 | BB161: P_70 | BC161: 70 | BD161: 8.79645943 | BE161: 0.8999905346 | BF161: 0.8955169307 | BG161: 0.8955209315 | BI161: 8.947207713e-05 | BJ161: 1.017777498e-13 | BK161: -360 | BL161: 0 | BM161: =SUM(BL$92:BL161) -> 6 | BN161: -2520 | BO161: 1e-09 | BP161: 1e-09 | BQ161: 0 | BR161: 0 | BS161: 0 | BT161: 0 | BV161: P_70 | BW161: 70 | BX161: 0.879645943 | BY161: 0.899996453 | BZ161: 0.004497869111 | CA161: 0.8953658195
C162: 71 | D162: 7100 | E162: 227.51414 | F162: 4.461061568 | G162: 4.461061568 | H162: -0.2171194336 | I162: -0.2171194336 | J162: 0.00339414109 | K162: -0.0008714673127 | L162: 0.003504233014 | M162: -1.319468915 | N162: -49.10814046 | Q162: 44.61061568 | R162: 0.02 | S162: 0 | T162: 0.02 | U162: 0.0001 | V162: 0 | W162: 0.0001 | X162: 0.9900497512 | Y162: 0 | Z162: 0.0001527843883 | AA162: 0.01453029554 | AB162: 68.8179205 | AC162: 0.6529710992 | AD162: -0.4707966337 | AE162: 0.002820898275 | AF162: -1.944154749 | AG162: -50.9922515 | AH162: 1.609984068 | AI162: -1.169721895 | AJ162: 1.305942198 | AK162: -0.9415932674 | AL162: 1.236051666 | AM162: -0.00449022051 | AN162: 1.236059822 | AO162: -0.00363269666 | AP162: 1.840789797 | AQ162: 0.8049920342 | AR162: -0.5848609476 | AS162: 0.003486799018 | AT162: -1.947787445 | AU162: -49.1514617 | AV162: 3.800749086e-05 | AW162: -1.535162349e-05 | AX162: 4.099075146e-05 | AY162: -0.3838729194 | AZ162: -87.7462824 | BB162: P_71 | BC162: 71 | BD162: 8.922123136 | BE162: 0.8999814853 | BF162: 0.8955125096 | BG162: 0.8955205627 | BI162: 8.937951419e-05 | BJ162: -36 | BK162: -36 | BL162: 1 | BM162: =SUM(BL$92:BL162) -> 7 | BN162: -2556 | BO162: 1e-09 | BP162: 1e-09 | BQ162: 0 | BR162: 0 | BS162: 0 | BT162: 0 | BV162: P_71 | BW162: 71 | BX162: 0.8922123136 | BY162: 0.900055568 | BZ162: 0.004714615124 | CA162: 0.8962739043
C163: 72 | D163: 7200 | E163: 230.7185645 | F163: 4.523893421 | G163: 4.523893421 | H163: -0.2171331548 | I163: -0.2171331548 | J163: 1.12644645e-17 | K163: 5.86966949e-17 | L163: 5.976780197e-17 | M163: -2.951988203 | N163: -324.4706543 | Q163: 45.23893421 | R163: 0.02 | S163: 0 | T163: 0.02 | U163: 0.0001 | V163: 0 | W163: 0.0001 | X163: 0.9900497512 | Y163: 0 | Z163: 0.00104696567 | AA163: 0.0615375596 | AB163: 16.24788681 | AC163: 0.09951646298 | AD163: -0.2909683214 | AE163: 1.837955541e-17 | AF163: -4.193238061 | AG163: -334.7133 | AH163: 0.6149591928 | AI163: -1.892649784 | AJ163: 0.199032926 | AK163: -0.5819366428 | AL163: 3.235301847 | AM163: -0.04978617616 | AN163: 3.23568489 | AO163: -0.01538720318 | AP163: 10.19932442 | AQ163: 0.3074795964 | AR163: -0.9463248918 | AS163: 5.947044973e-17 | AT163: -4.208625264 | AU163: -324.5139755 | AV163: -9.915561022e-19 | AW163: -5.444468724e-19 | AX163: 1.131196668e-18 | AY163: -2.639453534 | AZ163: -358.9292377 | BB163: P_72 | BC163: 72 | BD163: 9.047786842 | BE163: 0.8999554958 | BF163: 0.8954995618 | BG163: 0.8955199374 | BI163: 8.911868118e-05 | BJ163: -72 | BK163: -72 | BL163: 0 | BM163: =SUM(BL$92:BL163) -> 7 | BN163: -2592 | BO163: 1e-09 | BP163: 1e-09 | BQ163: 0 | BR163: 0 | BS163: 6.203854594e-24 | BT163: 6.203854594e-13 | BV163: P_72 | BW163: 72 | BX163: 0.9047786842 | BY163: 0.9000364132 | BZ163: 0.004607852212 | CA163: 0.8960610295
C164: 73 | D164: 7300 | E164: 233.922989 | F164: 4.586725274 | G164: 4.586725274 | H164: -0.2163013135 | I164: -0.2163013135 | J164: 0.003368610591 | K164: -0.0004255544822 | L164: 0.003395384209 | M164: -1.445132621 | N164: -49.38222151 | Q164: 45.86725274 | R164: 0.02 | S164: 0 | T164: 0.02 | U164: 0.0001 | V164: 0 | W164: 0.0001 | X164: 0.9900497512 | Y164: 0 | Z164: 0.00104696567 | AA164: -0.0615375596 | AB164: 16.24788681 | AC164: 0.09951646298 | AD164: 0.2909683214 | AE164: 0.001044134972 | AF164: -0.2038827624 | AG164: -59.62486716 | AH164: -0.6149591928 | AI164: -1.892649784 | AJ164: 0.199032926 | AK164: 0.5819366428 | AL164: -3.235301847 | AM164: -0.04978617616 | AN164: 3.23568489 | AO164: -3.12620545 | AP164: 10.19932442 | AQ164: -0.3074795964 | AR164: -0.9463248918 | AS164: 0.003378491751 | AT164: -3.330088213 | AU164: -49.42554274 | AV164: -1.193908328e-05 | AW164: -6.314402506e-05 | AX164: 6.42628167e-05 | AY164: -1.757667289 | AZ164: -83.84080486 | BB164: P_73 | BC164: 73 | BD164: 9.173450548 | BE164: 0.8998426486 | BF164: 0.8954431381 | BG164: 0.8955188587 | BI164: 8.799020858e-05 | BJ164: -108 | BK164: -108 | BL164: 0 | BM164: =SUM(BL$92:BL164) -> 7 | BN164: -2628 | BO164: 1e-09 | BP164: 1e-09 | BQ164: 0 | BR164: 0 | BS164: 0 | BT164: 0 | BV164: P_73 | BW164: 73 | BX164: 0.9173450548 | BY164: 0.8999699774 | BZ164: 0.004293339963 | CA164: 0.8951983948
C165: 74 | D165: 7400 | E165: 237.1274135 | F165: 4.649557127 | G165: 4.649557127 | H165: -0.2146498475 | I165: -0.2146498475 | J165: 2.363925777e-18 | K165: 3.56603576e-17 | L165: 3.573862405e-17 | M165: -3.07539948 | N165: -328.9372434 | Q165: 46.49557127 | R165: 0.02 | S165: 0 | T165: 0.02 | U165: 0.0001 | V165: 0 | W165: 0.0001 | X165: 0.9900497512 | Y165: 0 | Z165: 0.0001527843883 | AA165: -0.01453029554 | AB165: 68.8179205 | AC165: 0.6529710992 | AD165: 0.4707966337 | AE165: 2.87694975e-17 | AF165: -2.450713646 | AG165: -330.8213545 | AH165: -1.609984068 | AI165: -1.169721895 | AJ165: 1.305942198 | AK165: 0.9415932674 | AL165: -1.236051666 | AM165: -0.00449022051 | AN165: 1.236059822 | AO165: -3.137959957 | AP165: 1.840789797 | AQ165: -0.8049920342 | AR165: -0.5848609476 | AS165: 3.556081995e-17 | AT165: -5.588673603 | AU165: -328.9805647 | AV165: -2.697620599e-19 | AW165: 3.19368515e-19 | AX165: 4.180524098e-19 | AY165: 2.272189832 | AZ165: -367.5753854 | BB165: P_74 | BC165: 74 | BD165: 9.299114255 | BE165: 0.8983835702 | BF165: 0.8947135521 | BG165: 0.895516893 | BI165: 7.340036335e-05 | BJ165: -144 | BK165: -144 | BL165: 0 | BM165: =SUM(BL$92:BL165) -> 7 | BN165: -2664 | BO165: 1e-09 | BP165: 1e-09 | BQ165: 0 | BR165: 0 | BS165: 0 | BT165: 0 | BV165: P_74 | BW165: 74 | BX165: 0.9299114255 | BY165: 0.8999482012 | BZ165: 0.004209238781 | CA165: 0.8948944107
C166: 75 | D166: 7500 | E166: 240.331838 | F166: 4.71238898 | G166: 4.71238898 | H166: -0.2122065908 | I166: -0.2122065908 | J166: 0.003242277877 | K166: -4.71687934e-17 | L166: 0.003242277877 | M166: -1.570796327 | N166: -49.78299534 | Q166: 47.1238898 | R166: 0.02 | S166: 0 | T166: 0.02 | U166: 0.0001 | V166: 0 | W166: 0.0001 | X166: 0.9900497512 | Y166: 0 | Z166: 0.0001 | AA166: 3.429896243e-17 | AB166: 10000 | AC166: 0.9950248756 | AD166: -1.697926409e-15 | AE166: 0.003226147141 | AF166: -1.570796327 | AG166: -49.82631658 | AH166: -1.990049751 | AI166: 3.412917406e-15 | AJ166: 1.990049751 | AK166: -3.395852819e-15 | AL166: -1 | AM166: 8.574954982e-18 | AN166: 1 | AO166: 3.141592654 | AP166: 0 | AQ166: -0.9950248756 | AR166: 1.706458703e-15 | AS166: 0.003226147141 | AT166: 1.570796327 | AU166: -49.82631658 | AV166: 1.193634339e-19 | AW166: -3.226147141e-07 | AX166: 3.226147141e-07 | AY166: -1.570796327 | AZ166: -129.8263166 | BB166: P_75 | BC166: 75 | BD166: 9.424777961 | BE166: 1.538522424e-15 | BF166: 0.4455216634 | BG166: 0.8955129697 | BI166: -0.008910433268 | BJ166: 180 | BK166: -180 | BL166: 0 | BM166: =SUM(BL$92:BL166) -> 7 | BN166: -2700 | BO166: 1e-09 | BP166: 1e-09 | BQ166: 0 | BR166: 0 | BS166: 0 | BT166: 0 | BV166: P_75 | BW166: 75 | BX166: 0.9424777961 | BY166: 0.899997071 | BZ166: 0.004514835976 | CA166: 0.8954446222
C167: 76 | D167: 7600 | E167: 243.5362625 | F167: 4.775220833 | G167: 4.775220833 | H167: -0.2090011673 | I167: -0.2090011673 | J167: -6.486657574e-18 | K167: 1.012363231e-16 | L167: 1.014439247e-16 | M167: -3.205579591 | N167: -319.8754791 | Q167: 47.75220833 | R167: 0.02 | S167: 0 | T167: 0.02 | U167: 0.0001 | V167: 0 | W167: 0.0001 | X167: 0.9900497512 | Y167: 0 | Z167: 0.0001527843883 | AA167: 0.01453029554 | AB167: 68.8179205 | AC167: 0.6529710992 | AD167: -0.4707966337 | AE167: 8.16620901e-17 | AF167: -3.830265426 | AG167: -321.7595902 | AH167: -1.609984068 | AI167: 1.169721895 | AJ167: 1.305942198 | AK167: -0.9415932674 | AL167: -1.236051666 | AM167: 0.00449022051 | AN167: 1.236059822 | AO167: 3.137959957 | AP167: 1.840789797 | AQ167: -0.8049920342 | AR167: 0.5848609476 | AS167: 1.009392285e-16 | AT167: -0.6923054686 | AU167: -319.9188004 | AV167: -7.637165298e-19 | AW167: -9.082132499e-19 | AX167: 1.186639897e-18 | AY167: -2.269983596 | AZ167: -358.5136211 | BB167: P_76 | BC167: 76 | BD167: 9.550441667 | BE167: -0.8983835702 | BF167: -0.003670305173 | BG167: 0.8955039655 | BI167: -0.0178942653 | BJ167: 144 | BK167: -216 | BL167: 0 | BM167: =SUM(BL$92:BL167) -> 7 | BN167: -2736 | BO167: 1e-09 | BP167: 1e-09 | BQ167: 0 | BR167: 0 | BS167: 0 | BT167: 0 | BV167: P_76 | BW167: 76 | BX167: 0.9550441667 | BY167: 0.9000464895 | BZ167: 0.004813275439 | CA167: 0.8960097725
C168: 77 | D168: 7700 | E168: 246.740687 | F168: 4.838052687 | G168: 4.838052687 | H168: -0.2050648816 | I168: -0.2050648816 | J168: 0.003027715608 | K168: 0.0003824894308 | L168: 0.003051779803 | M168: -1.696460033 | N168: -50.30893611 | Q168: 48.38052687 | R168: 0.02 | S168: 0 | T168: 0.02 | U168: 0.0001 | V168: 0 | W168: 0.0001 | X168: 0.9900497512 | Y168: 0 | Z168: 0.00104696567 | AA168: 0.0615375596 | AB168: 16.24788681 | AC168: 0.09951646298 | AD168: -0.2909683214 | AE168: 0.000938471119 | AF168: -2.937709891 | AG168: -60.55158176 | AH168: -0.6149591928 | AI168: 1.892649784 | AJ168: 0.199032926 | AK168: -0.5819366428 | AL168: -3.235301847 | AM168: 0.04978617616 | AN168: 3.23568489 | AO168: 3.12620545 | AP168: 10.19932442 | AQ168: -0.3074795964 | AR168: 0.9463248918 | AS168: 0.003036596819 | AT168: 0.1884955592 | AU168: -50.35225735 | AV168: 1.073087785e-05 | AW168: -5.675400734e-05 | AX168: 5.775958006e-05 | AY168: -1.383925365 | AZ168: -84.76751946 | BB168: P_77 | BC168: 77 | BD168: 9.676105373 | BE168: -0.8998426486 | BF168: -0.00440015544 | BG168: 0.8954781053 | BI168: -0.01790884986 | BJ168: 108 | BK168: -252 | BL168: 0 | BM168: =SUM(BL$92:BL168) -> 7 | BN168: -2772 | BO168: 1e-09 | BP168: 1e-09 | BQ168: 0 | BR168: 0 | BS168: 6.203854594e-24 | BT168: 6.203854594e-13 | BV168: P_77 | BW168: 77 | BX168: 0.9676105373 | BY168: 0.9000304541 | BZ168: 0.004654025634 | CA168: 0.8958626106
C169: 78 | D169: 7800 | E169: 249.9451115 | F169: 4.90088454 | G169: 4.90088454 | H169: -0.2004306045 | I169: -0.2004306045 | J169: -6.320333021e-18 | K169: 3.313077793e-17 | L169: 3.372825308e-17 | M169: -3.330096924 | N169: -329.440123 | Q169: 49.0088454 | R169: 0.02 | S169: 0 | T169: 0.02 | U169: 0.0001 | V169: 0 | W169: 0.0001 | X169: 0.9900497512 | Y169: 0 | Z169: 0.00104696567 | AA169: -0.0615375596 | AB169: 16.24788681 | AC169: 0.09951646298 | AD169: 0.2909683214 | AE169: 1.037197749e-17 | AF169: -2.088847066 | AG169: -339.6827687 | AH169: 0.6149591928 | AI169: 1.892649784 | AJ169: 0.199032926 | AK169: 0.5819366428 | AL169: 3.235301847 | AM169: 0.04978617616 | AN169: 3.23568489 | AO169: 0.01538720318 | AP169: 10.19932442 | AQ169: 0.3074795964 | AR169: 0.9463248918 | AS169: 3.356045083e-17 | AT169: -2.073459863 | AU169: -329.4834443 | AV169: -5.598940681e-19 | AW169: 3.066272535e-19 | AX169: 6.383585514e-19 | AY169: 2.640553715 | AZ169: -363.8987064 | BB169: P_78 | BC169: 78 | BD169: 9.801769079 | BE169: -0.8999554958 | BF169: -0.004457115709 | BG169: 0.8953658195 | BI169: -0.0179099676 | BJ169: 72 | BK169: -288 | BL169: 0 | BM169: =SUM(BL$92:BL169) -> 7 | BN169: -2808 | BO169: 1e-09 | BP169: 1e-09 | BQ169: 0 | BR169: 0 | BS169: 0 | BT169: 0 | BV169: P_78 | BW169: 78 | BX169: 0.9801769079 | BY169: 0.8999748718 | BZ169: 0.004197073736 | CA169: 0.8952971948
C170: 79 | D170: 7900 | E170: 253.149536 | F170: 4.963716393 | G170: 4.963716393 | H170: -0.1951326556 | I170: -0.1951326556 | J170: 0.002741526235 | K170: 0.000703904298 | L170: 0.002830450027 | M170: -1.822123739 | N170: -50.96289017 | Q170: 49.63716393 | R170: 0.02 | S170: 0 | T170: 0.02 | U170: 0.0001 | V170: 0 | W170: 0.0001 | X170: 0.9900497512 | Y170: 0 | Z170: 0.0001527843883 | AA170: -0.01453029554 | AB170: 68.8179205 | AC170: 0.6529710992 | AD170: 0.4707966337 | AE170: 0.002278504759 | AF170: -1.197437905 | AG170: -52.8470012 | AH170: 1.609984068 | AI170: 1.169721895 | AJ170: 1.305942198 | AK170: 0.9415932674 | AL170: 1.236051666 | AM170: 0.00449022051 | AN170: 1.236059822 | AO170: 0.00363269666 | AP170: 1.840789797 | AQ170: 0.8049920342 | AR170: 0.5848609476 | AS170: 0.002816368187 | AT170: -1.193805208 | AU170: -51.0062114 | AV170: -3.069952915e-05 | AW170: -1.239986124e-05 | AX170: 3.310917771e-05 | AY170: -2.757719734 | AZ170: -89.6010321 | BB170: P_79 | BC170: 79 | BD170: 9.927432785 | BE170: -0.8999814853 | BF170: -0.004471088389 | BG170: 0.8939140002 | BI170: -0.01791020794 | BJ170: 36 | BK170: -324 | BL170: 0 | BM170: =SUM(BL$92:BL170) -> 7 | BN170: -2844 | BO170: 1e-09 | BP170: 1e-09 | BQ170: 0 | BR170: 0 | BS170: -6.410649747e-24 | BT170: -6.410649747e-13 | BV170: P_79 | BW170: 79 | BX170: 0.9927432785 | BY170: 0.8999566526 | BZ170: 0.004082058907 | CA170: 0.895101847
C171: 80 | D171: 8000 | E171: 256.3539605 | F171: 5.026548246 | G171: 5.026548246 | H171: -0.1892066822 | I171: -0.1892066822 | J171: -1.590277341e-17 | K171: 4.92489014e-17 | L171: 5.175280177e-17 | M171: -3.453929578 | N171: -325.7213227 | Q171: 50.26548246 | R171: 0.02 | S171: 0 | T171: 0.02 | U171: 0.0001 | V171: 0 | W171: 0.0001 | X171: 0.9900497512 | Y171: 0 | Z171: 0.0001 | AA171: -3.920377044e-17 | AB171: 10000 | AC171: 0.9950248756 | AD171: 1.940732677e-15 | AE171: 5.149532514e-17 | AF171: -3.453929578 | AG171: -325.7646439 | AH171: 1.990049751 | AI171: 3.900970205e-15 | AJ171: 1.990049751 | AK171: 3.881465354e-15 | AL171: 1 | AM171: 9.801187639e-18 | AN171: 1 | AO171: 9.801187639e-18 | AP171: 0 | AQ171: 0.9950248756 | AR171: 1.950485102e-15 | AS171: 5.149532514e-17 | AT171: -3.453929578 | AU171: -325.7646439 | AV171: -4.900388199e-21 | AW171: 1.582365513e-21 | AX171: 5.149532514e-21 | AY171: 2.829255729 | AZ171: -405.7646439 | BB171: P_80 | BC171: 80 | BD171: 10.05309649 | BE171: -0.8999905346 | BF171: -0.004477564849 | BG171: -3.881196093e-15 | BI171: -0.01791025939 | BJ171: 1.017777498e-13 | BK171: -360 | BL171: 0 | BM171: =SUM(BL$92:BL171) -> 7 | BN171: -2880 | BO171: 1e-09 | BP171: 1e-09 | BQ171: 0 | BR171: 0 | BS171: -6.410649747e-24 | BT171: -6.410649747e-13 | BV171: P_80 | BW171: 80 | BX171: 1.005309649 | BY171: 0.8999975371 | BZ171: 0.004554273344 | CA171: 0.8954781053
C172: 81 | D172: 8100 | E172: 259.558385 | F172: =NH_*PI()*tr_/T_ -> 5.089380099 | G172: =NH_*PI()*tf_/T_ -> 5.089380099 | H172: =SIN(Rad_tr)/Rad_tr -> -0.1826895354 | I172: =SIN(Rad_tf)/Rad_tf -> -0.1826895354 | J172: 0.002403033578 | K172: 0.0009514282995 | L172: 0.002584528232 | M172: -1.947787445 | N172: -51.75237439 | Q172: 50.89380099 | R172: 0.02 | S172: 0 | T172: 0.02 | U172: 0.0001 | V172: 0 | W172: 0.0001 | X172: 0.9900497512 | Y172: 0 | Z172: 0.0001527843883 | AA172: 0.01453029554 | AB172: 68.8179205 | AC172: 0.6529710992 | AD172: -0.4707966337 | AE172: 0.002080538367 | AF172: -2.572473279 | AG172: -53.63648542 | AH172: 1.609984068 | AI172: -1.169721895 | AJ172: 1.305942198 | AK172: -0.9415932674 | AL172: =(A_*C_+B_*D_)/(C_^2+D_^2) -> 1.236051666 | AM172: =(B_*C_-A_*D_)/(C_^2+D_^2) -> -0.00449022051 | AN172: 1.236059822 | AO172: -0.00363269666 | AP172: 1.840789797 | AQ172: 0.8049920342 | AR172: -0.5848609476 | AS172: 0.002571669883 | AT172: -2.576105976 | AU172: -51.79569562 | AV172: 1.602334004e-05 | AW172: -2.563702683e-05 | AX172: 3.023250851e-05 | AY172: -1.01219145 | AZ172: -90.39051632 | BB172: P_81 | BC172: 81 | BD172: =4*PI()*N_/100 -> 10.1787602 | BE172: -0.8999944775 | BF172: -0.004484015903 | BG172: -0.8939140002 | BI172: =SUMPRODUCT(Is,SIN(Fi_Is+NH_*BD172+NH_*Ofs_))+DC_/(R_s+R_l) -> -0.01791020923 | BJ172: -36 | BK172: -36 | BL172: 1 | BM172: =SUM(BL$92:BL172) -> 8 | BN172: -2916 | BO172: 1e-09 | BP172: 1e-09 | BQ172: 0 | BR172: 0 | BS172: 0 | BT172: 0 | BV172: P_81 | BW172: 81 | BX172: 1.01787602 | BY172: 0.9000388828 | BZ172: 0.005011488239 | CA172: 0.8958627942
C173: 82 | D173: =fo_*NH_ -> 8200 | E173: =NH_*PI()*(2*Duty_cycle/100*T_+tr_)/T_ -> 262.7628095 | F173: 5.152211952 | G173: 5.152211952 | H173: -0.175619144 | I173: -0.175619144 | J173: =-(High_-Low_)/PI()/NH_*(Y_*SIN(Rad_t)-X_*SIN(Rad_tr)) -> -2.792682159e-17 | K173: =(High_-Low_)/PI()/NH_*(Y_*COS(Rad_t)-X_*COS(Rad_tr)) -> 5.944146402e-17 | L173: =SQRT(ReVs^2+ImVs^2) -> 6.567491918e-17 | M173: -3.580806553 | N173: -323.6520091 | Q173: 51.52211952 | R173: 0.02 | S173: 0 | T173: 0.02 | U173: 0.0001 | V173: 0 | W173: 0.0001 | X173: 0.9900497512 | Y173: =-2*Y_0*ImYl/(Y_0^2+Yl^2+2*Y_0*ReYl) -> 0 | Z173: 0.00104696567 | AA173: 0.0615375596 | AB173: 16.24788681 | AC173: 0.09951646298 | AD173: -0.2909683214 | AE173: =SQRT(ReVin^2+ImVin^2)*Vs -> 2.019608847e-17 | AF173: -4.822056411 | AG173: -333.8946547 | AH173: 0.6149591928 | AI173: -1.892649784 | AJ173: 0.199032926 | AK173: -0.5819366428 | AL173: 3.235301847 | AM173: -0.04978617616 | AN173: =SQRT(ReVoi^2+ImVoi^2) -> 3.23568489 | AO173: -0.01538720318 | AP173: 10.19932442 | AQ173: =ReVin*ReVoi-ImVin*ImVoi -> 0.3074795964 | AR173: =ImVin*ReVoi+ReVin*ImVoi -> -0.9463248918 | AS173: =SQRT(ReVout^2+ImVout^2)*Vs -> 6.534817828e-17 | AT173: -4.837443614 | AU173: -323.6953303 | AV173: =(Vs*COS(Fi_Vs)-Vin*COS(Fi_Vin))/R_s -> -1.233037603e-18 | AW173: =(Vs*SIN(Fi_Vs)-Vin*SIN(Fi_Vin))/R_s -> 1.570412016e-19 | AX173: =SQRT(ReIs^2+ImIs^2) -> 1.242997856e-18 | AY173: 3.014913423 | AZ173: -358.1105924 | BB173: P_82 | BC173: 82 | BD173: 10.3044239 | BE173: -0.899996453 | BF173: -0.004497869111 | BG173: -0.8953658195 | BI173: -0.01790997168 | BJ173: -72 | BK173: -72 | BL173: 0 | BM173: =SUM(BL$92:BL173) -> 8 | BN173: -2952 | BO173: 1e-09 | BP173: 1e-09 | BQ173: 0 | BR173: 0 | BS173: 0 | BT173: 0 | BV173: P_82 | BW173: 82 | BX173: 1.03044239 | BY173: 0.9000254889 | BZ173: 0.004738597588 | CA173: 0.895755837
C174: 83 | D174: 8300 | E174: 265.9672341 | F174: 5.215043805 | G174: 5.215043805 | H174: -0.1680343853 | I174: -0.1680343853 | J174: 0.002032959934 | K174: 0.001117629182 | L174: 0.002319918335 | M174: -2.073451151 | N174: -52.69054605 | Q174: 52.15043805 | R174: 0.02 | S174: 0 | T174: 0.02 | U174: 0.0001 | V174: 0 | W174: 0.0001 | X174: 0.9900497512 | Y174: 0 | Z174: 0.00104696567 | AA174: -0.0615375596 | AB174: 16.24788681 | AC174: 0.09951646298 | AD174: 0.2909683214 | AE174: 0.0007134120075 | AF174: -0.8322012931 | AG174: -62.93319171 | AH174: -0.6149591928 | AI174: -1.892649784 | AJ174: 0.199032926 | AK174: 0.5819366428 | AL174: -3.235301847 | AM174: -0.04978617616 | AN174: 3.23568489 | AO174: -3.12620545 | AP174: 10.19932442 | AQ174: -0.3074795964 | AR174: -0.9463248918 | AS174: 0.002308376453 | AT174: -3.958406744 | AU174: -52.73386729 | AV174: -3.195867236e-05 | AW174: -3.01090453e-05 | AX174: 4.390798729e-05 | AY174: -2.38598582 | AZ174: -87.1491294 | BB174: P_83 | BC174: 83 | BD174: 10.43008761 | BE174: -0.8999975371 | BF174: -0.004554273344 | BG174: -0.8954781053 | BI174: -0.01790886527 | BJ174: -108 | BK174: -108 | BL174: 0 | BM174: =SUM(BL$92:BL174) -> 8 | BN174: -2988 | BO174: 1e-09 | BP174: 1e-09 | BQ174: 0 | BR174: 0 | BS174: 0 | BT174: 0 | BV174: P_83 | BW174: 83 | BX174: 1.043008761 | BY174: 0.8999790291 | BZ174: 0.003981856376 | CA174: 0.8953577931
C175: 84 | D175: 8400 | E175: 269.1716586 | F175: 5.277875658 | G175: 5.277875658 | H175: -0.1599749559 | I175: -0.1599749559 | J175: -7.19411178e-18 | K175: 1.116980513e-17 | L175: 1.328607508e-17 | M175: -3.713786298 | N175: -337.532066 | Q175: 52.77875658 | R175: 0.02 | S175: 0 | T175: 0.02 | U175: 0.0001 | V175: 0 | W175: 0.0001 | X175: 0.9900497512 | Y175: 0 | Z175: 0.0001527843883 | AA175: -0.01453029554 | AB175: 68.8179205 | AC175: 0.6529710992 | AD175: 0.4707966337 | AE175: 1.069525517e-17 | AF175: -3.089100464 | AG175: -339.416177 | AH175: -1.609984068 | AI175: -1.169721895 | AJ175: 1.305942198 | AK175: 0.9415932674 | AL175: -1.236051666 | AM175: -0.00449022051 | AN175: 1.236059822 | AO175: -3.137959957 | AP175: 1.840789797 | AQ175: -0.8049920342 | AR175: -0.5848609476 | AS175: 1.32199752e-17 | AT175: -6.22706042 | AU175: -337.5753872 | AV175: -9.785631773e-21 | AW175: 1.551054272e-19 | AX175: 1.554138093e-19 | AY175: 1.633803014 | AZ175: -376.1702079 | BB175: P_84 | BC175: 84 | BD175: 10.55575132 | BE175: -0.8999981655 | BF175: -0.005276867642 | BG175: -0.8955039655 | BI175: -0.01789442596 | BJ175: -144 | BK175: -144 | BL175: 0 | BM175: =SUM(BL$92:BL175) -> 8 | BN175: -3024 | BO175: 1e-09 | BP175: 1e-09 | BQ175: 0 | BR175: 0 | BS175: 6.203854594e-24 | BT175: 6.203854594e-13 | BV175: P_84 | BW175: 84 | BX175: 1.055575132 | BY175: 0.8999637833 | BZ175: 0.003811565223 | CA175: 0.8952221998
C176: 85 | D176: 8500 | E176: 272.3760831 | F176: 5.340707511 | G176: 5.340707511 | H176: -0.1514812396 | I176: -0.1514812396 | J176: 0.001652152749 | K176: 0.001200359235 | L176: 0.002042173108 | M176: -2.199114858 | N176: -53.79814894 | Q176: 53.40707511 | R176: 0.02 | S176: 0 | T176: 0.02 | U176: 0.0001 | V176: 0 | W176: 0.0001 | X176: 0.9900497512 | Y176: 0 | Z176: 0.0001 | AA176: 2.939849113e-17 | AB176: 10000 | AC176: 0.9950248756 | AD176: -1.455334825e-15 | AE176: 0.002032013042 | AF176: -2.199114858 | AG176: -53.84147018 | AH176: -1.990049751 | AI176: 2.92529613e-15 | AJ176: 1.990049751 | AK176: -2.91066965e-15 | AL176: -1 | AM176: 7.349806527e-18 | AN176: 1 | AO176: 3.141592654 | AP176: 0 | AQ176: -0.9950248756 | AR176: 1.462648065e-15 | AS176: 0.002032013042 | AT176: 0.9424777961 | AU176: -53.84147018 | AV176: -1.194387299e-07 | AW176: -1.643933084e-07 | AX176: 2.032013042e-07 | AY176: -2.199114858 | AZ176: -133.8414702 | BB176: P_85 | BC176: 85 | BD176: 10.68141502 | BE176: -0.8999985362 | BF176: -0.4499992681 | BG176: -0.8955129697 | BI176: -0.008999985362 | BJ176: 180 | BK176: -180 | BL176: 0 | BM176: =SUM(BL$92:BL176) -> 8 | BN176: -3060 | BO176: 1e-09 | BP176: 1e-09 | BQ176: 0 | BR176: 0 | BS176: 0 | BT176: 0 | BV176: P_85 | BW176: 85 | BX176: 1.068141502 | BY176: 0.8999978925 | BZ176: 0.00467368756 | CA176: 0.8954947535
C177: 86 | D177: 8600 | E177: 275.5805076 | F177: 5.403539364 | G177: 5.403539364 | H177: -0.1425941759 | I177: -0.1425941759 | J177: -1.599523139e-17 | K177: 1.932371885e-17 | L177: 2.50849265e-17 | M177: -3.833027497 | N177: -332.0117433 | Q177: 54.03539364 | R177: 0.02 | S177: 0 | T177: 0.02 | U177: 0.0001 | V177: 0 | W177: 0.0001 | X177: 0.9900497512 | Y177: 0 | Z177: 0.0001527843883 | AA177: 0.01453029554 | AB177: 68.8179205 | AC177: 0.6529710992 | AD177: -0.4707966337 | AE177: 2.019329925e-17 | AF177: -4.457713331 | AG177: -333.8958544 | AH177: -1.609984068 | AI177: 1.169721895 | AJ177: 1.305942198 | AK177: -0.9415932674 | AL177: -1.236051666 | AM177: 0.00449022051 | AN177: 1.236059822 | AO177: 3.137959957 | AP177: 1.840789797 | AQ177: -0.8049920342 | AR177: 0.5848609476 | AS177: 2.496012587e-17 | AT177: -1.319753374 | AU177: -332.0550646 | AV177: -2.847278001e-19 | AW177: -7.093468433e-20 | AX177: 2.934308259e-19 | AY177: -2.897431502 | AZ177: -370.6498853 | BB177: P_86 | BC177: 86 | BD177: 10.80707873 | BE177: -0.8999987453 | BF177: -0.8947215878 | BG177: -0.895516893 | BI177: -0.0001055431506 | BJ177: 144 | BK177: -216 | BL177: 0 | BM177: =SUM(BL$92:BL177) -> 8 | BN177: -3096 | BO177: 1e-09 | BP177: 1e-09 | BQ177: 0 | BR177: 0 | BS177: 0 | BT177: 0 | BV177: P_86 | BW177: 86 | BX177: 1.080707873 | BY177: 0.9000323963 | BZ177: 0.005495755106 | CA177: 0.8957725409
C178: 87 | D178: 8700 | E178: 278.7849321 | F178: 5.466371217 | G178: 5.466371217 | H178: -0.1333551269 | I178: -0.1333551269 | J178: 0.001280418471 | K178: 0.001202392978 | L178: 0.001756479528 | M178: -2.324778564 | N178: -55.10713815 | Q178: 54.66371217 | R178: 0.02 | S178: 0 | T178: 0.02 | U178: 0.0001 | V178: 0 | W178: 0.0001 | X178: 0.9900497512 | Y178: 0 | Z178: 0.00104696567 | AA178: 0.0615375596 | AB178: 16.24788681 | AC178: 0.09951646298 | AD178: -0.2909683214 | AE178: 0.0005401455593 | AF178: -3.566028422 | AG178: -65.3497838 | AH178: -0.6149591928 | AI178: 1.892649784 | AJ178: 0.199032926 | AK178: -0.5819366428 | AL178: -3.235301847 | AM178: 0.04978617616 | AN178: 3.23568489 | AO178: 3.12620545 | AP178: 10.19932442 | AQ178: -0.3074795964 | AR178: 0.9463248918 | AS178: 0.001747740824 | AT178: -0.4398229715 | AU178: -55.15045939 | AV178: -1.420347737e-05 | AW178: -3.00570804e-05 | AX178: 3.324404986e-05 | AY178: -2.012243895 | AZ178: -89.5657215 | BB178: P_87 | BC178: 87 | BD178: 10.93274243 | BE178: -0.89999884 | BF178: -0.8954439152 | BG178: -0.8955188587 | BI178: -9.109849676e-05 | BJ178: 108 | BK178: -252 | BL178: 0 | BM178: =SUM(BL$92:BL178) -> 8 | BN178: -3132 | BO178: 1e-09 | BP178: 1e-09 | BQ178: 0 | BR178: 0 | BS178: 0 | BT178: 0 | BV178: P_87 | BW178: 87 | BX178: 1.093274243 | BY178: 0.900021278 | BZ178: 0.004900987147 | CA178: 0.8956917815
C179: 88 | D179: 8800 | E179: 281.9893566 | F179: 5.52920307 | G179: 5.52920307 | H179: -0.1238057451 | I179: -0.1238057451 | J179: -5.800898027e-17 | K179: 5.439471359e-17 | L179: 7.952249152e-17 | M179: -3.959134083 | N179: -321.9902004 | Q179: 55.2920307 | R179: 0.02 | S179: 0 | T179: 0.02 | U179: 0.0001 | V179: 0 | W179: 0.0001 | X179: 0.9900497512 | Y179: 0 | Z179: 0.00104696567 | AA179: -0.0615375596 | AB179: 16.24788681 | AC179: 0.09951646298 | AD179: 0.2909683214 | AE179: 2.445443853e-17 | AF179: -2.717884225 | AG179: -332.2328461 | AH179: 0.6149591928 | AI179: 1.892649784 | AJ179: 0.199032926 | AK179: 0.5819366428 | AL179: 3.235301847 | AM179: 0.04978617616 | AN179: 3.23568489 | AO179: 0.01538720318 | AP179: 10.19932442 | AQ179: 0.3074795964 | AR179: 0.9463248918 | AS179: 7.912685724e-17 | AT179: -2.702497022 | AU179: -322.0335217 | AV179: -6.420553694e-19 | AW179: 1.361265405e-18 | AX179: 1.50508425e-18 | AY179: 2.011516556 | AZ179: -356.4487838 | BB179: P_88 | BC179: 88 | BD179: 11.05840614 | BE179: -0.89999884 | BF179: -0.8954997774 | BG179: -0.8955199374 | BI179: -8.998125274e-05 | BJ179: 72 | BK179: -288 | BL179: 0 | BM179: =SUM(BL$92:BL179) -> 8 | BN179: -3168 | BO179: 1e-09 | BP179: 1e-09 | BQ179: 0 | BR179: 0 | BS179: 0 | BT179: 0 | BV179: P_88 | BW179: 88 | BX179: 1.105840614 | BY179: 0.8999826213 | BZ179: 0.003334212688 | CA179: 0.8953975151
C180: 89 | D180: 8900 | E180: 285.1937811 | F180: 5.592034923 | G180: 5.592034923 | H180: -0.1139878414 | I180: -0.1139878414 | J180: 0.0009355124145 | K180: 0.00113084025 | L180: 0.001467645444 | M180: -2.45044227 | N180: -56.66757699 | Q180: 55.92034923 | R180: 0.02 | S180: 0 | T180: 0.02 | U180: 0.0001 | V180: 0 | W180: 0.0001 | X180: 0.9900497512 | Y180: 0 | Z180: 0.0001527843883 | AA180: -0.01453029554 | AB180: 68.8179205 | AC180: 0.6529710992 | AD180: 0.4707966337 | AE180: 0.001181450687 | AF180: -1.825756436 | AG180: -58.55168802 | AH180: 1.609984068 | AI180: 1.169721895 | AJ180: 1.305942198 | AK180: 0.9415932674 | AL180: 1.236051666 | AM180: 0.00449022051 | AN180: 1.236059822 | AO180: 0.00363269666 | AP180: 1.840789797 | AQ180: 0.8049920342 | AR180: 0.5848609476 | AS180: 0.001460343725 | AT180: -1.822123739 | AU180: -56.71089822 | AV180: -1.665740689e-05 | AW180: 4.154918764e-06 | AX180: 1.716777663e-05 | AY180: 2.897147042 | AZ180: -95.30571892 | BB180: P_89 | BC180: 89 | BD180: 11.18406985 | BE180: -0.8999987453 | BF180: -0.8955125955 | BG180: -0.8955205627 | BI180: -8.972299631e-05 | BJ180: 36 | BK180: -324 | BL180: 0 | BM180: =SUM(BL$92:BL180) -> 8 | BN180: -3204 | BO180: 1e-09 | BP180: 1e-09 | BQ180: 0 | BR180: 0 | BS180: 6.203854594e-24 | BT180: 6.203854594e-13 | BV180: P_89 | BW180: 89 | BX180: 1.118406985 | BY180: 0.8999699052 | BZ180: 0.003081828822 | CA180: 0.8952983208
C181: 90 | D181: 9000 | E181: 288.3982056 | F181: 5.654866776 | G181: 5.654866776 | H181: -0.1039432538 | I181: -0.1039432538 | J181: -6.626155586e-19 | K181: 4.417437058e-19 | L181: 7.963647909e-19 | M181: -4.124386377 | N181: -361.977759 | Q181: 56.54866776 | R181: 0.02 | S181: 0 | T181: 0.02 | U181: 0.0001 | V181: 0 | W181: 0.0001 | X181: 0.9900497512 | Y181: 0 | Z181: 0.0001 | AA181: 9.80007527e-17 | AB181: 10000 | AC181: 0.9950248756 | AD181: -4.851402326e-15 | AE181: 7.92402777e-19 | AF181: -4.124386377 | AG181: -362.0210802 | AH181: 1.990049751 | AI181: -9.751562465e-15 | AJ181: 1.990049751 | AK181: -9.702804653e-15 | AL181: 1 | AM181: -2.450080069e-17 | AN181: 1 | AO181: -2.450080069e-17 | AP181: 0 | AQ181: 0.9950248756 | AR181: -4.875781233e-15 | AS181: 7.92402777e-19 | AT181: -4.124386377 | AU181: -362.0210802 | AV181: -4.395459759e-23 | AW181: 6.593189638e-23 | AX181: 7.92402777e-23 | AY181: 2.15879893 | AZ181: -442.0210802 | BB181: P_90 | BC181: 90 | BD181: 11.30973355 | BE181: -0.8999985362 | BF181: -0.8955169705 | BG181: -0.8955209315 | BI181: -8.963131299e-05 | BJ181: -3.053332494e-13 | BK181: -3.053332494e-13 | BL181: 1 | BM181: =SUM(BL$92:BL181) -> 9 | BN181: -3240 | BO181: 1e-09 | BP181: 1e-09 | BQ181: 0 | BR181: 0 | BS181: 0 | BT181: 0 | BV181: P_90 | BW181: 90 | BX181: 1.130973355 | BY181: 0.8999981655 | BZ181: 0.005276867642 | CA181: 0.8955039655
C182: 91 | D182: 9100 | E182: 291.6026301 | F182: 5.71769863 | G182: 5.71769863 | H182: -0.09371371765 | I182: -0.09371371765 | J182: 0.0006323227831 | K182: 0.0009963812722 | L182: 0.001180088023 | M182: -2.576105976 | N182: -58.56171195 | Q182: 57.1769863 | R182: 0.02 | S182: 0 | T182: 0.02 | U182: 0.0001 | V182: 0 | W182: 0.0001 | X182: 0.9900497512 | Y182: 0 | Z182: 0.0001527843883 | AA182: 0.01453029554 | AB182: 68.8179205 | AC182: 0.6529710992 | AD182: -0.4707966337 | AE182: 0.0009499677261 | AF182: -3.20079181 | AG182: -60.44582298 | AH182: 1.609984068 | AI182: -1.169721895 | AJ182: 1.305942198 | AK182: -0.9415932674 | AL182: 1.236051666 | AM182: -0.00449022051 | AN182: 1.236059822 | AO182: -0.00363269666 | AP182: 1.840789797 | AQ182: 0.8049920342 | AR182: -0.5848609476 | AS182: 0.001174216938 | AT182: -3.204424507 | AU182: -58.60503318 | AV182: -9.615532e-07 | AW182: -1.377054458e-05 | AX182: 1.380407486e-05 | AY182: -1.640509981 | AZ182: -97.19985388 | BB182: P_91 | BC182: 91 | BD182: 11.43539726 | BE182: -0.8999981655 | BF182: -0.895518737 | BG182: -0.8955211396 | BI182: -8.958856975e-05 | BJ182: -36 | BK182: -36 | BL182: 0 | BM182: =SUM(BL$92:BL182) -> 9 | BN182: -3276 | BO182: 1e-09 | BP182: 1e-09 | BQ182: 0 | BR182: 0 | BS182: -6.410649747e-24 | BT182: -6.410649747e-13 | BV182: P_91 | BW182: 91 | BX182: 1.143539726 | BY182: 0.9000267692 | BZ182: 0.007278861233 | CA182: 0.8957130877
C183: 92 | D183: 9200 | E183: 294.8070546 | F183: 5.780530483 | G183: 5.780530483 | H183: -0.08334073759 | I183: -0.08334073759 | J183: -7.173533657e-18 | K183: 3.889265235e-18 | L183: 8.160022622e-18 | M183: -4.215578179 | N183: -341.7661727 | Q183: 57.80530483 | R183: 0.02 | S183: 0 | T183: 0.02 | U183: 0.0001 | V183: 0 | W183: 0.0001 | X183: 0.9900497512 | Y183: 0 | Z183: 0.00104696567 | AA183: 0.0615375596 | AB183: 16.24788681 | AC183: 0.09951646298 | AD183: -0.2909683214 | AE183: 2.509337519e-18 | AF183: -5.456828037 | AG183: -352.0088184 | AH183: 0.6149591928 | AI183: -1.892649784 | AJ183: 0.199032926 | AK183: -0.5819366428 | AL183: 3.235301847 | AM183: -0.04978617616 | AN183: 3.23568489 | AO183: -0.01538720318 | AP183: 10.19932442 | AQ183: 0.3074795964 | AR183: -0.9463248918 | AS183: 8.119425495e-18 | AT183: -5.47221524 | AU183: -341.809494 | AV183: -1.117898072e-19 | AW183: 1.065599197e-19 | AX183: 1.544408543e-19 | AY183: 2.380141797 | AZ183: -376.2247561 | BB183: P_92 | BC183: 92 | BD183: 11.56106097 | BE183: -0.8999975371 | BF183: -0.8955194007 | BG183: -0.8955212339 | BI183: -8.956272652e-05 | BJ183: -72 | BK183: -72 | BL183: 0 | BM183: =SUM(BL$92:BL183) -> 9 | BN183: -3312 | BO183: 1e-09 | BP183: 1e-09 | BQ183: 0 | BR183: 0 | BS183: -6.410649747e-24 | BT183: -6.410649747e-13 | BV183: P_92 | BW183: 92 | BX183: 1.156106097 | BY183: 0.900017645 | BZ183: 0.004905966497 | CA183: 0.8956503114
C184: 93 | D184: 9300 | E184: 298.0114791 | F184: 5.843362336 | G184: 5.843362336 | H184: -0.0728654612 | I184: -0.0728654612 | J184: 0.0003822750314 | K184: 0.0008123757937 | L184: 0.0008978243869 | M184: -2.701769682 | N184: -60.93617205 | Q184: 58.43362336 | R184: 0.02 | S184: 0 | T184: 0.02 | U184: 0.0001 | V184: 0 | W184: 0.0001 | X184: 0.9900497512 | Y184: 0 | Z184: 0.00104696567 | AA184: -0.0615375596 | AB184: 16.24788681 | AC184: 0.09951646298 | AD184: 0.2909683214 | AE184: 0.0002760953645 | AF184: -1.460519824 | AG184: -71.1788177 | AH184: -0.6149591928 | AI184: -1.892649784 | AJ184: 0.199032926 | AK184: 0.5819366428 | AL184: -3.235301847 | AM184: -0.04978617616 | AN184: 3.23568489 | AO184: -3.12620545 | AP184: 10.19932442 | AQ184: -0.3074795964 | AR184: -0.9463248918 | AS184: 0.0008933575989 | AT184: -4.586725274 | AU184: -60.97949328 | AV184: -1.685521905e-05 | AW184: -2.157135027e-06 | AX184: 1.699269374e-05 | AY184: -3.01430435 | AZ184: -95.3947554 | BB184: P_93 | BC184: 93 | BD184: 11.68672467 | BE184: -0.899996453 | BF184: -0.8955193953 | BG184: -0.8955212339 | BI184: -8.954115308e-05 | BJ184: -108 | BK184: -108 | BL184: 0 | BM184: =SUM(BL$92:BL184) -> 9 | BN184: -3348 | BO184: 1e-09 | BP184: 1e-09 | BQ184: 0 | BR184: 0 | BS184: 0 | BT184: 0 | BV184: P_93 | BW184: 93 | BX184: 1.168672467 | BY184: 0.8999857784 | BZ184: -0.0008137831525 | CA184: 0.8954249469
C185: 94 | D185: 9400 | E185: 301.2159036 | F185: 5.906194189 | G185: 5.906194189 | H185: -0.06232855557 | I185: -0.06232855557 | J185: -1.095430402e-17 | K185: 4.356344843e-18 | L185: 1.178874535e-17 | M185: -4.333881268 | N185: -338.5706483 | Q185: 59.06194189 | R185: 0.02 | S185: 0 | T185: 0.02 | U185: 0.0001 | V185: 0 | W185: 0.0001 | X185: 0.9900497512 | Y185: 0 | Z185: 0.0001527843883 | AA185: -0.01453029554 | AB185: 68.8179205 | AC185: 0.6529710992 | AD185: 0.4707966337 | AE185: 9.489908719e-18 | AF185: -3.709195434 | AG185: -340.4547593 | AH185: -1.609984068 | AI185: -1.169721895 | AJ185: 1.305942198 | AK185: 0.9415932674 | AL185: -1.236051666 | AM185: -0.00449022051 | AN185: 1.236059822 | AO185: -3.137959957 | AP185: 1.840789797 | AQ185: -0.8049920342 | AR185: -0.5848609476 | AS185: 1.173009488e-17 | AT185: -6.847155391 | AU185: -338.6139695 | AV185: 7.290943792e-20 | AW185: 1.170482514e-19 | AX185: 1.378988009e-19 | AY185: 1.013708044 | AZ185: -377.2087902 | BB185: P_94 | BC185: 94 | BD185: 11.81238838 | BE185: -0.8999944775 | BF185: -0.8955187187 | BG185: -0.8955211396 | BI185: -8.951517581e-05 | BJ185: -144 | BK185: -144 | BL185: 0 | BM185: =SUM(BL$92:BL185) -> 9 | BN185: -3384 | BO185: 1e-09 | BP185: 1e-09 | BQ185: 0 | BR185: 0 | BS185: 0 | BT185: 0 | BV185: P_94 | BW185: 94 | BX185: 1.181238838 | BY185: 0.8999752517 | BZ185: 0.0009907260988 | CA185: 0.8953495849
C186: 95 | D186: 9500 | E186: 304.4203281 | F186: 5.969026042 | G186: 5.969026042 | H186: -0.05177008648 | I186: -0.05177008648 | J186: 0.0001929702135 | K186: 0.0005939012492 | L186: 0.0006244647285 | M186: -2.827433388 | N186: -64.08984174 | Q186: 59.69026042 | R186: 0.02 | S186: 0 | T186: 0.02 | U186: 0.0001 | V186: 0 | W186: 0.0001 | X186: 0.9900497512 | Y186: 0 | Z186: 0.0001 | AA186: -1.176069746e-16 | AB186: 10000 | AC186: 0.9950248756 | AD186: 5.821983348e-15 | AE186: 0.0006213579388 | AF186: -2.827433388 | AG186: -64.13316297 | AH186: -1.990049751 | AI186: -1.170247909e-14 | AJ186: 1.990049751 | AK186: 1.16439667e-14 | AL186: -1 | AM186: -2.940247872e-17 | AN186: 1 | AO186: -3.141592654 | AP186: 0 | AQ186: -0.9950248756 | AR186: -5.851239545e-15 | AS186: 0.0006213579388 | AT186: -5.969026042 | AU186: -64.13316297 | AV186: -5.909465166e-08 | AW186: -1.920101627e-08 | AX186: 6.213579388e-08 | AY186: -2.827433388 | AZ186: -144.133163 | BB186: P_95 | BC186: 95 | BD186: 11.93805208 | BE186: -0.8999905346 | BF186: -0.8955169307 | BG186: -0.8955209315 | BI186: -8.947207713e-05 | BJ186: -180 | BK186: -180 | BL186: 0 | BM186: =SUM(BL$92:BL186) -> 9 | BN186: -3420 | BO186: 1e-09 | BP186: 1e-09 | BQ186: 0 | BR186: 0 | BS186: 0 | BT186: 0 | BV186: P_95 | BW186: 95 | BX186: 1.193805208 | BY186: 0.8999983755 | BZ186: 0.02677994875 | CA186: 0.8955094747
C187: 96 | D187: 9600 | E187: 307.6247526 | F187: 6.031857895 | G187: 6.031857895 | H187: -0.04122940087 | I187: -0.04122940087 | J187: -1.085032977e-17 | K187: 2.816116124e-18 | L187: 1.120982454e-17 | M187: -4.458449984 | N187: -339.0080237 | Q187: 60.31857895 | R187: 0.02 | S187: 0 | T187: 0.02 | U187: 0.0001 | V187: 0 | W187: 0.0001 | X187: 0.9900497512 | Y187: 0 | Z187: 0.0001527843883 | AA187: 0.01453029554 | AB187: 68.8179205 | AC187: 0.6529710992 | AD187: -0.4707966337 | AE187: 9.023879001e-18 | AF187: -5.083135818 | AG187: -340.8921347 | AH187: -1.609984068 | AI187: 1.169721895 | AJ187: 1.305942198 | AK187: -0.9415932674 | AL187: -1.236051666 | AM187: 0.00449022051 | AN187: 1.236059822 | AO187: 3.137959957 | AP187: 1.840789797 | AQ187: -0.8049920342 | AR187: 0.5848609476 | AS187: 1.115405427e-17 | AT187: -1.945175861 | AU187: -339.0513449 | AV187: -1.217114483e-19 | AW187: 4.879120046e-20 | AX187: 1.311268771e-19 | AY187: 2.760331319 | AZ187: -377.6461656 | BB187: P_96 | BC187: 96 | BD187: 12.06371579 | BE187: -0.8999814853 | BF187: -0.8955125096 | BG187: -0.8955205627 | BI187: -8.937951419e-05 | BJ187: 144 | BK187: -216 | BL187: 0 | BM187: =SUM(BL$92:BL187) -> 9 | BN187: -3456 | BO187: 1e-09 | BP187: 1e-09 | BQ187: 0 | BR187: 0 | BS187: 6.203854594e-24 | BT187: 6.203854594e-13 | BV187: P_96 | BW187: 96 | BX187: 1.206371579 | BY187: 0.9000218033 | BZ187: 0.08674970036 | CA187: 0.8956717966
C188: 97 | D188: 9700 | E188: 310.8291771 | F188: =NH_*PI()*tr_/T_ -> 6.094689748 | G188: =NH_*PI()*tf_/T_ -> 6.094689748 | H188: =SIN(Rad_tr)/Rad_tr -> -0.03074501284 | I188: =SIN(Rad_tf)/Rad_tf -> -0.03074501284 | J188: 6.805841867e-05 | K188: 0.0003567747249 | L188: 0.0003632081396 | M188: -2.953097094 | N188: -68.79688855 | Q188: 60.94689748 | R188: 0.02 | S188: 0 | T188: 0.02 | U188: 0.0001 | V188: 0 | W188: 0.0001 | X188: 0.9900497512 | Y188: 0 | Z188: 0.00104696567 | AA188: 0.0615375596 | AB188: 16.24788681 | AC188: 0.09951646298 | AD188: -0.2909683214 | AE188: 0.0001116923144 | AF188: -4.194346953 | AG188: -79.0395342 | AH188: -0.6149591928 | AI188: 1.892649784 | AJ188: 0.199032926 | AK188: -0.5819366428 | AL188: =(A_*C_+B_*D_)/(C_^2+D_^2) -> -3.235301847 | AM188: =(B_*C_-A_*D_)/(C_^2+D_^2) -> 0.04978617616 | AN188: 3.23568489 | AO188: 3.12620545 | AP188: 10.19932442 | AQ188: -0.3074795964 | AR188: 0.9463248918 | AS188: 0.0003614011339 | AT188: -1.068141502 | AU188: -68.84020978 | AV188: -6.029338447e-06 | AW188: -3.301912568e-06 | AX188: 6.87426714e-06 | AY188: -2.640562426 | AZ188: -103.2554719 | BB188: P_97 | BC188: 97 | BD188: =4*PI()*N_/100 -> 12.1893795 | BE188: -0.8999554958 | BF188: -0.8954995618 | BG188: -0.8955199374 | BI188: =SUMPRODUCT(Is,SIN(Fi_Is+NH_*BD188+NH_*Ofs_))+DC_/(R_s+R_l) -> -8.911868118e-05 | BJ188: 108 | BK188: -252 | BL188: 0 | BM188: =SUM(BL$92:BL188) -> 9 | BN188: =Fi_Norm-360*BM188 -> -3492 | BO188: 1e-09 | BP188: 1e-09 | BQ188: 0 | BR188: =BQ188/(t_pd*0.000000001)*100 -> 0 | BS188: 0 | BT188: 0 | BV188: P_97 | BW188: 97 | BX188: 1.21893795 | BY188: 0.9000144565 | BZ188: 0.1754669657 | CA188: 0.8956218974
C189: 98 | D189: =fo_*NH_ -> 9800 | E189: =NH_*PI()*(2*Duty_cycle/100*T_+tr_)/T_ -> 314.0336017 | F189: =NH_*PI()*tr_/T_ -> 6.157521601 | G189: =NH_*PI()*tf_/T_ -> 6.157521601 | H189: =SIN(Rad_tr)/Rad_tr -> -0.02035449353 | I189: =SIN(Rad_tf)/Rad_tf -> -0.02035449353 | J189: =-(High_-Low_)/PI()/NH_*(Y_*SIN(Rad_t)-X_*SIN(Rad_tr)) -> -7.188195569e-18 | K189: =(High_-Low_)/PI()/NH_*(Y_*COS(Rad_t)-X_*COS(Rad_tr)) -> 9.127867389e-19 | L189: =SQRT(ReVs^2+ImVs^2) -> 7.245918518e-18 | M189: -4.586080863 | N189: -342.7981311 | Q189: 61.57521601 | R189: 0.02 | S189: 0 | T189: 0.02 | U189: 0.0001 | V189: 0 | W189: 0.0001 | X189: 0.9900497512 | Y189: =-2*Y_0*ImYl/(Y_0^2+Yl^2+2*Y_0*ReYl) -> 0 | Z189: 0.00104696567 | AA189: -0.0615375596 | AB189: 16.24788681 | AC189: 0.09951646298 | AD189: 0.2909683214 | AE189: =SQRT(ReVin^2+ImVin^2)*Vs -> 2.228235882e-18 | AF189: -3.344831005 | AG189: -353.0407767 | AH189: 0.6149591928 | AI189: 1.892649784 | AJ189: 0.199032926 | AK189: 0.5819366428 | AL189: =(A_*C_+B_*D_)/(C_^2+D_^2) -> 3.235301847 | AM189: =(B_*C_-A_*D_)/(C_^2+D_^2) -> 0.04978617616 | AN189: =SQRT(ReVoi^2+ImVoi^2) -> 3.23568489 | AO189: 0.01538720318 | AP189: 10.19932442 | AQ189: =ReVin*ReVoi-ImVin*ImVoi -> 0.3074795964 | AR189: =ImVin*ReVoi+ReVin*ImVoi -> 0.9463248918 | AS189: =SQRT(ReVout^2+ImVout^2)*Vs -> 7.209869172e-18 | AT189: -3.329443802 | AU189: -342.8414523 | AV189: =(Vs*COS(Fi_Vs)-Vin*COS(Fi_Vin))/R_s -> 2.539175535e-20 | AW189: =(Vs*SIN(Fi_Vs)-Vin*SIN(Fi_Vin))/R_s -> 1.347688759e-19 | AX189: =SQRT(ReIs^2+ImIs^2) -> 1.371400421e-19 | AY189: 1.384569776 | AZ189: -377.2567144 | BB189: P_98 | BC189: 98 | BD189: =4*PI()*N_/100 -> 12.3150432 | BE189: -0.8998426486 | BF189: -0.8954431381 | BG189: -0.8955188587 | BI189: =SUMPRODUCT(Is,SIN(Fi_Is+NH_*BD189+NH_*Ofs_))+DC_/(R_s+R_l) -> -8.799020858e-05 | BJ189: 72 | BK189: -288 | BL189: 0 | BM189: =SUM(BL$92:BL189) -> 9 | BN189: =Fi_Norm-360*BM189 -> -3528 | BO189: 1e-09 | BP189: 1e-09 | BQ189: 0 | BR189: =BQ189/(t_pd*0.000000001)*100 -> 0 | BS189: 0 | BT189: =BS189/(t_pd*0.000000001)*100 -> 0 | BV189: P_98 | BW189: 98 | BX189: 1.23150432 | BY189: 0.8999886013 | BZ189: 0.2747029314 | CA189: 0.8954446974
C190: 99 | D190: =fo_*NH_ -> 9900 | E190: =NH_*PI()*(2*Duty_cycle/100*T_+tr_)/T_ -> 317.2380262 | F190: =NH_*PI()*tr_/T_ -> 6.220353454 | G190: =NH_*PI()*tf_/T_ -> 6.220353454 | H190: =SIN(Rad_tr)/Rad_tr -> -0.01009436521 | I190: =SIN(Rad_tf)/Rad_tf -> -0.01009436521 | J190: =-(High_-Low_)/PI()/NH_*(Y_*SIN(Rad_t)-X_*SIN(Rad_tr)) -> 7.336527054e-06 | K190: =(High_-Low_)/PI()/NH_*(Y_*COS(Rad_t)-X_*COS(Rad_tr)) -> 0.0001166107583 | L190: =SQRT(ReVs^2+ImVs^2) -> 0.0001168413179 | M190: -3.078760801 | N190: -78.64807106 | Q190: 62.20353454 | R190: 0.02 | S190: 0 | T190: 0.02 | U190: 0.0001 | V190: 0 | W190: 0.0001 | X190: 0.9900497512 | Y190: =-2*Y_0*ImYl/(Y_0^2+Yl^2+2*Y_0*ReYl) -> 0 | Z190: 0.0001527843883 | AA190: -0.01453029554 | AB190: 68.8179205 | AC190: 0.6529710992 | AD190: 0.4707966337 | AE190: =SQRT(ReVin^2+ImVin^2)*Vs -> 9.405695079e-05 | AF190: -2.454074966 | AG190: -80.53218209 | AH190: 1.609984068 | AI190: 1.169721895 | AJ190: 1.305942198 | AK190: 0.9415932674 | AL190: =(A_*C_+B_*D_)/(C_^2+D_^2) -> 1.236051666 | AM190: =(B_*C_-A_*D_)/(C_^2+D_^2) -> 0.00449022051 | AN190: =SQRT(ReVoi^2+ImVoi^2) -> 1.236059822 | AO190: 0.00363269666 | AP190: 1.840789797 | AQ190: =ReVin*ReVoi-ImVin*ImVoi -> 0.8049920342 | AR190: =ImVin*ReVoi+ReVin*ImVoi -> 0.5848609476 | AS190: =SQRT(ReVout^2+ImVout^2)*Vs -> 0.0001162600178 | AT190: -2.45044227 | AU190: -78.6913923 | AV190: =(Vs*COS(Fi_Vs)-Vin*COS(Fi_Vin))/R_s -> -8.7842631e-07 | AW190: =(Vs*SIN(Fi_Vs)-Vin*SIN(Fi_Vin))/R_s -> 1.04707931e-06 | AX190: =SQRT(ReIs^2+ImIs^2) -> 1.366750842e-06 | AY190: 2.268828512 | AZ190: -117.286213 | BB190: P_99 | BC190: 99 | BD190: =4*PI()*N_/100 -> 12.44070691 | BE190: -0.8983835702 | BF190: -0.8947135521 | BG190: -0.895516893 | BI190: =SUMPRODUCT(Is,SIN(Fi_Is+NH_*BD190+NH_*Ofs_))+DC_/(R_s+R_l) -> -7.340036335e-05 | BJ190: 36 | BK190: -324 | BL190: 0 | BM190: =SUM(BL$92:BL190) -> 9 | BN190: =Fi_Norm-360*BM190 -> -3564 | BO190: 1e-09 | BP190: 1e-09 | BQ190: 0 | BR190: =BQ190/(t_pd*0.000000001)*100 -> 0 | BS190: 0 | BT190: =BS190/(t_pd*0.000000001)*100 -> 0 | BV190: P_99 | BW190: 99 | BX190: 1.244070691 | BY190: 0.8999800021 | BZ190: 0.3673279117 | CA190: 0.8953858074
C191: 100 | D191: =fo_*NH_ -> 10000 | E191: =NH_*PI()*(2*Duty_cycle/100*T_+tr_)/T_ -> 320.4424507 | F191: =NH_*PI()*tr_/T_ -> 6.283185307 | G191: =NH_*PI()*tf_/T_ -> 6.283185307 | H191: =SIN(Rad_tr)/Rad_tr -> 1.023602993e-16 | I191: =SIN(Rad_tf)/Rad_tf -> 1.023602993e-16 | J191: =-(High_-Low_)/PI()/NH_*(Y_*SIN(Rad_t)-X_*SIN(Rad_tr)) -> 1.187336718e-32 | K191: =(High_-Low_)/PI()/NH_*(Y_*COS(Rad_t)-X_*COS(Rad_tr)) -> 0 | L191: =SQRT(ReVs^2+ImVs^2) -> 1.187336718e-32 | M191: 0 | N191: -1000 | Q191: 62.83185307 | R191: 0.02 | S191: 0 | T191: 0.02 | U191: 0.0001 | V191: 0 | W191: 0.0001 | X191: 0.9900497512 | Y191: =-2*Y_0*ImYl/(Y_0^2+Yl^2+2*Y_0*ReYl) -> 0 | Z191: 0.0001 | AA191: -4.900471305e-17 | AB191: 10000 | AC191: 0.9950248756 | AD191: 2.425915846e-15 | AE191: =SQRT(ReVin^2+ImVin^2)*Vs -> 1.18142957e-32 | AF191: 2.438045425e-15 | AG191: -638.5518433 | AH191: 1.990049751 | AI191: 4.876212756e-15 | AJ191: 1.990049751 | AK191: 4.851831692e-15 | AL191: =(A_*C_+B_*D_)/(C_^2+D_^2) -> 1 | AM191: =(B_*C_-A_*D_)/(C_^2+D_^2) -> 1.225148455e-17 | AN191: =SQRT(ReVoi^2+ImVoi^2) -> 1 | AO191: 1.225148455e-17 | AP191: 0 | AQ191: =ReVin*ReVoi-ImVin*ImVoi -> 0.9950248756 | AR191: =ImVin*ReVoi+ReVin*ImVoi -> 2.438106378e-15 | AS191: =SQRT(ReVout^2+ImVout^2)*Vs -> 1.18142957e-32 | AT191: 2.45029691e-15 | AU191: -638.5518433 | AV191: =(Vs*COS(Fi_Vs)-Vin*COS(Fi_Vin))/R_s -> 1.18142957e-36 | AW191: =(Vs*SIN(Fi_Vs)-Vin*SIN(Fi_Vin))/R_s -> -5.760757917e-49 | AX191: =SQRT(ReIs^2+ImIs^2) -> 1.18142957e-36 | AY191: -4.876090851e-13 | AZ191: -718.5518433 | BB191: P_100 | BC191: 100 | BD191: =4*PI()*N_/100 -> 12.56637061 | BE191: -1.11216871e-14 | BF191: -0.4455216634 | BG191: -0.8955129697 | BI191: =SUMPRODUCT(Is,SIN(Fi_Is+NH_*BD191+NH_*Ofs_))+DC_/(R_s+R_l) -> 0.008910433268 | BJ191: 1.403916715e-13 | BK191: -360 | BL191: 0 | BM191: =SUM(BL$92:BL191) -> 9 | BN191: =Fi_Norm-360*BM191 -> -3600 | BO191: 1e-09 | BQ191: 0 | BR191: =BQ191/(t_pd*0.000000001)*100 -> 0 | BV191: P_100 | BW191: 100 | BX191: 1.256637061 | BY191: 0.8999985362 | BZ191: 0.4499992681 | CA191: 0.8955129697

Sheet Info
B6: Application information and hints:
B7: 1., This file uses dot (.) as separator between the integer and fractional parts of numbers. Preferences in your Microsoft Excel options must be set or be changed accordingly.
B8: 2., Enter your data in the top left area of the Time_harm worksheet. Select the required input parameter (red) and enter your data in the units shown. Numbers shown in blue indicate output fields. It is not suggested to change these fields unless you understand the implications. Grey buttons with green text indicate sweep buttons. If you click on it, the particular parameter will be swept with respect to its nominal entry, scaled between the Min and Max multiplier fields.
B9: 3., There is no error checking of most of your entered input data. Physically invalid input (e.g., negative time) may result in meaningless output.
B10: 4., For explanatory information, see the worksheet "Reference". For suggested input data to explore, use the Data >> What-if Analysis >> Scenario toolbar.
B11: 5., If Automatic Recalculation is selected in the Options >> Formulas menu, numerical and graphical outputs are automatically updated after each new entry.
B12: 6., On slower computers, deselect Automatic Recalculation, and use manual recalculation by pressing F9.
B13: 7., For best viewing, set the current window to display all input output fields and graphs.
B14: 8., The calculation part of the worksheets can be viewed and changed if necessary below the input/output areas. To navigate among cells, you can switch back on the Row and Column Headers and Scroll bars in the Options >> Advanced >> Display menu.
B15: 9., This spreadsheet has been tested on Windows 10 with 64-bit Excel 2016, with US system settings.

Sheet Reference
B1: Expressions used on the worksheets
B2: The source and load Voltage Reflection Coefficients:
B7: where Zs, Zl, Zo are defined on the figure..
B9: The transfer function from source to input and to output:
B20: The Fourier coefficients of a steady stream of periodical signal:

Sheet Copyright
B2: This toolset is copyright, Istvan Novak. All rights reserved. You are hereby granted a limited right to run, copy, and reproduce the toolset for your personal, non-commercial purposes only. By using the file(s), you acknowledge not to run, show or disseminate in any way the toolset in full or in part at public or commercial presentations without the express written consent of the author.
